Workbook

Sheet Daten
A1: Min | B1: =MIN(B6:B1162) -> 1.81 | F1: =MIN(F6:F1162) -> 2.131 | J1: =MIN(J6:J1162) -> 29.15 | N1: =MIN(N6:N1162) -> 1.1717 | T1: =MIN(T6:T1162) -> 264.75 | X1: =MIN(X6:X1162) -> 1293.85 | AI1: =MIN(AI6:AI1162) -> 3646.99 | AJ1: =MIN(AJ6:AJ1162) -> -0.2160968634 | AK1: =MIN(AK6:AK1162) -> 683.38 | AL1: =MIN(AL6:AL1162) -> 7173.1 | AM1: =MIN(AM6:AM1162) -> 202.47
A2: Max | B2: =MAX(B8:B1162) -> 4.75 | F2: =MAX(F8:F1162) -> 5.23 | J2: =MAX(J8:J1162) -> 145.16 | N2: =MAX(N8:N1162) -> 1.5937 | T2: =MAX(T8:T1162) -> 550.66 | X2: =MAX(X8:X1162) -> 2810.38 | AI2: =MAX(AI8:AI1162) -> 8092.77 | AJ2: =MAX(AJ8:AJ1162) -> 0.1611622867 | AK2: =MAX(AK8:AK1162) -> 1561 | AL2: =MAX(AL8:AL1162) -> 18238 | AM2: =MAX(AM8:AM1162) -> 472.36
B3: Zinsmethode | J3: Rohöl - BRENT CRUDE OIL (SPOT) | AC3: Signale zur kombinierten Methode
B4: Umlaufrendite | F4: TNX.X.OPI | N4: DUSDEUR.TGT | T4: DOW JONES UTILITIES INDEX | X4: COMPX.NQI | AI4: DAX
A6: Datum | B6: Umlauf- | C6: Signal | D6: 39W-Hoch | E6: 39W-Tief | F6: US Rendite | G6: Signal | H6: 39-W-Hoch | I6: 39-W-Tief | J6: Öl | K6: Signal | L6: 6W-Hoch | M6: 6W-Tief | N6: Euro | O6: Signal | P6: 15W-Hoch | Q6: 15W-Tief | S6: Saison- | T6: DOW | U6: Signal | V6: 13W-Hoch | W6: 18W-Tief | X6: Nasdaq | Y6: Signal | Z6: 13W-Hoch | AA6: 18W-Tief | AC6: Zins- | AD6: Öl, US$ | AE6: Dow und | AF6: Aktion | AH6: Datum | AI6: DAX | AJ6: Veränderung | AK6: S&P | AL6: N 225 | AM6: CRB | BY6: Signale für Diagramm | BZ6: Signale für Diagramm | CA6: Signale für Diagramm | CB6: Signale für Diagramm | CC6: Signale für Diagramm | CD6: Signale für Diagramm | CR6: Zins- | CS6: Öl, US$ | CT6: Dow und | CU6: Aktion
B7: rendite | C7: 39-Wo. | F7: 10 Jahre | G7: 39-Wo. | J7: in $ | K7: 6-Wo. | N7: in $ | O7: 15-Wo. | S7: Signal | T7: Utility | U7: 13/18Wo. | X7: Composite | Y7: 13/18Wo. | AC7: methode | AD7: Saison | AE7: Nasdaq | AJ7: DAX zur Vorwoche | BY7: Aktionssignal Kauf | BZ7: Aktionssignal Verkauf | CA7: (Zinsen auf Verkauf) | CB7: (Zinsen auf Kauf) | CC7: (Öl, $ auf Verkauf) | CD7: (Öl, $ auf Kauf) | CR7: methode | CS7: Saison | CT7: Nasdaq
A8: 2004-01-02 | B8: 3.93 | C8: =IF(B8>0,IF(E8="K","Kauf",IF(D8="V","Verkauf","")),"") ->  | F8: 4.37 | G8: =IF(F8>0,IF(I8="K","Kauf",IF(H8="V","Verkauf","")),"") ->  | J8: 29.56 | K8: =IF(J8>0,IF(M8="K","Kauf",IF(L8="V","Verkauf","")),"") ->  | N8: 1.2582 | O8: =IF(N8>0,IF(Q3="K","Kauf",IF(P8="V","Verkauf","")),"") ->  | T8: 266.45 | X8: 2006.68 | AH8: 2004-01-02 | AI8: 4018.5 | BY8: =IF(AND(AF8="Kauf",OR(AF7="",AF7="Verkauf")),AI8,"") ->  | BZ8: =IF(AND(AF8="Verkauf",OR(AF7="",AF7="Kauf")),AI8,"") ->  | CA8: =IF(AND(AC8="Verkauf",AC7<>"Verkauf",BZ8=""),AI8,"") ->  | CB8: =IF(AND(AC8="Kauf",AC7<>"Kauf",BY8=""),AI8,"") ->  | CC8: =IF(AND(AD8="Verkauf",AD7<>"Verkauf",BZ8=""),AI8,"") ->  | CD8: =IF(AND(AD8="Kauf",AD7<>"Kauf",BY8=""),AI8,"") ->  | CR8: =IF($A8 = "","",IF(AC8 ="verkauf","0","1")) -> 1 | CS8: =IF($A8 = "","",IF(AD8 ="verkauf","0","1")) -> 1 | CT8: =IF($A8 = "","",IF(AE8 ="verkauf","0","1")) -> 1 | CU8: =SUM(CR8+CS8+CT8) -> 3
A9: 2004-01-09 | B9: 3.88 | C9: =IF(B9>0,IF(E9="K","Kauf",IF(D9="V","Verkauf",C8)),"") ->  | F9: 4.08 | G9: =IF(F9>0,IF(I9="K","Kauf",IF(H9="V","Verkauf",G8)),"") ->  | J9: 31.77 | K9: =IF(J9>0,IF(M9="K","Kauf",IF(L9="V","Verkauf",K8)),"") ->  | N9: 1.2818 | O9: =IF(N9>0,IF(Q4="K","Kauf",IF(P9="V","Verkauf",O8)),"") ->  | T9: 266.99 | U9: =IF(T9>0,IF(W9="V","Verkauf",IF(V9="K","Kauf",U8)),"") ->  | X9: 2086.92 | Y9: =IF(AA9="V","Verkauf",IF(Z9="K","Kauf",Y8)) ->  | AH9: 2004-01-09 | AI9: 4016.18 | AJ9: =IF(AI9>0,(AI9-AI8)/AI8,"") -> -0.0005773298494 | AM9: 251.502 | CR9: 1 | CS9: 1 | CT9: 1 | CU9: 3
A10: 2004-01-16 | B10: 3.78 | F10: 4.03 | J10: 31.76 | N10: 1.2399 | O10: =IF(N10>0,IF(Q5="K","Kauf",IF(P10="V","Verkauf",O9)),"") ->  | T10: 266.81 | X10: 2140.46 | AH10: 2004-01-16 | AI10: 4111.64 | AJ10: 0.02376885498 | AM10: 249.219 | CR10: 1 | CS10: 1 | CT10: 1 | CU10: 3
A11: 2004-01-23 | B11: 3.76 | F11: 4.09 | J11: 31.96 | N11: 1.259 | O11: =IF(N11>0,IF(Q6="K","Kauf",IF(P11="V","Verkauf",O10)),"") ->  | T11: 271.29 | X11: 2123.87 | AH11: 2004-01-23 | AI11: 4151.83 | AJ11: 0.009774688445 | AM11: 252.86 | CR11: 1 | CS11: 1 | CT11: 1 | CU11: 3
A12: 2004-01-30 | B12: 3.9 | F12: 4.14 | J12: 29.69 | N12: 1.2474 | O12: =IF(N12>0,IF(Q8="K","Kauf",IF(P12="V","Verkauf",O11)),"") ->  | T12: 271.94 | X12: 2066.15 | AH12: 2004-01-30 | AI12: 4058.6 | AJ12: -0.02245515833 | AM12: 245.034 | CR12: 1 | CS12: 1 | CT12: 1 | CU12: 3
A13: 2004-02-06 | B13: 3.9 | F13: 4.09 | J13: 29.15 | K13: Kauf | L13: =IF(J13>MAX(J8:J12),"V","0") -> 0 | M13: =IF(J13<MIN(J8:J12),"K","0") -> K | N13: 1.2703 | T13: 269.46 | X13: 2064.01 | AH13: 2004-02-06 | AI13: 4044.99 | AJ13: -0.003353373084 | AM13: 244.624 | CR13: 1 | CS13: 1 | CT13: 1 | CU13: 3
A14: 2004-02-13 | B14: 3.78 | F14: 4.05 | J14: 31.06 | K14: Kauf | L14: =IF(J14>MAX(J9:J13),"V","0") -> 0 | M14: =IF(J14<MIN(J9:J13),"K","0") -> 0 | N14: 1.2726 | T14: 270.68 | X14: 2053.56 | AH14: 2004-02-13 | AI14: 4057.05 | AJ14: 0.002981465962 | AM14: 252.168 | CR14: 1 | CS14: 1 | CT14: 1 | CU14: 3
A15: 2004-02-20 | B15: 3.79 | F15: 4.1 | J15: 31.41 | K15: Kauf | L15: 0 | M15: 0 | N15: 1.254 | T15: 271.23 | X15: 2037.93 | AH15: 2004-02-20 | AI15: 4073.35 | AJ15: 0.004017697588 | AM15: 251.955 | CR15: 1 | CS15: 1 | CT15: 1 | CU15: 3
A16: 2004-02-27 | B16: 3.71 | F16: 3.97 | J16: 33.26 | K16: Verkauf | L16: V | M16: 0 | N16: 1.2485 | T16: 278.02 | X16: 2029.82 | AH16: 2004-02-27 | AI16: 4018.16 | AJ16: -0.0135490444 | AM16: 263.286 | CR16: 1 | CS16: 1 | CT16: 1 | CU16: 3
A17: 2004-03-05 | B17: 3.77 | F17: 3.85 | J17: 34.33 | K17: Verkauf | L17: V | M17: 0 | N17: 1.2376 | S17: =IF(O17>"",(IF(AND(MONTH(A17)>5,MONTH(A17)<10),"Verkauf","Kauf")),"") ->  | T17: 281.07 | X17: 2047.63 | AH17: 2004-03-05 | AI17: 4126.14 | AJ17: 0.0268729966 | AM17: 263.036 | CR17: 1 | CS17: 1 | CT17: 1 | CU17: 3
A18: 2004-03-12 | B18: 3.58 | F18: 3.79 | J18: 33.37 | K18: Verkauf | L18: 0 | M18: 0 | N18: 1.2221 | T18: 274.83 | X18: 1984.73 | AH18: 2004-03-12 | AI18: 3915.38 | AJ18: -0.0510792169 | AM18: 260.927 | CR18: 1 | CS18: 1 | CT18: 1 | CU18: 3
A19: 2004-03-19 | B19: 3.58 | F19: 3.77 | J19: 34.51 | K19: Verkauf | L19: V | M19: 0 | N19: 1.2276 | T19: 279.15 | X19: 1940.47 | AH19: 2004-03-19 | AI19: 3819.15 | AJ19: -0.02457743565 | AM19: 270.755 | CR19: 1 | CS19: 1 | CT19: 1 | CU19: 3
A20: 2004-03-26 | B20: 3.5 | F20: 3.83 | J20: 32.88 | K20: Verkauf | L20: 0 | M20: 0 | N20: 1.2135 | T20: 277.62 | V20: =IF(T20>MAX(T8:T19),"K","0") -> 0 | X20: 1960.02 | Z20: =IF(X20>MAX(X8:X19),"K","0") -> 0 | AH20: 2004-03-26 | AI20: 3822.33 | AJ20: 0.0008326460076 | AM20: 263.071 | CR20: 1 | CS20: 1 | CT20: 1 | CU20: 3
A21: 2004-04-02 | B21: 3.62 | F21: 4.15 | J21: 31.19 | K21: Kauf | L21: 0 | M21: K | N21: 1.2132 | T21: 281.99 | U21: Kauf | V21: =IF(T21>MAX(T9:T20),"K","0") -> K | X21: 2057.17 | Z21: 0 | AD21: =IF(OR(AND(K21="Kauf",O21="Kauf"),AND(O21="Kauf",S21="Kauf"),AND(K21="Kauf",S21="Kauf")),"Kauf",IF(OR(AND(K21="Verkauf",O21="Verkauf"),AND(O21="Verkauf",S21="Verkauf"),AND(K21="Verkauf",S21="Verkauf")),"Verkauf","")) ->  | AH21: 2004-04-02 | AI21: 4007.6 | AJ21: 0.04847043557 | AM21: 263.785 | CR21: 1 | CS21: 1 | CT21: 1 | CU21: 3
A22: 2004-04-09 | B22: 3.74 | F22: 4.19 | J22: 34.04 | K22: Kauf | L22: 0 | M22: 0 | N22: 1.21 | O22: =IF(N22>0,IF(Q22="K","Kauf",IF(P22="V","Verkauf",O21)),"") -> Kauf | P22: =IF(N22>MAX(N8:N21),"V","0") -> 0 | Q22: =IF(N22<MIN(N8:N21),"K","0") -> K | S22: Kauf | T22: 280 | U22: Kauf | V22: 0 | X22: 2052.86 | Z22: 0 | AD22: Kauf | AH22: 2004-04-09 | AI22: 4013.53 | AJ22: 0.001479688592 | AM22: 263.785 | CD22: 4013.53 | CR22: 1 | CS22: 1 | CT22: 1 | CU22: 3
A23: 2004-04-16 | B23: 3.8 | F23: 4.34 | J23: 34.11 | K23: Kauf | L23: 0 | M23: 0 | N23: 1.1994 | O23: Kauf | P23: =IF(N23>MAX(N9:N22),"V","0") -> 0 | Q23: =IF(N23<MIN(N9:N22),"K","0") -> K | S23: Kauf | T23: 273.56 | U23: Kauf | V23: 0 | X23: 1995.74 | Z23: 0 | AD23: Kauf | AH23: 2004-04-16 | AI23: 4033.98 | AJ23: 0.005095265265 | AM23: 267.174 | CR23: 1 | CS23: 1 | CT23: 1 | CU23: 3
A24: 2004-04-23 | B24: 3.8 | F24: 4.45 | J24: 33.23 | K24: Kauf | L24: 0 | M24: 0 | N24: 1.1838 | O24: Kauf | P24: 0 | Q24: K | S24: Kauf | T24: 273.7 | U24: Kauf | V24: 0 | X24: 2049.77 | Z24: 0 | AD24: Kauf | AH24: 2004-04-23 | AI24: 4103.62 | AJ24: 0.01726334786 | AM24: 261.622 | CR24: 1 | CS24: 1 | CT24: 1 | CU24: 3
A25: 2004-04-30 | B25: 3.88 | F25: 4.51 | J25: 34.71 | K25: Verkauf | L25: V | M25: 0 | N25: 1.1982 | O25: Kauf | P25: 0 | Q25: 0 | S25: Kauf | T25: 273.6 | U25: Kauf | V25: 0 | W25: =IF(T25<MIN(T8:T24),"V","0") -> 0 | X25: 1920.15 | Y25: Verkauf | Z25: 0 | AA25: =IF(X25<MIN(X8:X24),"V","0") -> V | AD25: Kauf | AH25: 2004-04-30 | AI25: 3985.21 | AJ25: -0.02885501094 | AM25: 265.627 | CR25: 1 | CS25: 1 | CT25: 1 | CU25: 3
A26: 2004-05-07 | B26: 3.89 | F26: 4.77 | J26: 37.48 | K26: Verkauf | L26: V | M26: 0 | N26: 1.1892 | O26: Kauf | P26: 0 | Q26: 0 | S26: Kauf | T26: 267.61 | U26: Kauf | V26: 0 | W26: =IF(T26<MIN(T9:T25),"V","0") -> 0 | X26: 1917.96 | Y26: Verkauf | Z26: =IF(X26>MAX(X14:X25),"K","0") -> 0 | AA26: =IF(X26<MIN(X9:X25),"V","0") -> V | AD26: Kauf | AH26: 2004-05-07 | AI26: 3895.64 | AJ26: -0.02247560354 | AM26: 273.173 | CR26: 1 | CS26: 1 | CT26: 1 | CU26: 3
A27: 2004-05-14 | B27: 4.03 | F27: 4.78 | J27: 39.18 | K27: Verkauf | L27: V | M27: 0 | N27: 1.1886 | O27: Kauf | P27: 0 | Q27: 0 | S27: Kauf | T27: 265.02 | U27: Verkauf | V27: 0 | W27: V | X27: 1904.25 | Y27: Verkauf | Z27: 0 | AA27: V | AD27: Kauf | AH27: 2004-05-14 | AI27: 3803.1 | AJ27: -0.02375476173 | AM27: 272.61 | CR27: 1 | CS27: 1 | CT27: 1 | CU27: 3
A28: 2004-05-21 | B28: 3.95 | F28: 4.76 | J28: 38.45 | K28: Verkauf | L28: 0 | M28: 0 | N28: 1.2 | O28: Kauf | P28: 0 | Q28: 0 | S28: Kauf | T28: 264.75 | U28: Verkauf | V28: 0 | W28: V | X28: 1912.25 | Y28: Verkauf | Z28: 0 | AA28: 0 | AD28: Kauf | AH28: 2004-05-21 | AI28: 3831.84 | AJ28: 0.007556992979 | AM28: 270.978 | CR28: 1 | CS28: 1 | CT28: 1 | CU28: 3
A29: 2004-05-28 | B29: 3.94 | F29: 4.66 | J29: 36.88 | K29: Verkauf | L29: 0 | M29: 0 | N29: 1.2227 | O29: Kauf | P29: 0 | Q29: 0 | S29: Kauf | T29: 275.82 | U29: Verkauf | V29: 0 | W29: 0 | X29: 1986.74 | Y29: Verkauf | Z29: 0 | AA29: 0 | AD29: Kauf | AH29: 2004-05-28 | AI29: 3902.72 | AJ29: 0.01849764082 | AM29: 276.842 | CR29: 1 | CS29: 1 | CT29: 1 | CU29: 3
A30: 2004-06-04 | B30: 4.01 | F30: 4.78 | J30: 35.96 | K30: Verkauf | L30: 0 | M30: 0 | N30: 1.2287 | O30: Kauf | P30: 0 | Q30: 0 | S30: =IF(O30>"",(IF(AND(AND(MONTH(A30)>5,MONTH(A30)<10,DAY(A30)>8)),"Verkauf","Kauf")),"") -> Kauf | T30: 272.56 | U30: Verkauf | V30: 0 | W30: 0 | X30: 1978.62 | Y30: Verkauf | Z30: 0 | AA30: 0 | AD30: Kauf | AH30: 2004-06-04 | AI30: 3961.93 | AJ30: 0.01517147015 | AM30: 270.435 | CR30: 1 | CS30: 1 | CT30: 1 | CU30: 3
A31: 2004-06-11 | B31: 4.07 | F31: 4.81 | J31: 35.37 | K31: Kauf | L31: 0 | M31: K | N31: 1.2012 | O31: Kauf | P31: 0 | Q31: 0 | S31: =IF(O31>"",(IF(AND(MONTH(A31)>5,MONTH(A31)<10),"Verkauf","Kauf")),"") -> Verkauf | T31: 272.32 | U31: Verkauf | V31: 0 | W31: 0 | X31: 1999.87 | Y31: Verkauf | Z31: 0 | AA31: 0 | AD31: Kauf | AH31: 2004-06-11 | AI31: 4014.56 | AJ31: 0.0132839298 | AM31: 270.435 | CR31: 1 | CS31: 1 | CT31: 1 | CU31: 3
A32: 2004-06-18 | B32: 4.01 | F32: 4.72 | J32: 35.44 | K32: Kauf | L32: 0 | M32: 0 | N32: 1.2142 | O32: Kauf | P32: 0 | Q32: 0 | S32: Verkauf | T32: 276.5 | U32: Verkauf | V32: 0 | W32: 0 | X32: 1986.73 | Y32: Verkauf | Z32: 0 | AA32: 0 | AC32: =IF(OR(C32="Kauf",G32="Kauf"),"Kauf",IF(AND(C32="Verkauf",G32="Verkauf"),"Verkauf","")) ->  | AD32: Kauf | AH32: 2004-06-18 | AI32: 3999.79 | AJ32: -0.003679108047 | AM32: 268.739 | CR32: 1 | CS32: 1 | CT32: 1 | CU32: 3
A33: 2004-06-25 | B33: 3.95 | F33: 4.64 | J33: 34.38 | K33: Kauf | L33: 0 | M33: K | N33: 1.2177 | O33: Kauf | P33: 0 | Q33: 0 | S33: Verkauf | T33: 279.01 | U33: Verkauf | V33: 0 | W33: 0 | X33: 2025.47 | Y33: Verkauf | Z33: 0 | AA33: 0 | AD33: Kauf | AH33: 2004-06-25 | AI33: 4013.35 | AJ33: 0.003390177984 | AM33: 268.348 | CR33: 1 | CS33: 1 | CT33: 1 | CU33: 3
A34: 2004-07-02 | B34: 3.98 | F34: 4.46 | J34: 35.37 | K34: Kauf | L34: 0 | M34: 0 | N34: 1.2321 | O34: Verkauf | P34: V | Q34: 0 | S34: Verkauf | T34: 278.07 | U34: Verkauf | V34: 0 | W34: 0 | X34: 2006.66 | Y34: Verkauf | Z34: 0 | AA34: 0 | AD34: Verkauf | AH34: 2004-07-02 | AI34: 3998.77 | AJ34: -0.003632875279 | AM34: 265.62 | CC34: 3998.77 | CR34: 1 | CS34: 0 | CT34: 1 | CU34: 2
A35: 2004-07-09 | B35: 3.9 | F35: 4.46 | J35: 37.41 | K35: Verkauf | L35: V | M35: 0 | N35: 1.2417 | O35: Verkauf | P35: V | Q35: 0 | S35: Verkauf | T35: 276.03 | U35: Verkauf | V35: 0 | W35: 0 | X35: 1946.33 | Y35: Verkauf | Z35: 0 | AA35: 0 | AD35: Verkauf | AH35: 2004-07-09 | AI35: 3924.49 | AJ35: -0.01857571203 | AM35: 271.497 | CR35: 1 | CS35: 0 | CT35: 1 | CU35: 2
A36: 2004-07-16 | B36: 3.93 | F36: 4.36 | J36: 38.82 | K36: Verkauf | L36: V | M36: 0 | N36: 1.245 | O36: Verkauf | P36: V | Q36: 0 | S36: Verkauf | T36: 282.11 | U36: Kauf | V36: K | W36: 0 | X36: 1883.15 | Y36: Verkauf | Z36: 0 | AA36: V | AD36: Verkauf | AH36: 2004-07-16 | AI36: 3845.93 | AJ36: -0.02001788767 | AM36: 272.793 | CR36: 1 | CS36: 0 | CT36: 1 | CU36: 2
A37: 2004-07-23 | B37: 3.94 | F37: 4.43 | J37: 39.61 | K37: Verkauf | L37: V | M37: 0 | N37: 1.2102 | O37: Verkauf | P37: 0 | Q37: 0 | S37: Verkauf | T37: 276.92 | U37: Kauf | V37: 0 | W37: 0 | X37: 1849.09 | Y37: Verkauf | Z37: 0 | AA37: V | AD37: Verkauf | AH37: 2004-07-23 | AI37: 3797.33 | AJ37: -0.01263673546 | AM37: 271.003 | CR37: 1 | CS37: 0 | CT37: 1 | CU37: 2
A38: 2004-07-30 | B38: 3.93 | F38: 4.47 | J38: 41.75 | K38: Verkauf | L38: V | M38: 0 | N38: 1.2024 | O38: Verkauf | P38: 0 | Q38: 0 | S38: Verkauf | T38: 281.31 | U38: Kauf | V38: 0 | W38: 0 | X38: 1887.37 | Y38: Verkauf | Z38: 0 | AA38: 0 | AD38: Verkauf | AH38: 2004-07-30 | AI38: 3895.61 | AJ38: 0.02588134294 | AM38: 273.359 | CR38: 1 | CS38: 0 | CT38: 1 | CU38: 2
A39: 2004-08-06 | B39: 3.86 | F39: 4.21 | J39: 42.23 | K39: Verkauf | L39: V | M39: 0 | N39: 1.2286 | O39: Verkauf | P39: 0 | Q39: 0 | S39: Verkauf | T39: 284.39 | U39: Kauf | V39: K | W39: 0 | X39: 1776.89 | Y39: Verkauf | Z39: 0 | AA39: V | AD39: Verkauf | AE39: =IF(A39>0,(IF(AND(U39="Kauf",Y39="Kauf"),"Kauf",IF(AND(U39="Verkauf",Y39="Verkauf"),"Verkauf",AE38))),"") -> 0 | AH39: 2004-08-06 | AI39: 3727.74 | AJ39: -0.04309209597 | AM39: 272.211 | CR39: 1 | CS39: 0 | CT39: 1 | CU39: 2
A40: 2004-08-13 | B40: 3.76 | F40: 4.23 | J40: 44.86 | K40: Verkauf | L40: V | M40: 0 | N40: 1.2374 | O40: Verkauf | P40: 0 | Q40: 0 | S40: Verkauf | T40: 283.17 | U40: Kauf | V40: 0 | W40: 0 | X40: 1757.22 | Y40: Verkauf | Z40: 0 | AA40: V | AD40: Verkauf | AE40: 0 | AH40: 2004-08-13 | AI40: 3646.99 | AJ40: -0.02166191848 | AM40: 277.325 | CR40: 1 | CS40: 0 | CT40: 1 | CU40: 2
A41: 2004-08-20 | B41: 3.76 | F41: 4.23 | J41: 44.61 | K41: Verkauf | L41: 0 | M41: 0 | N41: 1.2307 | O41: Verkauf | P41: 0 | Q41: 0 | S41: Verkauf | T41: 287 | U41: Kauf | V41: K | W41: 0 | X41: 1838.01 | Y41: =IF(AA41="V","Verkauf",IF(Z41="K","Kauf",Y40)) -> Verkauf | Z41: 0 | AA41: 0 | AD41: Verkauf | AE41: 0 | AH41: 2004-08-20 | AI41: 3712.61 | AJ41: 0.01799292019 | AM41: 282.152 | CR41: 1 | CS41: 0 | CT41: 1 | CU41: 2
A42: 2004-08-27 | B42: 3.76 | F42: 4.23 | J42: 40.77 | K42: Verkauf | L42: 0 | M42: 0 | N42: 1.2008 | O42: Verkauf | P42: 0 | Q42: 0 | S42: Verkauf | T42: 286.51 | U42: Kauf | V42: 0 | W42: 0 | X42: 1862.09 | Y42: Verkauf | Z42: 0 | AA42: 0 | AD42: Verkauf | AE42: 0 | AH42: 2004-08-27 | AI42: 3851.18 | AJ42: 0.03732414662 | AM42: 270.648 | CR42: 1 | CS42: 0 | CT42: 1 | CU42: 2
A43: 2004-09-03 | B43: 3.81 | F43: 4.29 | J43: 41.06 | K43: Verkauf | L43: 0 | M43: 0 | N43: 1.2055 | O43: Verkauf | P43: 0 | Q43: 0 | S43: Verkauf | T43: 292.25 | U43: Kauf | V43: K | W43: 0 | X43: 1844.48 | Y43: Verkauf | Z43: 0 | AA43: 0 | AD43: Verkauf | AE43: 0 | AH43: 2004-09-03 | AI43: 3866.99 | AJ43: 0.004105235279 | AM43: 271.291 | CR43: 1 | CS43: 0 | CT43: 1 | CU43: 2
A44: 2004-09-10 | B44: 3.81 | F44: 4.19 | J44: 39.65 | K44: Kauf | L44: 0 | M44: K | N44: 1.2261 | O44: Verkauf | P44: 0 | Q44: 0 | S44: Verkauf | T44: 292.91 | U44: Kauf | V44: K | W44: 0 | X44: 1894.31 | Y44: Verkauf | Z44: 0 | AA44: 0 | AD44: Verkauf | AE44: 0 | AH44: 2004-09-10 | AI44: 3886.03 | AJ44: 0.004923726206 | AM44: 268.293 | CR44: 1 | CS44: 0 | CT44: 1 | CU44: 2
A45: 2004-09-17 | B45: 3.75 | F45: 4.13 | J45: 43.07 | K45: Kauf | L45: 0 | M45: 0 | N45: 1.2183 | O45: Verkauf | P45: 0 | Q45: 0 | S45: Verkauf | T45: 295.36 | U45: Kauf | V45: K | W45: 0 | X45: 1910.09 | Y45: Verkauf | Z45: 0 | AA45: 0 | AD45: Verkauf | AE45: 0 | AH45: 2004-09-17 | AI45: 3988.07 | AJ45: 0.02625816064 | AM45: 274.459 | CR45: 1 | CS45: 0 | CT45: 1 | CU45: 2
A46: 2004-09-24 | B46: 3.7 | D46: =IF(B46>MAX(B8:B45),"V","0") -> 0 | E46: =IF(B46<MIN(B8:B45),"K","0") -> 0 | F46: 4.03 | H46: =IF(F46>MAX(F8:F45),"V","0") -> 0 | I46: =IF(F46<MIN(F8:F45),"K","0") -> 0 | J46: 46.12 | K46: Verkauf | L46: V | M46: 0 | N46: 1.228 | O46: Verkauf | P46: 0 | Q46: 0 | S46: Verkauf | T46: 292.98 | U46: Kauf | V46: 0 | W46: 0 | X46: 1879.48 | Y46: Verkauf | Z46: 0 | AA46: 0 | AD46: Verkauf | AE46: 0 | AH46: 2004-09-24 | AI46: 3910.3 | AJ46: -0.01950066072 | AM46: 282.944 | CR46: 1 | CS46: 0 | CT46: 1 | CU46: 2
A47: 2004-10-01 | B47: 3.73 | D47: 0 | E47: 0 | F47: 4.18 | H47: =IF(F47>MAX(F9:F46),"V","0") -> 0 | I47: =IF(F47<MIN(F9:F46),"K","0") -> 0 | J47: 46.71 | K47: Verkauf | L47: V | M47: 0 | N47: 1.2404 | O47: Verkauf | P47: 0 | Q47: 0 | S47: Kauf | T47: 298.32 | U47: Kauf | V47: K | W47: 0 | X47: 1942.2 | Y47: Verkauf | Z47: 0 | AA47: 0 | AD47: Verkauf | AE47: 0 | AH47: 2004-10-01 | AI47: 3994.96 | AJ47: 0.02165051275 | AM47: 289.76 | CR47: 1 | CS47: 0 | CT47: 1 | CU47: 2
A48: 2004-10-08 | B48: 3.71 | D48: 0 | E48: 0 | F48: 4.13 | H48: 0 | I48: 0 | J48: 50.11 | K48: Verkauf | L48: V | M48: 0 | N48: 1.2408 | O48: Verkauf | P48: 0 | Q48: 0 | S48: Kauf | T48: 300.08 | U48: Kauf | V48: K | W48: 0 | X48: 1919.97 | Y48: Verkauf | Z48: 0 | AA48: 0 | AD48: Verkauf | AE48: 0 | AH48: 2004-10-08 | AI48: 4015.74 | AJ48: 0.005201553958 | AM48: 298.436 | CR48: 1 | CS48: 0 | CT48: 1 | CU48: 2
A49: 2004-10-15 | B49: 3.6 | D49: 0 | E49: 0 | F49: 4.06 | H49: 0 | I49: 0 | J49: 51.11 | K49: Verkauf | L49: V | M49: 0 | N49: 1.2476 | O49: Verkauf | P49: V | Q49: 0 | S49: Kauf | T49: 301.63 | U49: Kauf | V49: K | W49: 0 | X49: 1911.5 | Y49: Verkauf | Z49: 0 | AA49: 0 | AD49: Verkauf | AE49: 0 | AH49: 2004-10-15 | AI49: 3922.11 | AJ49: -0.02331575251 | AM49: 295.504 | CR49: 1 | CS49: 0 | CT49: 1 | CU49: 2
A50: 2004-10-22 | B50: 3.59 | D50: 0 | E50: 0 | F50: 3.98 | H50: 0 | I50: 0 | J50: 51.94 | K50: Verkauf | L50: V | M50: 0 | N50: 1.2675 | O50: Verkauf | P50: V | Q50: 0 | S50: Kauf | T50: 303.48 | U50: Kauf | V50: K | W50: 0 | X50: 1915.14 | Y50: Verkauf | Z50: 0 | AA50: 0 | AD50: Verkauf | AE50: 0 | AH50: 2004-10-22 | AI50: 3935.14 | AJ50: 0.003322191371 | AM50: 299.323 | CR50: 1 | CS50: 0 | CT50: 1 | CU50: 2
A51: 2004-10-29 | B51: 3.6 | D51: 0 | E51: 0 | F51: 4.03 | H51: 0 | I51: 0 | J51: 48.7 | K51: Verkauf | L51: 0 | M51: 0 | N51: 1.2796 | O51: Verkauf | P51: V | Q51: 0 | S51: Kauf | T51: 313.32 | U51: Kauf | V51: K | W51: 0 | X51: 1974.99 | Y51: Kauf | Z51: K | AA51: 0 | AD51: Verkauf | AE51: Kauf | AH51: 2004-10-29 | AI51: 3960.25 | AJ51: 0.006380967386 | AM51: 291.94 | CR51: 1 | CS51: 0 | CT51: 1 | CU51: 2
A52: 2004-11-05 | B52: 3.57 | D52: 0 | E52: 0 | F52: 4.18 | H52: 0 | I52: 0 | J52: 45.11 | K52: Kauf | L52: 0 | M52: K | N52: 1.2967 | O52: Verkauf | P52: V | Q52: 0 | S52: Kauf | T52: 320.07 | U52: Kauf | V52: K | W52: 0 | X52: 2038.94 | Y52: Kauf | Z52: K | AA52: 0 | AD52: Kauf | AE52: Kauf | AF52: =IF(OR(AND(AC52="Kauf",AD52="Kauf"),AND(AC52="Kauf",AE52="Kauf"),AND(AD52="Kauf",AE52="Kauf")),"Kauf",IF(OR(AND(AC52="Verkauf",AD52="Verkauf"),AND(AC52="Verkauf",AE52="Verkauf"),AND(AD52="Verkauf",AE52="Verkauf")),"Verkauf","")) -> Kauf | AH52: 2004-11-05 | AI52: 4063.58 | AJ52: 0.02609178713 | AM52: 287.133 | BY52: 4063.58 | CR52: 1 | CS52: 1 | CT52: 1 | CU52: 3
A53: 2004-11-12 | B53: 3.51 | D53: 0 | E53: 0 | F53: 4.19 | H53: 0 | I53: 0 | J53: 41.59 | K53: Kauf | L53: 0 | M53: K | N53: 1.2976 | O53: Verkauf | P53: V | Q53: 0 | S53: Kauf | T53: 330.64 | U53: Kauf | V53: K | W53: 0 | X53: 2085.34 | Y53: Kauf | Z53: K | AA53: 0 | AD53: Kauf | AE53: Kauf | AF53: Kauf | AH53: 2004-11-12 | AI53: 4143.35 | AJ53: 0.01963047362 | AM53: 284.81 | CR53: 1 | CS53: 1 | CT53: 1 | CU53: 3
A54: 2004-11-19 | B54: 3.5 | D54: 0 | E54: 0 | F54: 4.21 | H54: 0 | I54: 0 | J54: 42.63 | K54: Kauf | L54: 0 | M54: 0 | N54: 1.3036 | O54: Verkauf | P54: V | Q54: 0 | S54: Kauf | T54: 324.79 | U54: Kauf | V54: 0 | W54: 0 | X54: 2070.63 | Y54: Kauf | Z54: 0 | AA54: 0 | AD54: Kauf | AE54: Kauf | AF54: Kauf | AH54: 2004-11-19 | AI54: 4134.89 | AJ54: -0.002041826059 | AM54: 290.479 | CR54: 1 | CS54: 1 | CT54: 1 | CU54: 3
A55: 2004-11-26 | B55: 3.45 | C55: Kauf | D55: 0 | E55: K | F55: 4.23 | H55: 0 | I55: 0 | J55: 42.91 | K55: Kauf | L55: 0 | M55: 0 | N55: 1.3296 | O55: Verkauf | P55: V | Q55: 0 | S55: Kauf | T55: 333.58 | U55: Kauf | V55: K | W55: 0 | X55: 2101.97 | Y55: Kauf | Z55: K | AA55: 0 | AC55: Kauf | AD55: Kauf | AE55: Kauf | AF55: Kauf | AH55: 2004-11-26 | AI55: 4154.27 | AJ55: 0.004686944514 | AM55: 290.479 | CB55: 4154.27 | CR55: 1 | CS55: 1 | CT55: 1 | CU55: 3
A56: 2004-12-03 | B56: 3.5 | C56: Kauf | D56: 0 | E56: 0 | F56: 4.26 | H56: 0 | I56: 0 | J56: 37.77 | K56: Kauf | L56: 0 | M56: K | N56: 1.3458 | O56: Verkauf | P56: V | Q56: 0 | S56: Kauf | T56: 319.58 | U56: Kauf | V56: 0 | W56: 0 | X56: 2147.96 | Y56: Kauf | Z56: K | AA56: 0 | AC56: Kauf | AD56: Kauf | AE56: Kauf | AF56: Kauf | AH56: 2004-12-03 | AI56: 4208.87 | AJ56: 0.01314310336 | AM56: 276.58 | CR56: 1 | CS56: 1 | CT56: 1 | CU56: 3
A57: 2004-12-10 | B57: 3.33 | C57: Kauf | D57: 0 | E57: K | F57: 4.16 | H57: 0 | I57: 0 | J57: 36.28 | K57: Kauf | L57: 0 | M57: K | N57: 1.3225 | O57: Verkauf | P57: 0 | Q57: 0 | S57: Kauf | T57: 319.69 | U57: Kauf | V57: 0 | W57: 0 | X57: 2128.07 | Y57: Kauf | Z57: 0 | AA57: 0 | AC57: Kauf | AD57: Kauf | AE57: Kauf | AF57: Kauf | AH57: 2004-12-10 | AI57: 4174.55 | AJ57: -0.008154207661 | AM57: 270.181 | CR57: 1 | CS57: 1 | CT57: 1 | CU57: 3
A58: 2004-12-17 | B58: 3.32 | C58: Kauf | D58: 0 | E58: K | F58: 4.2 | H58: 0 | I58: 0 | J58: 41.41 | K58: Kauf | L58: 0 | M58: 0 | N58: 1.3312 | O58: Verkauf | P58: 0 | Q58: 0 | S58: Kauf | T58: 329.09 | U58: Kauf | V58: 0 | W58: 0 | X58: 2135.2 | Y58: Kauf | Z58: 0 | AA58: 0 | AC58: Kauf | AD58: Kauf | AE58: Kauf | AF58: Kauf | AH58: 2004-12-17 | AI58: 4182.27 | AJ58: 0.001849301122 | AM58: 287.247 | CR58: 1 | CS58: 1 | CT58: 1 | CU58: 3
A59: 2004-12-24 | B59: 3.33 | C59: Kauf | D59: 0 | E59: 0 | F59: 4.22 | H59: 0 | I59: 0 | J59: 40.53 | K59: Kauf | L59: 0 | M59: 0 | N59: 1.3524 | O59: Verkauf | P59: V | Q59: 0 | S59: Kauf | T59: 335.89 | U59: Kauf | V59: K | W59: 0 | X59: 2160.62 | Y59: Kauf | Z59: K | AA59: 0 | AC59: Kauf | AD59: Kauf | AE59: Kauf | AF59: Kauf | AH59: 2004-12-24 | AI59: 4251.62 | AJ59: 0.01658190409 | AM59: 287.247 | CR59: 1 | CS59: 1 | CT59: 1 | CU59: 3
A60: 2004-12-31 | B60: 3.43 | C60: Kauf | D60: 0 | E60: 0 | F60: 4.23 | H60: 0 | I60: 0 | J60: 39.9 | K60: Kauf | L60: 0 | M60: 0 | N60: 1.3565 | O60: Verkauf | P60: V | Q60: 0 | S60: Kauf | T60: 334.95 | U60: Kauf | V60: 0 | W60: 0 | X60: 2175.44 | Y60: Kauf | Z60: K | AA60: 0 | AC60: Kauf | AD60: Kauf | AE60: Kauf | AF60: Kauf | AH60: 2004-12-31 | AI60: 4256.08 | AJ60: 0.001049011906 | AM60: 287.247 | CR60: 1 | CS60: 1 | CT60: 1 | CU60: 3
A61: 2005-01-07 | B61: 3.35 | C61: Kauf | D61: 0 | E61: 0 | F61: 4.27 | H61: 0 | I61: 0 | J61: 41.32 | K61: Kauf | L61: 0 | M61: 0 | N61: 1.3054 | O61: Verkauf | P61: 0 | Q61: 0 | S61: Kauf | T61: 324.68 | U61: Kauf | V61: 0 | W61: 0 | X61: 2088.61 | Y61: Kauf | Z61: 0 | AA61: 0 | AC61: Kauf | AD61: Kauf | AE61: Kauf | AF61: Kauf | AH61: 2005-01-07 | AI61: 4316.4 | AJ61: 0.01417266593 | AM61: 277.603 | CR61: 1 | CS61: 1 | CT61: 1 | CU61: 3
A62: 2005-01-14 | B62: 3.29 | C62: Kauf | D62: 0 | E62: K | F62: 4.22 | H62: 0 | I62: 0 | J62: 43.68 | K62: Verkauf | L62: V | M62: 0 | N62: 1.3105 | O62: Verkauf | P62: 0 | Q62: 0 | S62: Kauf | T62: 332.22 | U62: Kauf | V62: 0 | W62: 0 | X62: 2087.91 | Y62: Kauf | Z62: 0 | AA62: 0 | AC62: Kauf | AD62: Verkauf | AE62: Kauf | AF62: Kauf | AH62: 2005-01-14 | AI62: 4232.36 | AJ62: -0.01946992864 | AM62: 284.575 | CC62: 4232.36 | CR62: 1 | CS62: 0 | CT62: 1 | CU62: 2
A63: 2005-01-21 | B63: 3.3 | C63: Kauf | D63: 0 | E63: 0 | F63: 4.14 | H63: 0 | I63: 0 | J63: 44.13 | K63: Verkauf | L63: V | M63: 0 | N63: 1.3047 | O63: Verkauf | P63: 0 | Q63: 0 | S63: =IF(O63>"",(IF(AND(MONTH(A63)>5,MONTH(A63)<10),"Verkauf","Kauf")),"") -> Kauf | T63: 331.7 | U63: Kauf | V63: 0 | W63: 0 | X63: 2034.27 | Y63: Kauf | Z63: 0 | AA63: 0 | AC63: Kauf | AD63: Verkauf | AE63: Kauf | AF63: Kauf | AH63: 2005-01-21 | AI63: 4213.7 | AJ63: -0.004408887713 | AM63: 285.648 | CR63: 1 | CS63: 0 | CT63: 1 | CU63: 2
A64: 2005-01-28 | B64: 3.31 | C64: Kauf | D64: 0 | E64: 0 | F64: 4.14 | H64: 0 | I64: 0 | J64: 46.9 | K64: Verkauf | L64: V | M64: 0 | N64: 1.3042 | O64: Verkauf | P64: 0 | Q64: 0 | S64: Kauf | T64: 339.56 | U64: Kauf | V64: K | W64: 0 | X64: 2035.83 | Y64: Kauf | Z64: 0 | AA64: 0 | AC64: Kauf | AD64: Verkauf | AE64: Kauf | AF64: Kauf | AH64: 2005-01-28 | AI64: 4201.81 | AJ64: -0.002821748107 | AM64: 283.589 | CR64: 1 | CS64: 0 | CT64: 1 | CU64: 2
A65: 2005-02-04 | B65: 3.32 | C65: Kauf | D65: 0 | E65: 0 | F65: 4.08 | H65: 0 | I65: 0 | J65: 43.76 | K65: Verkauf | L65: 0 | M65: 0 | N65: 1.2873 | O65: Verkauf | P65: 0 | Q65: 0 | S65: Kauf | T65: 351.46 | U65: Kauf | V65: K | W65: 0 | X65: 2086.66 | Y65: Kauf | Z65: 0 | AA65: 0 | AC65: Kauf | AD65: Verkauf | AE65: Kauf | AF65: Kauf | AH65: 2005-02-04 | AI65: 4339.23 | AJ65: 0.03270495334 | AM65: 279.694 | CR65: 1 | CS65: 0 | CT65: 1 | CU65: 2
A66: 2005-02-11 | B66: 3.23 | C66: Kauf | D66: 0 | E66: K | F66: 4.09 | H66: 0 | I66: 0 | J66: 44.03 | K66: Verkauf | L66: 0 | M66: 0 | N66: 1.2867 | O66: Kauf | P66: 0 | Q66: K | S66: Kauf | T66: 352.88 | U66: Kauf | V66: K | W66: 0 | X66: 2076.66 | Y66: Kauf | Z66: 0 | AA66: 0 | AC66: Kauf | AD66: Kauf | AE66: Kauf | AF66: Kauf | AH66: 2005-02-11 | AI66: 4387.8 | AJ66: 0.01119323014 | AM66: 284.839 | CD66: 4387.8 | CR66: 1 | CS66: 1 | CT66: 1 | CU66: 3
A67: 2005-02-18 | B67: 3.37 | C67: Kauf | D67: 0 | E67: 0 | F67: 4.26 | H67: 0 | I67: 0 | J67: 46.36 | K67: Verkauf | L67: 0 | M67: 0 | N67: 1.3069 | O67: Kauf | P67: 0 | Q67: 0 | S67: Kauf | T67: 352.37 | U67: Kauf | V67: 0 | W67: 0 | X67: 2058.62 | Y67: Kauf | Z67: 0 | AA67: 0 | AC67: Kauf | AD67: Kauf | AE67: Kauf | AF67: Kauf | AH67: 2005-02-18 | AI67: 4359.47 | AJ67: -0.006456538584 | AM67: 290.464 | CR67: 1 | CS67: 1 | CT67: 1 | CU67: 3
A68: 2005-02-25 | B68: 3.46 | C68: Kauf | D68: 0 | E68: 0 | F68: 4.27 | H68: 0 | I68: 0 | J68: 49.32 | K68: Verkauf | L68: V | M68: 0 | N68: 1.3242 | O68: Kauf | P68: 0 | Q68: 0 | S68: Kauf | T68: 356.06 | U68: Kauf | V68: K | W68: 0 | X68: 2065.4 | Y68: Kauf | Z68: 0 | AA68: 0 | AC68: Kauf | AD68: Kauf | AE68: Kauf | AF68: Kauf | AH68: 2005-02-25 | AI68: 4348.64 | AJ68: -0.002484246938 | AM68: 301.293 | CR68: 1 | CS68: 1 | CT68: 1 | CU68: 3
A69: 2005-03-04 | B69: 3.49 | C69: Kauf | D69: 0 | E69: 0 | F69: 4.32 | H69: 0 | I69: 0 | J69: 52.28 | K69: Verkauf | L69: V | M69: 0 | N69: 1.3242 | O69: Kauf | P69: 0 | Q69: 0 | S69: Kauf | T69: 361.75 | U69: Kauf | V69: K | W69: 0 | X69: 2070.61 | Y69: Kauf | Z69: 0 | AA69: 0 | AC69: Kauf | AD69: Kauf | AE69: Kauf | AF69: Kauf | AH69: 2005-03-04 | AI69: 4423.52 | AJ69: 0.01721917657 | AM69: 310.076 | CR69: 1 | CS69: 1 | CT69: 1 | CU69: 3
A70: 2005-03-11 | B70: 3.48 | C70: Kauf | D70: 0 | E70: 0 | F70: 4.54 | H70: 0 | I70: 0 | J70: 51.92 | K70: Verkauf | L70: 0 | M70: 0 | N70: 1.3456 | O70: Kauf | P70: 0 | Q70: 0 | S70: Kauf | T70: 354.15 | U70: Kauf | V70: 0 | W70: 0 | X70: 2041.6 | Y70: Kauf | Z70: 0 | AA70: 0 | AC70: Kauf | AD70: Kauf | AE70: Kauf | AF70: Kauf | AH70: 2005-03-11 | AI70: 4360.49 | AJ70: -0.01424883351 | AM70: 318.331 | CR70: 1 | CS70: 1 | CT70: 1 | CU70: 3
A71: 2005-03-18 | B71: 3.46 | C71: Kauf | D71: 0 | E71: 0 | F71: 4.51 | H71: 0 | I71: 0 | J71: 55.73 | K71: Verkauf | L71: V | M71: 0 | N71: 1.3319 | O71: Kauf | P71: 0 | Q71: 0 | S71: Kauf | T71: 359.2 | U71: Kauf | V71: 0 | W71: 0 | X71: 2007.79 | Y71: Verkauf | Z71: 0 | AA71: V | AC71: Kauf | AD71: Kauf | AE71: =IF(A71>0,(IF(AND(U71="Kauf",Y71="Kauf"),"Kauf",IF(AND(U71="Verkauf",Y71="Verkauf"),"Verkauf",AE70))),"") -> Kauf | AF71: Kauf | AH71: 2005-03-18 | AI71: 4327.18 | AJ71: -0.00763904974 | AM71: 321.448 | CR71: 1 | CS71: 1 | CT71: 1 | CU71: 3
A72: 2005-03-25 | B72: 3.48 | C72: Kauf | D72: 0 | E72: 0 | F72: 4.6 | G72: Verkauf | H72: V | I72: 0 | J72: 52.41 | K72: Verkauf | L72: 0 | M72: 0 | N72: 1.2958 | O72: Kauf | P72: 0 | Q72: 0 | S72: Kauf | T72: 353.97 | U72: Kauf | V72: 0 | W72: 0 | X72: 1991.06 | Y72: Verkauf | Z72: 0 | AA72: V | AC72: Kauf | AD72: Kauf | AE72: Kauf | AF72: Kauf | AH72: 2005-03-25 | AI72: 4343.6 | AJ72: 0.003794619128 | AM72: 321.448 | BY72: =IF(AND(AF72="Kauf",OR(AF71="",AF71="Verkauf")),AI72,"") ->  | BZ72: =IF(AND(AF72="Verkauf",OR(AF71="",AF71="Kauf")),AI72,"") ->  | CA72: =IF(AND(AC72="Verkauf",AC71<>"Verkauf",BZ72=""),AI72,"") ->  | CB72: =IF(AND(AC72="Kauf",AC71<>"Kauf",BY72=""),AI72,"") ->  | CC72: =IF(AND(AD72="Verkauf",AD71<>"Verkauf",BZ72=""),AI72,"") ->  | CD72: =IF(AND(AD72="Kauf",AD71<>"Kauf",BY72=""),AI72,"") ->  | CR72: =IF($A72 = "","",IF(AC72 ="verkauf","0","1")) -> 1 | CS72: =IF($A72 = "","",IF(AD72 ="verkauf","0","1")) -> 1 | CT72: =IF($A72 = "","",IF(AE72 ="verkauf","0","1")) -> 1 | CU72: =SUM(CR72+CS72+CT72) -> 3
A73: 2005-04-01 | B73: 3.4 | C73: =IF(B73>0,IF(E73="K","Kauf",IF(D73="V","Verkauf",C72)),"") -> Kauf | D73: 0 | E73: 0 | F73: 4.46 | G73: =IF(F73>0,IF(I73="K","Kauf",IF(H73="V","Verkauf",G72)),"") -> Verkauf | H73: 0 | I73: 0 | J73: 53.94 | K73: =IF(J73>0,IF(M73="K","Kauf",IF(L73="V","Verkauf",K72)),"") -> Verkauf | L73: 0 | M73: 0 | N73: 1.2909 | O73: Kauf | P73: 0 | Q73: 0 | S73: Kauf | T73: 360.28 | U73: =IF(T73>0,IF(W73="V","Verkauf",IF(V73="K","Kauf",U72)),"") -> Kauf | V73: 0 | W73: 0 | X73: 1984.81 | Y73: =IF(AA73="V","Verkauf",IF(Z73="K","Kauf",Y72)) -> Verkauf | Z73: 0 | AA73: V | AC73: Kauf | AD73: Kauf | AE73: Kauf | AF73: Kauf | AH73: 2005-04-01 | AI73: 4373.53 | AJ73: =IF(AI73>0,(AI73-AI72)/AI72,"") -> 0.006890597661 | AM73: 317.782 | CR73: 1 | CS73: 1 | CT73: 1 | CU73: 3
A74: 2005-04-08 | B74: 3.36 | C74: Kauf | D74: 0 | E74: 0 | F74: 4.49 | G74: Verkauf | H74: 0 | I74: 0 | J74: 51.81 | K74: Kauf | L74: 0 | M74: K | N74: 1.2928 | O74: Kauf | P74: 0 | Q74: 0 | S74: Kauf | T74: 362.01 | U74: Kauf | V74: K | W74: 0 | X74: 1999.35 | Y74: Verkauf | Z74: 0 | AA74: 0 | AC74: Kauf | AD74: Kauf | AE74: Kauf | AF74: Kauf | AH74: 2005-04-08 | AI74: 4400.68 | AJ74: 0.006207800107 | AM74: 306.36 | CR74: 1 | CS74: 1 | CT74: 1 | CU74: 3
A75: 2005-04-15 | B75: 3.28 | C75: Kauf | D75: 0 | E75: 0 | F75: 4.24 | G75: Verkauf | H75: 0 | I75: 0 | J75: 48.74 | K75: Kauf | L75: 0 | M75: K | N75: 1.2907 | O75: Kauf | P75: 0 | Q75: 0 | S75: Kauf | T75: 356.64 | U75: Kauf | V75: 0 | W75: 0 | X75: 1908.15 | Y75: Verkauf | Z75: 0 | AA75: V | AC75: Kauf | AD75: Kauf | AE75: Kauf | AF75: Kauf | AH75: 2005-04-15 | AI75: 4312.25 | AJ75: -0.02009462174 | AM75: 297.694 | CR75: 1 | CS75: 1 | CT75: 1 | CU75: 3
A76: 2005-04-22 | B76: 3.26 | C76: Kauf | D76: 0 | E76: 0 | F76: 4.26 | G76: Verkauf | H76: 0 | I76: 0 | J76: 52.6 | K76: Kauf | L76: 0 | M76: 0 | N76: 1.3064 | O76: Kauf | P76: 0 | Q76: 0 | S76: Kauf | T76: 366.35 | U76: Kauf | V76: K | W76: 0 | X76: 1932.19 | Y76: Verkauf | Z76: 0 | AA76: 0 | AC76: Kauf | AD76: Kauf | AE76: Kauf | AF76: Kauf | AH76: 2005-04-22 | AI76: 4223.04 | AJ76: -0.02068757609 | AM76: 308.734 | CR76: 1 | CS76: 1 | CT76: 1 | CU76: 3
A77: 2005-04-29 | B77: 3.17 | C77: Kauf | D77: 0 | E77: K | F77: 4.2 | G77: Verkauf | H77: 0 | I77: 0 | J77: 49.7 | K77: Kauf | L77: 0 | M77: 0 | N77: 1.287 | O77: Kauf | P77: 0 | Q77: 0 | S77: Kauf | T77: 371.47 | U77: Kauf | V77: K | W77: 0 | X77: 1921.65 | Y77: Verkauf | Z77: 0 | AA77: 0 | AC77: Kauf | AD77: Kauf | AE77: Kauf | AF77: Kauf | AH77: 2005-04-29 | AI77: 4184.84 | AJ77: -0.009045616428 | AM77: 296.687 | CR77: 1 | CS77: 1 | CT77: 1 | CU77: 3
A78: 2005-05-06 | B78: 3.16 | C78: Kauf | D78: 0 | E78: K | F78: 4.26 | G78: Verkauf | H78: 0 | I78: 0 | J78: 48.92 | K78: Kauf | L78: =IF(J78>MAX(J73:J77),"V","0") -> 0 | M78: =IF(J78<MIN(J73:J77),"K","0") -> 0 | N78: 1.2827 | O78: Kauf | P78: 0 | Q78: K | S78: Kauf | T78: 364.88 | U78: Kauf | V78: 0 | W78: 0 | X78: 1967.35 | Y78: Verkauf | Z78: 0 | AA78: 0 | AC78: Kauf | AD78: Kauf | AE78: Kauf | AF78: Kauf | AH78: 2005-05-06 | AI78: 4311.06 | AJ78: 0.0301612487 | AM78: 294.721 | CR78: 1 | CS78: 1 | CT78: 1 | CU78: 3
A79: 2005-05-13 | B79: 3.1 | C79: Kauf | D79: 0 | E79: K | F79: 4.13 | G79: Verkauf | H79: 0 | I79: 0 | J79: 45.44 | K79: Kauf | L79: 0 | M79: K | N79: 1.2624 | O79: Kauf | P79: 0 | Q79: K | S79: Kauf | T79: 355.42 | U79: Kauf | V79: 0 | W79: 0 | X79: 1976.8 | Y79: Verkauf | Z79: 0 | AA79: 0 | AC79: Kauf | AD79: Kauf | AE79: Kauf | AF79: Kauf | AH79: 2005-05-13 | AI79: 4275.7 | AJ79: -0.008202159098 | AM79: 286.167 | CR79: 1 | CS79: 1 | CT79: 1 | CU79: 3
A80: 2005-05-20 | B80: 3.12 | C80: Kauf | D80: 0 | E80: 0 | F80: 4.12 | G80: Verkauf | H80: 0 | I80: 0 | J80: 46.81 | K80: Kauf | L80: 0 | M80: 0 | N80: 1.2554 | O80: Kauf | P80: 0 | Q80: K | S80: Kauf | T80: 364.89 | U80: Kauf | V80: 0 | W80: 0 | X80: 2046.42 | Y80: Verkauf | Z80: 0 | AA80: 0 | AC80: Kauf | AD80: Kauf | AE80: Kauf | AF80: Kauf | AH80: 2005-05-20 | AI80: 4360.68 | AJ80: 0.01987510817 | AM80: 283.436 | CR80: 1 | CS80: 1 | CT80: 1 | CU80: 3
A81: 2005-05-27 | B81: 3.06 | C81: Kauf | D81: 0 | E81: K | F81: 4.08 | G81: Verkauf | H81: 0 | I81: 0 | J81: 48.89 | K81: Kauf | L81: 0 | M81: 0 | N81: 1.2581 | O81: Kauf | P81: 0 | Q81: 0 | S81: Kauf | T81: 365.03 | U81: Kauf | V81: 0 | W81: 0 | X81: 2075.73 | Y81: Kauf | Z81: K | AA81: 0 | AC81: Kauf | AD81: Kauf | AE81: Kauf | AF81: Kauf | AH81: 2005-05-27 | AI81: 4444.71 | AJ81: 0.01926993038 | AM81: 292.21 | CR81: 1 | CS81: 1 | CT81: 1 | CU81: 3
A82: 2005-06-03 | B82: 2.96 | C82: Kauf | D82: 0 | E82: K | F82: 3.99 | G82: Verkauf | H82: 0 | I82: 0 | J82: 51.22 | K82: Verkauf | L82: V | M82: 0 | N82: 1.2228 | O82: Kauf | P82: 0 | Q82: K | S82: =IF(O82>"",(IF(AND(AND(MONTH(A82)>5,MONTH(A82)<10,DAY(A82)>8)),"Verkauf","Kauf")),"") -> Kauf | T82: 369.14 | U82: Kauf | V82: 0 | W82: 0 | X82: 2071.43 | Y82: Kauf | Z82: 0 | AA82: 0 | AC82: Kauf | AD82: Kauf | AE82: Kauf | AF82: Kauf | AH82: 2005-06-03 | AI82: 4510.39 | AJ82: 0.01477711707 | AM82: 301.96 | CR82: 1 | CS82: 1 | CT82: 1 | CU82: 3
A83: 2005-06-10 | B83: 2.89 | C83: Kauf | D83: 0 | E83: K | F83: 4.05 | G83: Verkauf | H83: 0 | I83: 0 | J83: 51.32 | K83: Verkauf | L83: V | M83: 0 | N83: 1.2123 | O83: Kauf | P83: 0 | Q83: K | S83: =IF(O83>"",(IF(AND(AND(MONTH(A83)>5,MONTH(A83)<10,DAY(A83)>8)),"Verkauf","Kauf")),"") -> Verkauf | T83: 373.16 | U83: Kauf | V83: K | W83: 0 | X83: 2063 | Y83: Kauf | Z83: 0 | AA83: 0 | AC83: Kauf | AD83: Verkauf | AE83: Kauf | AF83: Kauf | AH83: 2005-06-10 | AI83: 4586.1 | AJ83: 0.01678568816 | AM83: 296.821 | CC83: 4586.1 | CR83: 1 | CS83: 0 | CT83: 1 | CU83: 2
A84: 2005-06-17 | B84: 3.02 | C84: Kauf | D84: 0 | E84: 0 | F84: 4.07 | G84: Verkauf | H84: 0 | I84: 0 | J84: 56.2 | K84: Verkauf | L84: V | M84: 0 | N84: 1.2171 | O84: Kauf | P84: 0 | Q84: 0 | S84: =IF(O84>"",(IF(AND(MONTH(A84)>5,MONTH(A84)<10),"Verkauf","Kauf")),"") -> Verkauf | T84: 377.69 | U84: Kauf | V84: K | W84: 0 | X84: 2090.11 | Y84: Kauf | Z84: K | AA84: 0 | AC84: Kauf | AD84: Verkauf | AE84: Kauf | AF84: Kauf | AH84: 2005-06-17 | AI84: 4604.57 | AJ84: 0.004027387105 | AM84: 310.983 | CR84: 1 | CS84: 0 | CT84: 1 | CU84: 2
A85: 2005-06-24 | B85: 2.88 | C85: Kauf | D85: 0 | E85: K | F85: 3.92 | G85: Kauf | H85: 0 | I85: K | J85: 57.19 | K85: Verkauf | L85: V | M85: 0 | N85: 1.2103 | O85: Kauf | P85: 0 | Q85: K | S85: Verkauf | T85: 380.65 | U85: Kauf | V85: =IF(T85>MAX(T73:T84),"K","0") -> K | W85: 0 | X85: 2053.27 | Y85: Kauf | Z85: 0 | AA85: 0 | AC85: Kauf | AD85: =IF(OR(AND(K85="Kauf",O85="Kauf"),AND(O85="Kauf",S85="Kauf"),AND(K85="Kauf",S85="Kauf")),"Kauf",IF(OR(AND(K85="Verkauf",O85="Verkauf"),AND(O85="Verkauf",S85="Verkauf"),AND(K85="Verkauf",S85="Verkauf")),"Verkauf","")) -> Verkauf | AE85: Kauf | AF85: Kauf | AH85: 2005-06-24 | AI85: 4566.48 | AJ85: -0.008272216515 | AM85: 312.242 | CR85: 1 | CS85: 0 | CT85: 1 | CU85: 2
A86: 2005-07-01 | B86: 2.92 | C86: Kauf | D86: 0 | E86: 0 | F86: 4.05 | G86: Kauf | H86: 0 | I86: 0 | J86: 56.15 | K86: Verkauf | L86: 0 | M86: 0 | N86: 1.1955 | O86: =IF(N86>0,IF(Q86="K","Kauf",IF(P86="V","Verkauf",O85)),"") -> Kauf | P86: 0 | Q86: K | S86: Verkauf | T86: 390.36 | U86: Kauf | V86: K | W86: 0 | X86: 2057.37 | Y86: Kauf | Z86: 0 | AA86: 0 | AC86: Kauf | AD86: Verkauf | AE86: Kauf | AF86: Kauf | AH86: 2005-07-01 | AI86: 4617.07 | AJ86: 0.01107855504 | AM86: 303.855 | CR86: 1 | CS86: 0 | CT86: 1 | CU86: 2
A87: 2005-07-08 | B87: 2.97 | C87: Kauf | D87: 0 | E87: 0 | F87: 4.09 | G87: Kauf | H87: 0 | I87: 0 | J87: 58.74 | K87: Verkauf | L87: V | M87: 0 | N87: 1.1965 | O87: Kauf | P87: =IF(N87>MAX(N73:N86),"V","0") -> 0 | Q87: =IF(N87<MIN(N73:N86),"K","0") -> 0 | S87: Verkauf | T87: 390.41 | U87: Kauf | V87: K | W87: 0 | X87: 2112.88 | Y87: Kauf | Z87: K | AA87: 0 | AC87: Kauf | AD87: Verkauf | AE87: Kauf | AF87: Kauf | AH87: 2005-07-08 | AI87: 4597.97 | AJ87: -0.004136822704 | AM87: 309.897 | CR87: 1 | CS87: 0 | CT87: 1 | CU87: 2
A88: 2005-07-15 | B88: 3.07 | C88: Kauf | D88: 0 | E88: 0 | F88: 4.17 | G88: Kauf | H88: 0 | I88: 0 | J88: 57.15 | K88: Verkauf | L88: 0 | M88: 0 | N88: 1.2038 | O88: Kauf | P88: 0 | Q88: 0 | S88: Verkauf | T88: 392.73 | U88: Kauf | V88: K | W88: 0 | X88: 2156.78 | Y88: Kauf | Z88: K | AA88: 0 | AC88: Kauf | AD88: Verkauf | AE88: Kauf | AF88: Kauf | AH88: 2005-07-15 | AI88: 4712.9 | AJ88: 0.02499581337 | AM88: 309.573 | CR88: 1 | CS88: 0 | CT88: 1 | CU88: 2
A89: 2005-07-22 | B89: 3.05 | C89: Kauf | D89: 0 | E89: 0 | F89: 4.22 | G89: Kauf | H89: 0 | I89: 0 | J89: 57.4 | K89: Verkauf | L89: 0 | M89: 0 | N89: 1.2063 | O89: Kauf | P89: 0 | Q89: 0 | S89: Verkauf | T89: 392.92 | U89: Kauf | V89: K | W89: 0 | X89: 2179.74 | Y89: Kauf | Z89: K | AA89: 0 | AC89: Kauf | AD89: Verkauf | AE89: Kauf | AF89: Kauf | AH89: 2005-07-22 | AI89: 4836.9 | AJ89: 0.02631076407 | AM89: 304.246 | CR89: 1 | CS89: 0 | CT89: 1 | CU89: 2
A90: 2005-07-29 | B90: 3 | C90: Kauf | D90: 0 | E90: 0 | F90: 4.28 | G90: Kauf | H90: 0 | I90: 0 | J90: 60.31 | K90: Verkauf | L90: V | M90: 0 | N90: 1.213 | O90: Kauf | P90: 0 | Q90: 0 | S90: Verkauf | T90: 397.29 | U90: Kauf | V90: K | W90: =IF(T90<MIN(T73:T89),"V","0") -> 0 | X90: 2184.83 | Y90: Kauf | Z90: =IF(X90>MAX(X78:X89),"K","0") -> K | AA90: =IF(X90<MIN(X73:X89),"V","0") -> 0 | AC90: Kauf | AD90: Verkauf | AE90: Kauf | AF90: Kauf | AH90: 2005-07-29 | AI90: 4886.5 | AJ90: 0.01025450185 | AM90: 312.002 | CR90: 1 | CS90: 0 | CT90: 1 | CU90: 2
A91: 2005-08-05 | B91: 3.11 | C91: Kauf | D91: 0 | E91: 0 | F91: 4.39 | G91: Kauf | H91: 0 | I91: 0 | J91: 61.12 | K91: Verkauf | L91: V | M91: 0 | N91: 1.2354 | O91: Kauf | P91: 0 | Q91: 0 | S91: Verkauf | T91: 395.91 | U91: Kauf | V91: 0 | W91: 0 | X91: 2177.91 | Y91: Kauf | Z91: 0 | AA91: 0 | AC91: Kauf | AD91: Verkauf | AE91: Kauf | AF91: Kauf | AH91: 2005-08-05 | AI91: 4827.18 | AJ91: -0.0121395682 | AM91: 316.672 | CR91: 1 | CS91: 0 | CT91: 1 | CU91: 2
A92: 2005-08-12 | B92: 3.08 | C92: Kauf | D92: 0 | E92: 0 | F92: 4.25 | G92: Kauf | H92: 0 | I92: 0 | J92: 68.05 | K92: Verkauf | L92: V | M92: 0 | N92: 1.2437 | O92: Kauf | P92: 0 | Q92: 0 | S92: Verkauf | T92: 396.06 | U92: Kauf | V92: 0 | W92: 0 | X92: 2156.9 | Y92: Kauf | Z92: 0 | AA92: 0 | AC92: Kauf | AD92: Verkauf | AE92: Kauf | AF92: Kauf | AH92: 2005-08-12 | AI92: 4937.33 | AJ92: 0.02281870575 | AM92: 322.955 | CR92: 1 | CS92: 0 | CT92: 1 | CU92: 2
A93: 2005-08-19 | B93: 2.97 | C93: Kauf | D93: 0 | E93: 0 | F93: 4.21 | G93: Kauf | H93: 0 | I93: 0 | J93: 64.45 | K93: Verkauf | L93: 0 | M93: 0 | N93: 1.2152 | O93: Kauf | P93: 0 | Q93: 0 | S93: Verkauf | T93: 394.49 | U93: Kauf | V93: 0 | W93: 0 | X93: 2135.56 | Y93: Kauf | Z93: 0 | AA93: 0 | AC93: Kauf | AD93: Verkauf | AE93: Kauf | AF93: Kauf | AH93: 2005-08-19 | AI93: 4929.91 | AJ93: -0.001502836553 | AM93: 315.183 | CR93: 1 | CS93: 0 | CT93: 1 | CU93: 2
A94: 2005-08-26 | B94: 2.95 | C94: Kauf | D94: 0 | E94: 0 | F94: 4.19 | G94: Kauf | H94: 0 | I94: 0 | J94: 66.32 | K94: Verkauf | L94: 0 | M94: 0 | N94: 1.2286 | O94: Kauf | P94: 0 | Q94: 0 | S94: Verkauf | T94: 399.9 | U94: Kauf | V94: K | W94: 0 | X94: 2120.77 | Y94: Kauf | Z94: 0 | AA94: 0 | AC94: Kauf | AD94: Verkauf | AE94: Kauf | AF94: Kauf | AH94: 2005-08-26 | AI94: 4783.8 | AJ94: -0.02963745788 | AM94: 317.101 | CR94: 1 | CS94: 0 | CT94: 1 | CU94: 2
A95: 2005-09-02 | B95: 2.86 | C95: Kauf | D95: 0 | E95: K | F95: 4.05 | G95: Kauf | H95: 0 | I95: 0 | J95: 65.74 | K95: Verkauf | L95: 0 | M95: 0 | N95: 1.2513 | O95: Kauf | P95: 0 | Q95: 0 | S95: Verkauf | T95: 414.23 | U95: Kauf | V95: K | W95: 0 | X95: 2141.07 | Y95: Kauf | Z95: 0 | AA95: 0 | AC95: Kauf | AD95: Verkauf | AE95: Kauf | AF95: Kauf | AH95: 2005-09-02 | AI95: 4837.81 | AJ95: 0.01129018772 | AM95: 331.354 | CR95: 1 | CS95: 0 | CT95: 1 | CU95: 2
A96: 2005-09-09 | B96: 2.88 | C96: Kauf | D96: 0 | E96: 0 | F96: 4.12 | G96: Kauf | H96: 0 | I96: 0 | J96: 63.3 | K96: Verkauf | L96: 0 | M96: 0 | N96: 1.2412 | O96: Kauf | P96: 0 | Q96: 0 | S96: Verkauf | T96: 421.05 | U96: Kauf | V96: K | W96: 0 | X96: 2175.51 | Y96: Kauf | Z96: 0 | AA96: 0 | AC96: =IF(OR(C96="Kauf",G96="Kauf"),"Kauf",IF(AND(C96="Verkauf",G96="Verkauf"),"Verkauf","")) -> Kauf | AD96: Verkauf | AE96: Kauf | AF96: Kauf | AH96: 2005-09-09 | AI96: 5005.93 | AJ96: 0.03475126142 | AM96: 323.323 | CR96: 1 | CS96: 0 | CT96: 1 | CU96: 2
A97: 2005-09-16 | B97: 2.95 | C97: Kauf | D97: 0 | E97: 0 | F97: 4.27 | G97: Kauf | H97: 0 | I97: 0 | J97: 59.82 | K97: Kauf | L97: 0 | M97: K | N97: 1.2233 | O97: Kauf | P97: 0 | Q97: 0 | S97: Verkauf | T97: 428.85 | U97: Kauf | V97: K | W97: 0 | X97: 2160.35 | Y97: Kauf | Z97: 0 | AA97: 0 | AC97: Kauf | AD97: Kauf | AE97: Kauf | AF97: Kauf | AH97: 2005-09-16 | AI97: 4986.5 | AJ97: -0.003881396664 | AM97: 315.394 | CD97: 4986.5 | CR97: 1 | CS97: 1 | CT97: 1 | CU97: 3
A98: 2005-09-23 | B98: 2.88 | C98: Kauf | D98: 0 | E98: 0 | F98: 4.26 | G98: Kauf | H98: 0 | I98: 0 | J98: 62.1 | K98: Kauf | L98: 0 | M98: 0 | N98: 1.2041 | O98: Kauf | P98: 0 | Q98: 0 | S98: Verkauf | T98: 419.14 | U98: Kauf | V98: 0 | W98: 0 | X98: 2116.84 | Y98: Kauf | Z98: 0 | AA98: 0 | AC98: Kauf | AD98: Kauf | AE98: Kauf | AF98: Kauf | AH98: 2005-09-23 | AI98: 4882.58 | AJ98: -0.02084026873 | AM98: 323.107 | CR98: 1 | CS98: 1 | CT98: 1 | CU98: 3
A99: 2005-09-30 | B99: 2.99 | C99: Kauf | D99: 0 | E99: 0 | F99: 4.33 | G99: Kauf | H99: 0 | I99: 0 | J99: 60.84 | K99: Kauf | L99: 0 | M99: 0 | N99: 1.2029 | O99: Kauf | P99: 0 | Q99: 0 | S99: =IF(O99>"",(IF(AND(AND(MONTH(A99)>5,MONTH(A99)<10,DAY(A99)<30)),"Verkauf","Kauf")),"") -> Kauf | T99: 432.38 | U99: Kauf | V99: K | W99: 0 | X99: 2151.69 | Y99: Kauf | Z99: 0 | AA99: 0 | AC99: Kauf | AD99: Kauf | AE99: Kauf | AF99: Kauf | AH99: 2005-09-30 | AI99: 5044.12 | AJ99: 0.03308496737 | AM99: 332.97 | CR99: 1 | CS99: 1 | CT99: 1 | CU99: 3
A100: 2005-10-07 | B100: 3.06 | C100: Kauf | D100: 0 | E100: 0 | F100: 4.36 | G100: Kauf | H100: 0 | I100: 0 | J100: 56.58 | K100: Kauf | L100: 0 | M100: K | N100: 1.212 | O100: Kauf | P100: 0 | Q100: 0 | S100: =IF(O100>"",(IF(AND(MONTH(A100)>5,MONTH(A100)<10),"Verkauf","Kauf")),"") -> Kauf | T100: 413.82 | U100: Kauf | V100: 0 | W100: 0 | X100: 2090.35 | Y100: Kauf | Z100: 0 | AA100: 0 | AC100: Kauf | AD100: Kauf | AE100: Kauf | AF100: Kauf | AH100: 2005-10-07 | AI100: 5007.77 | AJ100: -0.007206410633 | AM100: 325.207 | CR100: 1 | CS100: 1 | CT100: 1 | CU100: 3
A101: 2005-10-14 | B101: 3.13 | C101: Kauf | D101: 0 | E101: 0 | F101: 4.48 | G101: Kauf | H101: 0 | I101: 0 | J101: 58.62 | K101: Kauf | L101: 0 | M101: 0 | N101: 1.2082 | O101: Kauf | P101: 0 | Q101: 0 | S101: Kauf | T101: 394 | U101: Kauf | V101: 0 | W101: 0 | X101: 2064.83 | Y101: Kauf | Z101: 0 | AA101: 0 | AC101: Kauf | AD101: Kauf | AE101: Kauf | AF101: Kauf | AH101: 2005-10-14 | AI101: 4978.83 | AJ101: -0.005779019404 | AM101: 327.644 | CR101: 1 | CS101: 1 | CT101: 1 | CU101: 3
A102: 2005-10-21 | B102: 3.13 | C102: Kauf | D102: 0 | E102: 0 | F102: 4.39 | G102: Kauf | H102: 0 | I102: 0 | J102: 57.15 | K102: Kauf | L102: 0 | M102: 0 | N102: 1.1951 | O102: Kauf | P102: 0 | Q102: K | S102: Kauf | T102: 386.66 | U102: Kauf | V102: 0 | W102: 0 | X102: 2082.21 | Y102: Kauf | Z102: 0 | AA102: 0 | AC102: Kauf | AD102: Kauf | AE102: Kauf | AF102: Kauf | AH102: 2005-10-21 | AI102: 4838.4 | AJ102: -0.02820542176 | AM102: 322.512 | CR102: 1 | CS102: 1 | CT102: 1 | CU102: 3
A103: 2005-10-28 | B103: 3.25 | C103: Kauf | D103: 0 | E103: 0 | F103: 4.57 | G103: Kauf | H103: 0 | I103: 0 | J103: 59.66 | K103: Kauf | L103: 0 | M103: 0 | N103: 1.2065 | O103: Kauf | P103: 0 | Q103: 0 | S103: Kauf | T103: 396.01 | U103: Kauf | V103: 0 | W103: 0 | X103: 2089.88 | Y103: Kauf | Z103: 0 | AA103: 0 | AC103: Kauf | AD103: Kauf | AE103: =IF(A103>0,(IF(AND(U103="Kauf",Y103="Kauf"),"Kauf",IF(AND(U103="Verkauf",Y103="Verkauf"),"Verkauf",AE102))),"") -> Kauf | AF103: Kauf | AH103: 2005-10-28 | AI103: 4825.64 | AJ103: -0.00263723545 | AM103: 322.127 | CR103: 1 | CS103: 1 | CT103: 1 | CU103: 3
A104: 2005-11-04 | B104: 3.34 | C104: Kauf | D104: 0 | E104: 0 | F104: 4.66 | G104: Verkauf | H104: V | I104: 0 | J104: 60.97 | K104: Verkauf | L104: V | M104: 0 | N104: 1.1822 | O104: Kauf | P104: 0 | Q104: K | S104: Kauf | T104: 392.9 | U104: Kauf | V104: 0 | W104: 0 | X104: 2169.43 | Y104: Kauf | Z104: 0 | AA104: 0 | AC104: Kauf | AD104: Kauf | AE104: Kauf | AF104: Kauf | AH104: 2005-11-04 | AI104: 4995.24 | AJ104: 0.03514559727 | AM104: 318.767 | CR104: 1 | CS104: 1 | CT104: 1 | CU104: 3
A105: 2005-11-11 | B105: 3.37 | C105: Kauf | D105: 0 | E105: 0 | F105: 4.58 | G105: Verkauf | H105: 0 | I105: 0 | J105: 52.13 | K105: Kauf | L105: 0 | M105: K | N105: 1.172 | O105: Kauf | P105: 0 | Q105: K | S105: Kauf | T105: 388.03 | U105: Kauf | V105: 0 | W105: 0 | X105: 2202.47 | Y105: =IF(AA105="V","Verkauf",IF(Z105="K","Kauf",Y104)) -> Kauf | Z105: K | AA105: 0 | AC105: Kauf | AD105: Kauf | AE105: Kauf | AF105: Kauf | AH105: 2005-11-11 | AI105: 5090.75 | AJ105: 0.01912020243 | AM105: 315.591 | CR105: 1 | CS105: 1 | CT105: 1 | CU105: 3
A106: 2005-11-18 | B106: 3.3 | C106: Kauf | D106: 0 | E106: 0 | F106: 4.5 | G106: Verkauf | H106: 0 | I106: 0 | J106: 52.13 | K106: Kauf | L106: 0 | M106: 0 | N106: 1.1773 | O106: Kauf | P106: 0 | Q106: 0 | S106: Kauf | T106: 396.46 | U106: Kauf | V106: 0 | W106: 0 | X106: 2227.07 | Y106: Kauf | Z106: K | AA106: 0 | AC106: Kauf | AD106: Kauf | AE106: Kauf | AF106: Kauf | AH106: 2005-11-18 | AI106: 5123.5 | AJ106: 0.006433236753 | AM106: 312.739 | CR106: 1 | CS106: 1 | CT106: 1 | CU106: 3
A107: 2005-11-25 | B107: 3.26 | C107: Kauf | D107: 0 | E107: 0 | F107: 4.43 | G107: Verkauf | H107: 0 | I107: 0 | J107: 52.14 | K107: Kauf | L107: 0 | M107: 0 | N107: 1.1728 | O107: Kauf | P107: 0 | Q107: 0 | S107: Kauf | T107: 404.01 | U107: Kauf | V107: 0 | W107: 0 | X107: 2263.01 | Y107: Kauf | Z107: K | AA107: 0 | AC107: Kauf | AD107: Kauf | AE107: Kauf | AF107: Kauf | AH107: 2005-11-25 | AI107: 5194.27 | AJ107: 0.01381282327 | AM107: 312.739 | CR107: 1 | CS107: 1 | CT107: 1 | CU107: 3
A108: 2005-12-02 | B108: 3.27 | C108: Kauf | D108: 0 | E108: 0 | F108: 4.52 | G108: Verkauf | H108: 0 | I108: 0 | J108: 54 | K108: Kauf | L108: 0 | M108: 0 | N108: 1.1717 | O108: Kauf | P108: 0 | Q108: K | S108: Kauf | T108: 403.03 | U108: Kauf | V108: 0 | W108: 0 | X108: 2273.37 | Y108: Kauf | Z108: K | AA108: 0 | AC108: Kauf | AD108: Kauf | AE108: Kauf | AF108: Kauf | AH108: 2005-12-02 | AI108: 5307.99 | AJ108: 0.02189335556 | AM108: 323.377 | CR108: 1 | CS108: 1 | CT108: 1 | CU108: 3
A109: 2005-12-09 | B109: 3.25 | C109: Kauf | D109: =IF(B109>MAX(B71:B108),"V","0") -> 0 | E109: =IF(B109<MIN(B71:B108),"K","0") -> 0 | F109: 4.53 | G109: Verkauf | H109: 0 | I109: 0 | J109: 56.22 | K109: Kauf | L109: 0 | M109: 0 | N109: 1.1813 | O109: Kauf | P109: 0 | Q109: 0 | S109: Kauf | T109: 409.82 | U109: Kauf | V109: 0 | W109: 0 | X109: 2256.73 | Y109: Kauf | Z109: 0 | AA109: 0 | AC109: Kauf | AD109: Kauf | AE109: Kauf | AF109: Kauf | AH109: 2005-12-09 | AI109: 5282.13 | AJ109: -0.004871900663 | AM109: 327.809 | CR109: 1 | CS109: 1 | CT109: 1 | CU109: 3
A110: 2005-12-16 | B110: 3.26 | C110: Kauf | D110: 0 | E110: 0 | F110: 4.44 | G110: Verkauf | H110: 0 | I110: 0 | J110: 58.55 | K110: Verkauf | L110: V | M110: 0 | N110: 1.2012 | O110: Kauf | P110: 0 | Q110: 0 | S110: Kauf | T110: 417.82 | U110: Kauf | V110: 0 | W110: 0 | X110: 2252.48 | Y110: Kauf | Z110: 0 | AA110: 0 | AC110: Kauf | AD110: Kauf | AE110: Kauf | AF110: Kauf | AH110: 2005-12-16 | AI110: 5353.66 | AJ110: 0.01354188557 | AM110: 326.362 | CR110: 1 | CS110: 1 | CT110: 1 | CU110: 3
A111: 2005-12-23 | B111: 3.28 | C111: Kauf | D111: 0 | E111: 0 | F111: 4.38 | G111: Verkauf | H111: =IF(F111>MAX(F73:F110),"V","0") -> 0 | I111: =IF(F111<MIN(F73:F110),"K","0") -> 0 | J111: 56.19 | K111: Verkauf | L111: 0 | M111: 0 | N111: 1.1875 | O111: Kauf | P111: 0 | Q111: 0 | S111: Kauf | T111: 411.65 | U111: Kauf | V111: 0 | W111: 0 | X111: 2249.42 | Y111: Kauf | Z111: 0 | AA111: 0 | AC111: Kauf | AD111: Kauf | AE111: Kauf | AF111: Kauf | AH111: 2005-12-23 | AI111: 5419.05 | AJ111: 0.01221407411 | AK111: 1268 | AM111: 326.307 | CR111: 1 | CS111: 1 | CT111: 1 | CU111: 3
A112: 2005-12-30 | B112: 3.22 | C112: Kauf | D112: 0 | E112: 0 | F112: 4.4 | G112: Verkauf | H112: 0 | I112: 0 | J112: 58.69 | K112: Verkauf | L112: V | M112: 0 | N112: 1.1837 | O112: Kauf | P112: 0 | Q112: 0 | S112: Kauf | T112: 405.11 | U112: Kauf | V112: 0 | W112: 0 | X112: 2205.32 | Y112: Kauf | Z112: 0 | AA112: 0 | AC112: Kauf | AD112: Kauf | AE112: Kauf | AF112: Kauf | AH112: 2005-12-30 | AI112: 5408.26 | AJ112: -0.001991123905 | AK112: 1248 | AM112: 331.832 | CR112: 1 | CS112: 1 | CT112: 1 | CU112: 3
A113: 2006-01-06 | B113: 3.18 | C113: Kauf | D113: 0 | E113: 0 | F113: 4.38 | G113: Verkauf | H113: 0 | I113: 0 | J113: 62.92 | K113: Verkauf | L113: V | M113: 0 | N113: 1.2154 | O113: Verkauf | P113: V | Q113: 0 | S113: Kauf | T113: 415.15 | U113: Kauf | V113: 0 | W113: 0 | X113: 2305.62 | Y113: Kauf | Z113: K | AA113: 0 | AC113: Kauf | AD113: Verkauf | AE113: Kauf | AF113: Kauf | AH113: 2006-01-06 | AI113: 5536.32 | AJ113: 0.02367859533 | AK113: 1285 | AM113: 339.466 | CC113: 5536.32 | CR113: 1 | CS113: 0 | CT113: 1 | CU113: 2
A114: 2006-01-13 | B114: 3.21 | C114: Kauf | D114: 0 | E114: 0 | F114: 4.36 | G114: Verkauf | H114: 0 | I114: 0 | J114: 61.42 | K114: Verkauf | L114: 0 | M114: 0 | N114: 1.212 | O114: Verkauf | P114: 0 | Q114: 0 | S114: Kauf | T114: 415.85 | U114: Kauf | V114: 0 | W114: 0 | X114: 2317.04 | Y114: Kauf | Z114: K | AA114: 0 | AC114: Kauf | AD114: Verkauf | AE114: Kauf | AF114: Kauf | AH114: 2006-01-13 | AI114: 5483.09 | AJ114: -0.009614689902 | AK114: 1287 | AL114: 16454 | AM114: 336.841 | CR114: 1 | CS114: 0 | CT114: 1 | CU114: 2
A115: 2006-01-20 | B115: 3.25 | C115: Kauf | D115: 0 | E115: 0 | F115: 4.35 | G115: Verkauf | H115: 0 | I115: 0 | J115: 64.21 | K115: Verkauf | L115: V | M115: 0 | N115: 1.2134 | O115: Verkauf | P115: 0 | Q115: 0 | S115: Kauf | T115: 421.31 | U115: Kauf | V115: K | W115: 0 | X115: 2247.7 | Y115: Kauf | Z115: 0 | AA115: 0 | AC115: Kauf | AD115: Verkauf | AE115: Kauf | AF115: Kauf | AH115: 2006-01-20 | AI115: 5349.02 | AJ115: -0.02445154101 | AK115: 1261 | AL115: 15696 | AM115: 345.151 | CR115: 1 | CS115: 0 | CT115: 1 | CU115: 2
A116: 2006-01-27 | B116: 3.39 | C116: Verkauf | D116: V | E116: 0 | F116: 4.52 | G116: Verkauf | H116: 0 | I116: 0 | J116: 64.77 | K116: Verkauf | L116: V | M116: 0 | N116: 1.2087 | O116: Verkauf | P116: 0 | Q116: 0 | S116: Kauf | T116: 416.07 | U116: Kauf | V116: 0 | W116: 0 | X116: 2304.23 | Y116: Kauf | Z116: 0 | AA116: 0 | AC116: Verkauf | AD116: Verkauf | AE116: Kauf | AF116: =IF(OR(AND(AC116="Kauf",AD116="Kauf"),AND(AC116="Kauf",AE116="Kauf"),AND(AD116="Kauf",AE116="Kauf")),"Kauf",IF(OR(AND(AC116="Verkauf",AD116="Verkauf"),AND(AC116="Verkauf",AE116="Verkauf"),AND(AD116="Verkauf",AE116="Verkauf")),"Verkauf","")) -> Verkauf | AH116: 2006-01-27 | AI116: 5647.42 | AJ116: 0.05578591966 | AK116: 1283 | AL116: 16460 | AM116: 346.955 | BZ116: 5647.42 | CR116: 0 | CS116: 0 | CT116: 1 | CU116: 1
A117: 2006-02-03 | B117: 3.42 | C117: Verkauf | D117: V | E117: 0 | F117: 4.53 | G117: Verkauf | H117: 0 | I117: 0 | J117: 62.37 | K117: Verkauf | L117: 0 | M117: 0 | N117: 1.2027 | O117: Verkauf | P117: 0 | Q117: 0 | S117: Kauf | T117: 405.37 | U117: Kauf | V117: 0 | W117: 0 | X117: 2262.58 | Y117: Kauf | Z117: 0 | AA117: 0 | AC117: Verkauf | AD117: Verkauf | AE117: Kauf | AF117: Verkauf | AH117: 2006-02-03 | AI117: 5657.12 | AJ117: 0.001717598479 | AK117: 1264 | AL117: 16659 | AM117: 345.896 | CR117: 0 | CS117: 0 | CT117: 1 | CU117: 1
A118: 2006-02-10 | B118: 3.38 | C118: Verkauf | D118: 0 | E118: 0 | F118: 4.59 | G118: Verkauf | H118: 0 | I118: 0 | J118: 59.1 | K118: Kauf | L118: 0 | M118: K | N118: 1.2065 | O118: Verkauf | P118: 0 | Q118: 0 | S118: Kauf | T118: 405.08 | U118: Kauf | V118: 0 | W118: 0 | X118: 2261.88 | Y118: Kauf | Z118: 0 | AA118: 0 | AC118: Verkauf | AD118: Kauf | AE118: Kauf | AF118: Kauf | AH118: 2006-02-10 | AI118: 5701.47 | AJ118: 0.00783967814 | AK118: 1266 | AL118: 16257 | AM118: 331.599 | BY118: 5701.47 | CR118: 0 | CS118: 1 | CT118: 1 | CU118: 2
A119: 2006-02-17 | B119: 3.38 | C119: Verkauf | D119: 0 | E119: 0 | F119: 4.54 | G119: Verkauf | H119: 0 | I119: 0 | J119: 57.9 | K119: Kauf | L119: 0 | M119: K | N119: 1.1936 | O119: Verkauf | P119: 0 | Q119: 0 | S119: Kauf | T119: 409.66 | U119: Kauf | V119: 0 | W119: 0 | X119: 2282.36 | Y119: Kauf | Z119: 0 | AA119: 0 | AC119: Verkauf | AD119: Kauf | AE119: Kauf | AF119: Kauf | AH119: 2006-02-17 | AI119: 5795.48 | AJ119: 0.0164887301 | AK119: 1287 | AL119: 15713 | AM119: 326.15 | CR119: 0 | CS119: 1 | CT119: 1 | CU119: 2
A120: 2006-02-24 | B120: 3.41 | C120: Verkauf | D120: 0 | E120: 0 | F120: 4.58 | G120: Verkauf | H120: 0 | I120: 0 | J120: 60.3 | K120: Kauf | L120: 0 | M120: 0 | N120: 1.187 | O120: Verkauf | P120: 0 | Q120: 0 | S120: Kauf | T120: 411.98 | U120: Kauf | V120: 0 | W120: 0 | X120: 2287.04 | Y120: Kauf | Z120: 0 | AA120: 0 | AC120: Verkauf | AD120: Kauf | AE120: Kauf | AF120: Kauf | AH120: 2006-02-24 | AI120: 5870.79 | AJ120: 0.01299460959 | AK120: 1289 | AL120: 16101 | AM120: 328.901 | CR120: 0 | CS120: 1 | CT120: 1 | CU120: 2
A121: 2006-03-03 | B121: 3.51 | C121: Verkauf | D121: V | E121: 0 | F121: 4.69 | G121: Verkauf | H121: V | I121: 0 | J121: 62.13 | K121: Kauf | L121: 0 | M121: 0 | N121: 1.204 | O121: Verkauf | P121: 0 | Q121: 0 | S121: Kauf | T121: 411.88 | U121: Kauf | V121: 0 | W121: 0 | X121: 2302.6 | Y121: Kauf | Z121: 0 | AA121: 0 | AC121: Verkauf | AD121: Kauf | AE121: Kauf | AF121: Kauf | AH121: 2006-03-03 | AI121: 5721.46 | AJ121: -0.02543609974 | AK121: 1287 | AL121: 15663 | AM121: 331.339 | CR121: 0 | CS121: 1 | CT121: 1 | CU121: 2
A122: 2006-03-10 | B122: 3.58 | C122: Verkauf | D122: V | E122: 0 | F122: 4.76 | G122: Verkauf | H122: V | I122: 0 | J122: 57.86 | K122: Kauf | L122: 0 | M122: K | N122: 1.1913 | O122: Verkauf | P122: 0 | Q122: 0 | S122: Kauf | T122: 399.93 | U122: Kauf | V122: 0 | W122: 0 | X122: 2262.04 | Y122: Kauf | Z122: 0 | AA122: 0 | AC122: Verkauf | AD122: Kauf | AE122: Kauf | AF122: Kauf | AH122: 2006-03-10 | AI122: 5804.92 | AJ122: 0.01458718579 | AK122: 1281 | AL122: 16115 | AM122: 319.423 | CR122: 0 | CS122: 1 | CT122: 1 | CU122: 2
A123: 2006-03-17 | B123: 3.57 | C123: Verkauf | D123: 0 | E123: 0 | F123: 4.68 | G123: Verkauf | H123: 0 | I123: 0 | J123: 63.43 | K123: Verkauf | L123: V | M123: 0 | N123: 1.2188 | O123: Verkauf | P123: V | Q123: 0 | S123: Kauf | T123: 408.11 | U123: Kauf | V123: 0 | W123: 0 | X123: 2306.48 | Y123: Kauf | Z123: 0 | AA123: 0 | AC123: Verkauf | AD123: Verkauf | AE123: Kauf | AF123: Verkauf | AH123: 2006-03-17 | AI123: 5882.38 | AJ123: 0.01334385315 | AK123: 1307 | AL123: 16339 | AM123: 325.827 | BZ123: 5882.38 | CR123: 0 | CS123: 0 | CT123: 1 | CU123: 1
A124: 2006-03-24 | B124: 3.6 | C124: Verkauf | D124: V | E124: 0 | F124: 4.67 | G124: Verkauf | H124: 0 | I124: 0 | J124: 62.47 | K124: Verkauf | L124: 0 | M124: 0 | N124: 1.2037 | O124: Verkauf | P124: 0 | Q124: 0 | S124: Kauf | T124: 399.74 | U124: Verkauf | V124: 0 | W124: V | X124: 2312.82 | Y124: Kauf | Z124: 0 | AA124: 0 | AC124: Verkauf | AD124: Verkauf | AE124: Kauf | AF124: Verkauf | AH124: 2006-03-24 | AI124: 5973.14 | AJ124: 0.01542912903 | AK124: 1302 | AL124: 17059 | AM124: 326.975 | CR124: 0 | CS124: 0 | CT124: 1 | CU124: 1
A125: 2006-03-31 | B125: 3.71 | C125: Verkauf | D125: V | E125: 0 | F125: 4.86 | G125: Verkauf | H125: V | I125: 0 | J125: 66.3 | K125: Verkauf | L125: V | M125: 0 | N125: 1.2119 | O125: Verkauf | P125: 0 | Q125: 0 | S125: Kauf | T125: 389.01 | U125: Verkauf | V125: 0 | W125: V | X125: 2339.79 | Y125: Kauf | Z125: K | AA125: 0 | AC125: Verkauf | AD125: Verkauf | AE125: Kauf | AF125: Verkauf | AH125: 2006-03-31 | AI125: 5970.08 | AJ125: -0.0005122933666 | AK125: 1294 | AL125: 17563 | AM125: 333.181 | CR125: 0 | CS125: 0 | CT125: 1 | CU125: 1
A126: 2006-04-07 | B126: 3.8 | C126: Verkauf | D126: V | E126: 0 | F126: 4.99 | G126: Verkauf | H126: V | I126: 0 | J126: 67 | K126: Verkauf | L126: V | M126: 0 | N126: 1.2092 | O126: Verkauf | P126: 0 | Q126: 0 | S126: Kauf | T126: 386.12 | U126: Verkauf | V126: 0 | W126: V | X126: 2339.02 | Y126: Kauf | Z126: 0 | AA126: 0 | AC126: Verkauf | AD126: Verkauf | AE126: Kauf | AF126: Verkauf | AH126: 2006-04-07 | AI126: 5952.92 | AJ126: -0.002874333342 | AK126: 1292 | AL126: 17233 | AM126: 337.183 | CR126: 0 | CS126: 0 | CT126: 1 | CU126: 1
A127: 2006-04-14 | B127: 3.84 | C127: Verkauf | D127: V | E127: 0 | F127: 5.05 | G127: Verkauf | H127: V | I127: 0 | J127: 69.54 | K127: Verkauf | L127: V | M127: 0 | N127: 1.2114 | O127: Verkauf | P127: 0 | Q127: 0 | S127: Kauf | T127: 382.49 | U127: Verkauf | V127: 0 | W127: V | X127: 2326.11 | Y127: Kauf | Z127: 0 | AA127: 0 | AC127: Verkauf | AD127: Verkauf | AE127: Kauf | AF127: Verkauf | AH127: 2006-04-14 | AI127: 5918.57 | AJ127: -0.005770277444 | AK127: 1289 | AL127: 17000 | AM127: 337.183 | CR127: 0 | CS127: 0 | CT127: 1 | CU127: 1
A128: 2006-04-21 | B128: 3.83 | C128: Verkauf | D128: 0 | E128: 0 | F128: 5.02 | G128: Verkauf | H128: 0 | I128: 0 | J128: 74.23 | K128: Verkauf | L128: V | M128: 0 | N128: 1.2341 | O128: Verkauf | P128: V | Q128: 0 | S128: Kauf | T128: 398.36 | U128: Verkauf | V128: 0 | W128: 0 | X128: 2342.86 | Y128: Kauf | Z128: K | AA128: 0 | AC128: Verkauf | AD128: Verkauf | AE128: Kauf | AF128: Verkauf | AH128: 2006-04-21 | AI128: 6094.75 | AJ128: 0.02976732555 | AK128: 1311 | AL128: 17403 | AM128: 358.59 | CR128: 0 | CS128: 0 | CT128: 1 | CU128: 1
A129: 2006-04-28 | B129: 3.92 | C129: Verkauf | D129: V | E129: 0 | F129: 5.06 | G129: Verkauf | H129: V | I129: 0 | J129: 72.69 | K129: Verkauf | L129: 0 | M129: 0 | N129: 1.2635 | O129: Verkauf | P129: V | Q129: 0 | S129: Kauf | T129: 397.46 | U129: Verkauf | V129: 0 | W129: 0 | X129: 2322.57 | Y129: Kauf | Z129: 0 | AA129: 0 | AC129: Verkauf | AD129: Verkauf | AE129: Kauf | AF129: Verkauf | AH129: 2006-04-28 | AI129: 6009.89 | AJ129: -0.01392345871 | AK129: 1310 | AL129: 16903 | AM129: 349.886 | CR129: 0 | CS129: 0 | CT129: 1 | CU129: 1
A130: 2006-05-05 | B130: 3.95 | C130: Verkauf | D130: V | E130: 0 | F130: 5.11 | G130: Verkauf | H130: V | I130: 0 | J130: 71.76 | K130: Verkauf | L130: 0 | M130: 0 | N130: 1.2731 | O130: Verkauf | P130: V | Q130: 0 | S130: Kauf | T130: 411.05 | U130: Verkauf | V130: 0 | W130: 0 | X130: 2342.57 | Y130: Kauf | Z130: 0 | AA130: 0 | AC130: Verkauf | AD130: Verkauf | AE130: Kauf | AF130: Verkauf | AH130: 2006-05-05 | AI130: 6113.29 | AJ130: 0.0172049738 | AK130: 1325 | AL130: 17153 | AM130: 351.92 | CR130: 0 | CS130: 0 | CT130: 1 | CU130: 1
A131: 2006-05-12 | B131: 3.99 | C131: Verkauf | D131: V | E131: 0 | F131: 5.19 | G131: Verkauf | H131: V | I131: 0 | J131: 70.69 | K131: Verkauf | L131: 0 | M131: 0 | N131: 1.2936 | O131: Verkauf | P131: V | Q131: 0 | S131: Kauf | T131: 400.07 | U131: Verkauf | V131: 0 | W131: 0 | X131: 2243.78 | Y131: Verkauf | Z131: 0 | AA131: V | AC131: Verkauf | AD131: Verkauf | AE131: Verkauf | AF131: Verkauf | AH131: 2006-05-12 | AI131: 5916.28 | AJ131: -0.03222650978 | AK131: 1291 | AL131: 16601 | AM131: 361.746 | CR131: 0 | CS131: 0 | CT131: 0 | CU131: 0
A132: 2006-05-19 | B132: 3.89 | C132: Verkauf | D132: 0 | E132: 0 | F132: 5.07 | G132: Verkauf | H132: 0 | I132: 0 | J132: 66.62 | K132: Kauf | L132: 0 | M132: K | N132: 1.277 | O132: Verkauf | P132: 0 | Q132: 0 | S132: Kauf | T132: 396.75 | U132: Verkauf | V132: 0 | W132: 0 | X132: 2193.88 | Y132: Verkauf | Z132: 0 | AA132: V | AC132: Verkauf | AD132: Kauf | AE132: Verkauf | AF132: Verkauf | AH132: 2006-05-19 | AI132: 5672.28 | AJ132: -0.04124213188 | AK132: 1267 | AL132: 16155 | AM132: 342.287 | CD132: 5672.28 | CR132: 0 | CS132: 1 | CT132: 0 | CU132: 1
A133: 2006-05-26 | B133: 3.79 | C133: Verkauf | D133: 0 | E133: 0 | F133: 5.05 | G133: Verkauf | H133: 0 | I133: 0 | J133: 69.42 | K133: Kauf | L133: 0 | M133: 0 | N133: 1.2737 | O133: Verkauf | P133: 0 | Q133: 0 | S133: Kauf | T133: 404.16 | U133: Verkauf | V133: 0 | W133: 0 | X133: 2210.37 | Y133: Verkauf | Z133: 0 | AA133: 0 | AC133: Verkauf | AD133: Kauf | AE133: Verkauf | AF133: Verkauf | AH133: 2006-05-26 | AI133: 5788.36 | AJ133: 0.02046443405 | AK133: 1280 | AL133: 15970 | AM133: 347.817 | CR133: 0 | CS133: 1 | CT133: 0 | CU133: 1
A134: 2006-06-02 | B134: 3.89 | C134: Verkauf | D134: 0 | E134: 0 | F134: 5 | G134: Verkauf | H134: 0 | I134: 0 | J134: 67.44 | K134: Kauf | L134: 0 | M134: 0 | N134: 1.2934 | O134: Verkauf | P134: 0 | Q134: 0 | S134: =IF(O134>"",(IF(AND(AND(MONTH(A134)>5,MONTH(A134)<10,DAY(A134)>8)),"Verkauf","Kauf")),"") -> Kauf | T134: 415.9 | U134: Kauf | V134: K | W134: 0 | X134: 2219.41 | Y134: Verkauf | Z134: 0 | AA134: 0 | AC134: Verkauf | AD134: Kauf | AE134: Verkauf | AF134: Verkauf | AH134: 2006-06-02 | AI134: 5687.04 | AJ134: -0.01750409442 | AK134: 1288 | AL134: 15789 | AM134: 350.054 | CR134: 0 | CS134: 1 | CT134: 0 | CU134: 1
A135: 2006-06-09 | B135: 3.83 | C135: Verkauf | D135: 0 | E135: 0 | F135: 4.98 | G135: Verkauf | H135: 0 | I135: 0 | J135: 68.52 | K135: Kauf | L135: 0 | M135: 0 | N135: 1.2642 | O135: Verkauf | P135: 0 | Q135: 0 | S135: =IF(O135>"",(IF(AND(AND(MONTH(A135)>5,MONTH(A135)<10,DAY(A135)>8)),"Verkauf","Kauf")),"") -> Verkauf | T135: 412.23 | U135: Kauf | V135: 0 | W135: 0 | X135: 2135.06 | Y135: Verkauf | Z135: 0 | AA135: V | AC135: Verkauf | AD135: Verkauf | AE135: =IF(A135>0,(IF(AND(U135="Kauf",Y135="Kauf"),"Kauf",IF(AND(U135="Verkauf",Y135="Verkauf"),"Verkauf",AE134))),"") -> Verkauf | AF135: Verkauf | AH135: 2006-06-09 | AI135: 5464.08 | AJ135: -0.0392049291 | AK135: 1252 | AL135: 14750 | AM135: 340.093 | CC135: 5464.08 | CR135: 0 | CS135: 0 | CT135: 0 | CU135: 0
A136: 2006-06-16 | B136: 3.84 | C136: Verkauf | D136: 0 | E136: 0 | F136: 5.13 | G136: Verkauf | H136: 0 | I136: 0 | J136: 63.8 | K136: Kauf | L136: 0 | M136: K | N136: 1.2648 | O136: Verkauf | P136: 0 | Q136: 0 | S136: =IF(O136>"",(IF(AND(MONTH(A136)>5,MONTH(A136)<10),"Verkauf","Kauf")),"") -> Verkauf | T136: 410.77 | U136: Kauf | V136: 0 | W136: 0 | X136: 2129.95 | Y136: Verkauf | Z136: 0 | AA136: V | AC136: Verkauf | AD136: Verkauf | AE136: Verkauf | AF136: Verkauf | AH136: 2006-06-16 | AI136: 5376.01 | AJ136: -0.01611799242 | AK136: 1251 | AL136: 14879 | AM136: 339.221 | BY136: =IF(AND(AF136="Kauf",OR(AF135="",AF135="Verkauf")),AI136,"") ->  | BZ136: =IF(AND(AF136="Verkauf",OR(AF135="",AF135="Kauf")),AI136,"") ->  | CA136: =IF(AND(AC136="Verkauf",AC135<>"Verkauf",BZ136=""),AI136,"") ->  | CB136: =IF(AND(AC136="Kauf",AC135<>"Kauf",BY136=""),AI136,"") ->  | CC136: =IF(AND(AD136="Verkauf",AD135<>"Verkauf",BZ136=""),AI136,"") ->  | CD136: =IF(AND(AD136="Kauf",AD135<>"Kauf",BY136=""),AI136,"") ->  | CR136: =IF($A136 = "","",IF(AC136 ="verkauf","0","1")) -> 0 | CS136: =IF($A136 = "","",IF(AD136 ="verkauf","0","1")) -> 0 | CT136: =IF($A136 = "","",IF(AE136 ="verkauf","0","1")) -> 0 | CU136: =SUM(CR136+CS136+CT136) -> 0
A137: 2006-06-23 | B137: 3.97 | C137: =IF(B137>0,IF(E137="K","Kauf",IF(D137="V","Verkauf",C136)),"") -> Verkauf | D137: 0 | E137: 0 | F137: 5.23 | G137: =IF(F137>0,IF(I137="K","Kauf",IF(H137="V","Verkauf",G136)),"") -> Verkauf | H137: V | I137: 0 | J137: 70.3 | K137: =IF(J137>0,IF(M137="K","Kauf",IF(L137="V","Verkauf",K136)),"") -> Verkauf | L137: V | M137: 0 | N137: 1.2512 | O137: Verkauf | P137: 0 | Q137: 0 | S137: Verkauf | T137: 406.17 | U137: =IF(T137>0,IF(W137="V","Verkauf",IF(V137="K","Kauf",U136)),"") -> Kauf | V137: 0 | W137: 0 | X137: 2121.47 | Y137: =IF(AA137="V","Verkauf",IF(Z137="K","Kauf",Y136)) -> Verkauf | Z137: 0 | AA137: V | AC137: Verkauf | AD137: Verkauf | AE137: Verkauf | AF137: Verkauf | AH137: 2006-06-23 | AI137: 5529.74 | AJ137: =IF(AI137>0,(AI137-AI136)/AI136,"") -> 0.02859555693 | AK137: 1244 | AL137: 15124 | AM137: 335.037 | CR137: 0 | CS137: 0 | CT137: 0 | CU137: 0
A138: 2006-06-30 | B138: 4.01 | C138: Verkauf | D138: V | E138: 0 | F138: 5.15 | G138: Verkauf | H138: 0 | I138: 0 | J138: 73.7 | K138: Verkauf | L138: V | M138: 0 | N138: 1.2788 | O138: Verkauf | P138: 0 | Q138: 0 | S138: Verkauf | T138: 413.95 | U138: Kauf | V138: 0 | W138: 0 | X138: 2172.09 | Y138: Verkauf | Z138: 0 | AA138: 0 | AC138: Verkauf | AD138: Verkauf | AE138: Verkauf | AF138: Verkauf | AH138: 2006-06-30 | AI138: 5683.31 | AJ138: 0.0277716493 | AK138: 1270 | AL138: 15505 | AM138: 346.388 | CR138: 0 | CS138: 0 | CT138: 0 | CU138: 0
A139: 2006-07-07 | B139: 4.04 | C139: Verkauf | D139: V | E139: 0 | F139: 5.13 | G139: Verkauf | H139: 0 | I139: 0 | J139: 74.13 | K139: Verkauf | L139: V | M139: 0 | N139: 1.281 | O139: Verkauf | P139: 0 | Q139: 0 | S139: Verkauf | T139: 416.65 | U139: Kauf | V139: K | W139: 0 | X139: 2130.06 | Y139: Verkauf | Z139: 0 | AA139: 0 | AC139: Verkauf | AD139: Verkauf | AE139: Verkauf | AF139: Verkauf | AH139: 2006-07-07 | AI139: 5681.85 | AJ139: -0.0002568925503 | AK139: 1265 | AL139: 15307 | AM139: 348.047 | CR139: 0 | CS139: 0 | CT139: 0 | CU139: 0
A140: 2006-07-14 | B140: 3.94 | C140: Verkauf | D140: 0 | E140: 0 | F140: 5.07 | G140: Verkauf | H140: 0 | I140: 0 | J140: 75.76 | K140: Verkauf | L140: V | M140: 0 | N140: 1.265 | O140: Verkauf | P140: 0 | Q140: 0 | S140: Verkauf | T140: 418.12 | U140: Kauf | V140: K | W140: 0 | X140: 2037.35 | Y140: Verkauf | Z140: 0 | AA140: V | AC140: Verkauf | AD140: Verkauf | AE140: Verkauf | AF140: Verkauf | AH140: 2006-07-14 | AI140: 5422.22 | AJ140: -0.04569462411 | AK140: 1236 | AL140: 14845 | AM140: 357.214 | CR140: 0 | CS140: 0 | CT140: 0 | CU140: 0
A141: 2006-07-21 | B141: 3.91 | C141: Verkauf | D141: 0 | E141: 0 | F141: 5.05 | G141: Verkauf | H141: 0 | I141: 0 | J141: 72.3 | K141: Verkauf | L141: 0 | M141: 0 | N141: 1.2695 | O141: Verkauf | P141: 0 | Q141: 0 | S141: Verkauf | T141: 428.02 | U141: Kauf | V141: K | W141: 0 | X141: 2020.39 | Y141: Verkauf | Z141: 0 | AA141: V | AC141: Verkauf | AD141: Verkauf | AE141: Verkauf | AF141: Verkauf | AH141: 2006-07-21 | AI141: 5451.01 | AJ141: 0.005309633324 | AK141: 1240 | AL141: 14821 | AM141: 339.614 | CR141: 0 | CS141: 0 | CT141: 0 | CU141: 0
A142: 2006-07-28 | B142: 3.9 | C142: Verkauf | D142: 0 | E142: 0 | F142: 5 | G142: Verkauf | H142: 0 | I142: 0 | J142: 74.3 | K142: Verkauf | L142: =IF(J142>MAX(J137:J141),"V","0") -> 0 | M142: =IF(J142<MIN(J137:J141),"K","0") -> 0 | N142: 1.276 | O142: Verkauf | P142: 0 | Q142: 0 | S142: Verkauf | T142: 435.02 | U142: Kauf | V142: K | W142: 0 | X142: 2094.14 | Y142: Verkauf | Z142: 0 | AA142: 0 | AC142: Verkauf | AD142: Verkauf | AE142: Verkauf | AF142: Verkauf | AH142: 2006-07-28 | AI142: 5705.42 | AJ142: 0.04667208462 | AK142: 1278 | AL142: 15342 | AM142: 343.829 | CR142: 0 | CS142: 0 | CT142: 0 | CU142: 0
A143: 2006-08-04 | B143: 3.93 | C143: Verkauf | D143: 0 | E143: 0 | F143: 4.901 | G143: Verkauf | H143: 0 | I143: 0 | J143: 76.72 | K143: Verkauf | L143: V | M143: 0 | N143: 1.2878 | O143: Verkauf | P143: 0 | Q143: 0 | S143: Verkauf | T143: 434.05 | U143: Kauf | V143: 0 | W143: 0 | X143: 2085.05 | Y143: Verkauf | Z143: 0 | AA143: 0 | AC143: Verkauf | AD143: Verkauf | AE143: Verkauf | AF143: Verkauf | AH143: 2006-08-04 | AI143: 5723.03 | AJ143: 0.003086538765 | AK143: 1279 | AL143: 15499 | AM143: 350.049 | CR143: 0 | CS143: 0 | CT143: 0 | CU143: 0
A144: 2006-08-11 | B144: 3.92 | C144: Verkauf | D144: 0 | E144: 0 | F144: 4.967 | G144: Verkauf | H144: 0 | I144: 0 | J144: 75.6 | K144: Verkauf | L144: 0 | M144: 0 | N144: 1.2725 | O144: Verkauf | P144: 0 | Q144: 0 | S144: Verkauf | T144: 432.96 | U144: Kauf | V144: 0 | W144: 0 | X144: 2057.71 | Y144: Verkauf | Z144: 0 | AA144: 0 | AC144: Verkauf | AD144: Verkauf | AE144: Verkauf | AF144: Verkauf | AH144: 2006-08-11 | AI144: 5628.37 | AJ144: -0.01654018938 | AK144: 1266 | AL144: 15565 | AM144: 344.529 | CR144: 0 | CS144: 0 | CT144: 0 | CU144: 0
A145: 2006-08-18 | B145: 3.89 | C145: Verkauf | D145: 0 | E145: 0 | F145: 4.85 | G145: Verkauf | H145: 0 | I145: 0 | J145: 72.1 | K145: Kauf | L145: 0 | M145: K | N145: 1.2813 | O145: Verkauf | P145: 0 | Q145: 0 | S145: Verkauf | T145: 438.13 | U145: Kauf | V145: K | W145: 0 | X145: 2161.04 | Y145: Verkauf | Z145: 0 | AA145: 0 | AC145: Verkauf | AD145: Verkauf | AE145: Verkauf | AF145: Verkauf | AH145: 2006-08-18 | AI145: 5817.02 | AJ145: 0.03351769695 | AK145: 1302 | AL145: 16105 | AM145: 332.323 | CR145: 0 | CS145: 0 | CT145: 0 | CU145: 0
A146: 2006-08-25 | B146: 3.76 | C146: Verkauf | D146: 0 | E146: 0 | F146: 4.791 | G146: Verkauf | H146: 0 | I146: 0 | J146: 71.99 | K146: Kauf | L146: 0 | M146: K | N146: 1.2752 | O146: Verkauf | P146: 0 | Q146: 0 | S146: Verkauf | T146: 439.26 | U146: Kauf | V146: K | W146: 0 | X146: 2140.29 | Y146: Verkauf | Z146: 0 | AA146: 0 | AC146: Verkauf | AD146: Verkauf | AE146: Verkauf | AF146: Verkauf | AH146: 2006-08-25 | AI146: 5811.47 | AJ146: -0.0009540967712 | AK146: 1295 | AL146: 15938 | AM146: 336.262 | CR146: 0 | CS146: 0 | CT146: 0 | CU146: 0
A147: 2006-09-01 | B147: 3.74 | C147: Verkauf | D147: 0 | E147: 0 | F147: 4.73 | G147: Verkauf | H147: 0 | I147: 0 | J147: 69.25 | K147: Kauf | L147: 0 | M147: K | N147: 1.2827 | O147: Verkauf | P147: 0 | Q147: 0 | S147: Verkauf | T147: 441.39 | U147: Kauf | V147: K | W147: 0 | X147: 2193.16 | Y147: Kauf | Z147: K | AA147: 0 | AC147: Verkauf | AD147: Verkauf | AE147: Kauf | AF147: Verkauf | AH147: 2006-09-01 | AI147: 5876.54 | AJ147: 0.01119682283 | AK147: 1311 | AL147: 16140 | AM147: 325.415 | CE147: 2 | CF147: =CE147 -> 2 | CG147: 2 | CH147: 2 | CI147: 10 | CJ147: 10 | CK147: 14 | CL147: 14 | CM147: 20 | CN147: 20 | CO147: 24 | CP147: 24 | CR147: 0 | CS147: 0 | CT147: 1 | CU147: 1
A148: 2006-09-08 | B148: 3.78 | C148: Verkauf | D148: 0 | E148: 0 | F148: 4.78 | G148: Verkauf | H148: 0 | I148: 0 | J148: 66.06 | K148: Kauf | L148: 0 | M148: K | N148: 1.2674 | O148: Verkauf | P148: 0 | Q148: 0 | S148: Verkauf | T148: 434.1 | U148: Kauf | V148: 0 | W148: 0 | X148: 2165.79 | Y148: Kauf | Z148: 0 | AA148: 0 | AC148: Verkauf | AD148: Verkauf | AE148: Kauf | AF148: Verkauf | AH148: 2006-09-08 | AI148: 5795.26 | AJ148: -0.01383126806 | AK148: 1298 | AL148: 16080 | AM148: 320.387 | CE148: 39 | CF148: 39 | CG148: 39 | CH148: 39 | CI148: 6 | CJ148: 6 | CK148: 15 | CL148: 15 | CM148: 13 | CN148: 18 | CO148: 13 | CP148: 18 | CR148: 0 | CS148: 0 | CT148: 1 | CU148: 1
A149: 2006-09-15 | B149: 3.8 | C149: Verkauf | D149: 0 | E149: 0 | F149: 4.798 | G149: Verkauf | H149: 0 | I149: 0 | J149: 59.78 | K149: Kauf | L149: 0 | M149: K | N149: 1.2663 | O149: Verkauf | P149: 0 | Q149: 0 | S149: Verkauf | T149: 425.94 | U149: Kauf | V149: =IF(T149>MAX(T137:T148),"K","0") -> 0 | W149: 0 | X149: 2235.59 | Y149: Kauf | Z149: K | AA149: 0 | AC149: Verkauf | AD149: =IF(OR(AND(K149="Kauf",O149="Kauf"),AND(O149="Kauf",S149="Kauf"),AND(K149="Kauf",S149="Kauf")),"Kauf",IF(OR(AND(K149="Verkauf",O149="Verkauf"),AND(O149="Verkauf",S149="Verkauf"),AND(K149="Verkauf",S149="Verkauf")),"Verkauf","")) -> Verkauf | AE149: Kauf | AF149: Verkauf | AH149: 2006-09-15 | AI149: 5937.87 | AJ149: 0.02460804174 | AK149: 1319 | AL149: 15866 | AM149: 306.317 | CE149: Umlaufrendite | CG149: US Rend.10J | CI149: Öl in $ | CK149: EURO in $ | CM149: DOW Utility | CO149: Nasdaq Com | CR149: 0 | CS149: 0 | CT149: 1 | CU149: 1
A150: 2006-09-22 | B150: 3.69 | C150: Verkauf | D150: 0 | E150: 0 | F150: 4.597 | G150: Verkauf | H150: 0 | I150: 0 | J150: 58.41 | K150: Kauf | L150: 0 | M150: K | N150: 1.2782 | O150: =IF(N150>0,IF(Q150="K","Kauf",IF(P150="V","Verkauf",O149)),"") -> Verkauf | P150: 0 | Q150: 0 | S150: Verkauf | T150: 422.74 | U150: Kauf | V150: 0 | W150: 0 | X150: 2218.93 | Y150: Kauf | Z150: 0 | AA150: 0 | AC150: Verkauf | AD150: Verkauf | AE150: Kauf | AF150: Verkauf | AH150: 2006-09-22 | AI150: 5883.32 | AJ150: -0.009186795939 | AK150: 1314 | AL150: 15633 | AM150: 300.863 | CE150: =CE148 & " W-Hoch" -> 39 W-Hoch | CF150: =CF148 & " W-Tief" -> 39 W-Tief | CG150: =CG148 & " W-Hoch" -> 39 W-Hoch | CH150: =CH148 & " W-Tief" -> 39 W-Tief | CI150: =CI148 & " W-Hoch" -> 6 W-Hoch | CJ150: =CJ148 & " W-Tief" -> 6 W-Tief | CK150: =CK148 & " W-Hoch" -> 15 W-Hoch | CL150: =CL148 & " W-Tief" -> 15 W-Tief | CM150: =CM148 & " W-Hoch" -> 13 W-Hoch | CN150: =CN148 & " W-Tief" -> 18 W-Tief | CO150: =CO148 & " W-Hoch" -> 13 W-Hoch | CP150: =CP148 & " W-Tief" -> 18 W-Tief | CR150: 0 | CS150: 0 | CT150: 1 | CU150: 1
A151: 2006-09-29 | B151: 3.67 | C151: Verkauf | D151: 0 | E151: 0 | F151: 4.633 | G151: Verkauf | H151: 0 | I151: 0 | J151: 58.49 | K151: Kauf | L151: 0 | M151: 0 | N151: 1.2673 | O151: Verkauf | P151: =IF(N151>MAX(N137:N150),"V","0") -> 0 | Q151: =IF(N151<MIN(N137:N150),"K","0") -> 0 | S151: Verkauf | T151: 428.4 | U151: Kauf | V151: 0 | W151: 0 | X151: 2258.43 | Y151: Kauf | Z151: K | AA151: 0 | AC151: Verkauf | AD151: Verkauf | AE151: Kauf | AF151: Verkauf | AH151: 2006-09-29 | AI151: 6004.33 | AJ151: 0.02056831857 | AK151: 1335 | AL151: 16127 | AM151: 305.583 | CE151: =IF(B151="",FALSE,IF($A151<MAX($A$8:$A$693)-(CE$148-1)*7,FALSE,IF(MAX(INDIRECT("Z"&ROW(B151)-((CE$148-1)-(MAX($A$8:$A$693)-$A151)/7) &"S2:Z"&ROW(B151)+(MAX($A$8:$A$693)-$A151)/7&"S2",FALSE))=B151,TRUE,FALSE))) -> FALSE | CF151: =IF(B151="",FALSE,IF($A151<MAX($A$8:$A$693)-(CF$148-1)*7,FALSE,IF(MIN(INDIRECT("Z"&ROW(B151)-((CF$148-1)-(MAX($A$8:$A$693)-$A151)/7) &"S2:Z"&ROW(B151)+(MAX($A$8:$A$693)-$A151)/7&"S2",FALSE))=B151,TRUE,FALSE))) -> FALSE | CG151: =IF(F151="",FALSE,IF($A151<MAX($A$8:$A$693)-(CG$148-1)*7,FALSE,IF(MAX(INDIRECT("Z"&ROW(F151)-((CG$148-1)-(MAX($A$8:$A$693)-$A151)/7) &"S6:Z"&ROW(F151)+(MAX($A$8:$A$693)-$A151)/7&"S6",FALSE))=F151,TRUE,FALSE))) -> FALSE | CH151: =IF(F151="",FALSE,IF($A151<MAX($A$8:$A$693)-(CH$148-1)*7,FALSE,IF(MIN(INDIRECT("Z"&ROW(F151)-((CH$148-1)-(MAX($A$8:$A$693)-$A151)/7) &"S6:Z"&ROW(F151)+(MAX($A$8:$A$693)-$A151)/7&"S6",FALSE))=F151,TRUE,FALSE))) -> FALSE | CI151: =IF(J151="",FALSE,IF($A151<MAX($A$8:$A$693)-(CI$148-1)*7,FALSE,IF(MAX(INDIRECT("Z"&ROW(J151)-((CI$148-1)-(MAX($A$8:$A$693)-$A151)/7) &"S10:Z"&ROW(J151)+(MAX($A$8:$A$693)-$A151)/7&"S10",FALSE))=J151,TRUE,FALSE))) -> FALSE | CJ151: =IF(J151="",FALSE,IF($A151<MAX($A$8:$A$693)-(CJ$148-1)*7,FALSE,IF(MIN(INDIRECT("Z"&ROW(J151)-((CJ$148-1)-(MAX($A$8:$A$693)-$A151)/7) &"S10:Z"&ROW(J151)+(MAX($A$8:$A$693)-$A151)/7&"S10",FALSE))=J151,TRUE,FALSE))) -> FALSE | CK151: =IF(N151="",FALSE,IF($A151<MAX($A$8:$A$693)-(CK$148-1)*7,FALSE,IF(MAX(INDIRECT("Z"&ROW(N151)-((CK$148-1)-(MAX($A$8:$A$693)-$A151)/7) &"S14:Z"&ROW(N151)+(MAX($A$8:$A$693)-$A151)/7&"S14",FALSE))=N151,TRUE,FALSE))) -> FALSE | CL151: =IF(N151="",FALSE,IF($A151<MAX($A$8:$A$693)-(CL$148-1)*7,FALSE,IF(MIN(INDIRECT("Z"&ROW(N151)-((CL$148-1)-(MAX($A$8:$A$693)-$A151)/7) &"S14:Z"&ROW(N151)+(MAX($A$8:$A$693)-$A151)/7&"S14",FALSE))=N151,TRUE,FALSE))) -> FALSE | CM151: =IF($A151<MAX($A$8:$A$693)-(CM$148-1)*7,FALSE,IF(MAX(INDIRECT("Z"&ROW(T151)-((CM$148-1)-(MAX($A$8:$A$693)-$A151)/7) &"S20:Z"&ROW(T151)+(MAX($A$8:$A$693)-$A151)/7&"S20",FALSE))=T151,TRUE,FALSE)) -> FALSE | CN151: =IF($A151<MAX($A$8:$A$693)-(CN$148-1)*7,FALSE,IF(MIN(INDIRECT("Z"&ROW(T151)-((CN$148-1)-(MAX($A$8:$A$693)-$A151)/7) &"S20:Z"&ROW(T151)+(MAX($A$8:$A$693)-$A151)/7&"S20",FALSE))=T151,TRUE,FALSE)) -> FALSE | CO151: =IF($A151<MAX($A$8:$A$693)-(CO$148-1)*7,FALSE,IF(MAX(INDIRECT("Z"&ROW(X151)-((CO$148-1)-(MAX($A$8:$A$693)-$A151)/7) &"S24:Z"&ROW(X151)+(MAX($A$8:$A$693)-$A151)/7&"S24",FALSE))=X151,TRUE,FALSE)) -> FALSE | CP151: =IF($A151<MAX($A$8:$A$693)-(CP$148-1)*7,FALSE,IF(MIN(INDIRECT("Z"&ROW(X151)-((CP$148-1)-(MAX($A$8:$A$693)-$A151)/7) &"S24:Z"&ROW(X151)+(MAX($A$8:$A$693)-$A151)/7&"S24",FALSE))=X151,TRUE,FALSE)) -> FALSE | CR151: 0 | CS151: 0 | CT151: 1 | CU151: 1
A152: 2006-10-06 | B152: 3.68 | C152: Verkauf | D152: 0 | E152: 0 | F152: 4.696 | G152: Verkauf | H152: 0 | I152: 0 | J152: 59.72 | K152: Kauf | L152: 0 | M152: 0 | N152: 1.2598 | O152: Kauf | P152: 0 | Q152: K | S152: Kauf | T152: 429.14 | U152: Kauf | V152: 0 | W152: 0 | X152: 2299.99 | Y152: Kauf | Z152: K | AA152: 0 | AC152: Verkauf | AD152: Kauf | AE152: Kauf | AF152: Kauf | AH152: 2006-10-06 | AI152: 6085.82 | AJ152: 0.0135718723 | AK152: 1349 | AL152: 16436 | AM152: 300.203 | BY152: 6085.82 | CE152: FALSE | CF152: FALSE | CG152: FALSE | CH152: FALSE | CI152: FALSE | CJ152: FALSE | CK152: FALSE | CL152: FALSE | CM152: FALSE | CN152: FALSE | CO152: FALSE | CP152: FALSE | CR152: 0 | CS152: 1 | CT152: 1 | CU152: 2
A153: 2006-10-13 | B153: 3.8 | C153: Verkauf | D153: 0 | E153: 0 | F153: 4.806 | G153: Verkauf | H153: 0 | I153: 0 | J153: 59.88 | K153: Kauf | L153: 0 | M153: 0 | N153: 1.2513 | O153: Kauf | P153: 0 | Q153: K | S153: Kauf | T153: 435.16 | U153: Kauf | V153: 0 | W153: 0 | X153: 2357.29 | Y153: Kauf | Z153: K | AA153: 0 | AC153: Verkauf | AD153: Kauf | AE153: Kauf | AF153: Kauf | AH153: 2006-10-13 | AI153: 6173.68 | AJ153: 0.01443683842 | AK153: 1365 | AL153: 16536 | AM153: 303.392 | CE153: FALSE | CF153: FALSE | CG153: FALSE | CH153: FALSE | CI153: FALSE | CJ153: FALSE | CK153: FALSE | CL153: FALSE | CM153: FALSE | CN153: FALSE | CO153: FALSE | CP153: FALSE | CR153: 0 | CS153: 1 | CT153: 1 | CU153: 2
A154: 2006-10-20 | B154: 3.81 | C154: Verkauf | D154: 0 | E154: 0 | F154: 4.784 | G154: Verkauf | H154: 0 | I154: 0 | J154: 59.52 | K154: Kauf | L154: 0 | M154: 0 | N154: 1.2616 | O154: Kauf | P154: 0 | Q154: 0 | S154: Kauf | T154: 447.46 | U154: Kauf | V154: K | W154: =IF(T154<MIN(T137:T153),"V","0") -> 0 | X154: 2342.3 | Y154: Kauf | Z154: =IF(X154>MAX(X142:X153),"K","0") -> 0 | AA154: =IF(X154<MIN(X137:X153),"V","0") -> 0 | AC154: Verkauf | AD154: Kauf | AE154: Kauf | AF154: Kauf | AH154: 2006-10-20 | AI154: 6202.82 | AJ154: 0.00472003732 | AK154: 1368 | AL154: 16651 | AM154: 305.736 | CE154: FALSE | CF154: FALSE | CG154: FALSE | CH154: FALSE | CI154: FALSE | CJ154: FALSE | CK154: FALSE | CL154: FALSE | CM154: FALSE | CN154: FALSE | CO154: FALSE | CP154: FALSE | CR154: 0 | CS154: 1 | CT154: 1 | CU154: 2
A155: 2006-10-27 | B155: 3.84 | C155: Verkauf | D155: 0 | E155: 0 | F155: 4.675 | G155: Verkauf | H155: 0 | I155: 0 | J155: 59.11 | K155: Kauf | L155: 0 | M155: 0 | N155: 1.274 | O155: Kauf | P155: 0 | Q155: 0 | S155: Kauf | T155: 447.48 | U155: Kauf | V155: K | W155: 0 | X155: 2350.62 | Y155: Kauf | Z155: 0 | AA155: 0 | AC155: Verkauf | AD155: Kauf | AE155: Kauf | AF155: Kauf | AH155: 2006-10-27 | AI155: 6262.54 | AJ155: 0.009627878932 | AK155: 1377 | AL155: 16669 | AM155: 312.373 | CE155: FALSE | CF155: FALSE | CG155: FALSE | CH155: FALSE | CI155: FALSE | CJ155: FALSE | CK155: FALSE | CL155: FALSE | CM155: FALSE | CN155: FALSE | CO155: FALSE | CP155: FALSE | CR155: 0 | CS155: 1 | CT155: 1 | CU155: 2
A156: 2006-11-03 | B156: 3.72 | C156: Verkauf | D156: 0 | E156: 0 | F156: 4.715 | G156: Verkauf | H156: 0 | I156: 0 | J156: 58.13 | K156: Kauf | L156: 0 | M156: K | N156: 1.2717 | O156: Kauf | P156: 0 | Q156: 0 | S156: Kauf | T156: 445.76 | U156: Kauf | V156: 0 | W156: 0 | X156: 2330.79 | Y156: Kauf | Z156: 0 | AA156: 0 | AC156: Verkauf | AD156: Kauf | AE156: Kauf | AF156: Kauf | AH156: 2006-11-03 | AI156: 6241.15 | AJ156: -0.003415547046 | AK156: 1364 | AL156: 16350 | AM156: 309.911 | CE156: FALSE | CF156: FALSE | CG156: FALSE | CH156: FALSE | CI156: FALSE | CJ156: FALSE | CK156: FALSE | CL156: FALSE | CM156: FALSE | CN156: FALSE | CO156: FALSE | CP156: FALSE | CR156: 0 | CS156: 1 | CT156: 1 | CU156: 2
A157: 2006-11-10 | B157: 3.73 | C157: Verkauf | D157: 0 | E157: 0 | F157: 4.67 | G157: Verkauf | H157: 0 | I157: 0 | J157: 60.22 | K157: Verkauf | L157: V | M157: 0 | N157: 1.2863 | O157: Kauf | P157: 0 | Q157: 0 | S157: Kauf | T157: 449.03 | U157: Kauf | V157: K | W157: 0 | X157: 2376.33 | Y157: Kauf | Z157: K | AA157: 0 | AC157: Verkauf | AD157: Kauf | AE157: Kauf | AF157: Kauf | AH157: 2006-11-10 | AI157: 6357.77 | AJ157: 0.01868565889 | AK157: 1380 | AL157: 16112 | AM157: 310.735 | CE157: FALSE | CF157: FALSE | CG157: FALSE | CH157: FALSE | CI157: FALSE | CJ157: FALSE | CK157: FALSE | CL157: FALSE | CM157: FALSE | CN157: FALSE | CO157: FALSE | CP157: FALSE | CR157: 0 | CS157: 1 | CT157: 1 | CU157: 2
A158: 2006-11-17 | B158: 3.75 | C158: Verkauf | D158: 0 | E158: 0 | F158: 4.584 | G158: Verkauf | H158: 0 | I158: 0 | J158: 56.97 | K158: Kauf | L158: 0 | M158: K | N158: 1.2819 | O158: Kauf | P158: 0 | Q158: 0 | S158: Kauf | T158: 449.09 | U158: Kauf | V158: K | W158: 0 | X158: 2439.57 | Y158: Kauf | Z158: K | AA158: 0 | AC158: Verkauf | AD158: Kauf | AE158: Kauf | AF158: Kauf | AH158: 2006-11-17 | AI158: 6412.36 | AJ158: 0.008586343954 | AK158: 1401 | AL158: 16143 | AM158: 305.787 | CE158: FALSE | CF158: FALSE | CG158: FALSE | CH158: FALSE | CI158: FALSE | CJ158: FALSE | CK158: FALSE | CL158: FALSE | CM158: FALSE | CN158: FALSE | CO158: FALSE | CP158: FALSE | CR158: 0 | CS158: 1 | CT158: 1 | CU158: 2
A159: 2006-11-24 | B159: 3.71 | C159: Verkauf | D159: 0 | E159: 0 | F159: 4.548 | G159: Kauf | H159: 0 | I159: K | J159: 59.22 | K159: Kauf | L159: 0 | M159: 0 | N159: 1.3091 | O159: Verkauf | P159: V | Q159: 0 | S159: Kauf | T159: 450.59 | U159: Kauf | V159: K | W159: 0 | X159: 2460.26 | Y159: Kauf | Z159: K | AA159: 0 | AC159: Kauf | AD159: Kauf | AE159: Kauf | AF159: Kauf | AH159: 2006-11-24 | AI159: 6411.96 | AJ159: -6.237952953e-05 | AK159: 1400 | AL159: 15743 | AM159: 305.787 | CB159: 6411.96 | CE159: FALSE | CF159: FALSE | CG159: FALSE | CH159: FALSE | CI159: FALSE | CJ159: FALSE | CK159: FALSE | CL159: FALSE | CM159: FALSE | CN159: FALSE | CO159: FALSE | CP159: FALSE | CR159: 1 | CS159: 1 | CT159: 1 | CU159: 3
A160: 2006-12-01 | B160: 3.71 | C160: Verkauf | D160: 0 | E160: 0 | F160: 4.425 | G160: Kauf | H160: 0 | I160: K | J160: 64.01 | K160: Verkauf | L160: V | M160: 0 | N160: 1.3335 | O160: Verkauf | P160: V | Q160: 0 | S160: Kauf | T160: 456.42 | U160: Kauf | V160: K | W160: 0 | X160: 2402.53 | Y160: Kauf | Z160: 0 | AA160: 0 | AC160: =IF(OR(C160="Kauf",G160="Kauf"),"Kauf",IF(AND(C160="Verkauf",G160="Verkauf"),"Verkauf","")) -> Kauf | AD160: Verkauf | AE160: Kauf | AF160: Kauf | AH160: 2006-12-01 | AI160: 6241.13 | AJ160: -0.02664239952 | AK160: 1396 | AL160: 16321 | AM160: 321.233 | CC160: 6241.13 | CE160: FALSE | CF160: FALSE | CG160: FALSE | CH160: FALSE | CI160: FALSE | CJ160: FALSE | CK160: FALSE | CL160: FALSE | CM160: FALSE | CN160: FALSE | CO160: FALSE | CP160: FALSE | CR160: 1 | CS160: 0 | CT160: 1 | CU160: 2
A161: 2006-12-08 | B161: 3.73 | C161: Verkauf | D161: 0 | E161: 0 | F161: 4.552 | G161: Kauf | H161: 0 | I161: 0 | J161: 63.72 | K161: Verkauf | L161: 0 | M161: 0 | N161: 1.32 | O161: Verkauf | P161: 0 | Q161: 0 | S161: Kauf | T161: 455.91 | U161: Kauf | V161: 0 | W161: 0 | X161: 2436.37 | Y161: Kauf | Z161: 0 | AA161: 0 | AC161: Kauf | AD161: Verkauf | AE161: Kauf | AF161: Kauf | AH161: 2006-12-08 | AI161: 6427.41 | AJ161: 0.02984715909 | AK161: 1409 | AL161: 16417 | AM161: 312.382 | CE161: FALSE | CF161: FALSE | CG161: FALSE | CH161: FALSE | CI161: FALSE | CJ161: FALSE | CK161: FALSE | CL161: FALSE | CM161: FALSE | CN161: FALSE | CO161: FALSE | CP161: FALSE | CR161: 1 | CS161: 0 | CT161: 1 | CU161: 2
A162: 2006-12-15 | B162: 3.82 | C162: Verkauf | D162: 0 | E162: 0 | F162: 4.555 | G162: Kauf | H162: 0 | I162: 0 | J162: 62.48 | K162: Verkauf | L162: 0 | M162: 0 | N162: 1.3067 | O162: Verkauf | P162: 0 | Q162: 0 | S162: Kauf | T162: 460.49 | U162: Kauf | V162: K | W162: 0 | X162: 2460.17 | Y162: Kauf | Z162: 0 | AA162: 0 | AC162: Kauf | AD162: Verkauf | AE162: Kauf | AF162: Kauf | AH162: 2006-12-15 | AI162: 6588.83 | AJ162: 0.0251143151 | AK162: 1427 | AL162: 16914 | AM162: 313.337 | CE162: FALSE | CF162: FALSE | CG162: FALSE | CH162: FALSE | CI162: FALSE | CJ162: FALSE | CK162: FALSE | CL162: FALSE | CM162: FALSE | CN162: FALSE | CO162: FALSE | CP162: FALSE | CR162: 1 | CS162: 0 | CT162: 1 | CU162: 2
A163: 2006-12-22 | B163: 3.89 | C163: Verkauf | D163: 0 | E163: 0 | F163: 4.624 | G163: Kauf | H163: 0 | I163: 0 | J163: 62.2 | K163: Verkauf | L163: 0 | M163: 0 | N163: 1.3141 | O163: Verkauf | P163: 0 | Q163: 0 | S163: Kauf | T163: 455.38 | U163: Kauf | V163: 0 | W163: 0 | X163: 2401.18 | Y163: Kauf | Z163: 0 | AA163: 0 | AC163: Kauf | AD163: Verkauf | AE163: Kauf | AF163: Kauf | AH163: 2006-12-22 | AI163: 6503.13 | AJ163: -0.01300686161 | AK163: 1410 | AL163: 17104 | AM163: 308.857 | CE163: FALSE | CF163: FALSE | CG163: FALSE | CH163: FALSE | CI163: FALSE | CJ163: FALSE | CK163: FALSE | CL163: FALSE | CM163: FALSE | CN163: FALSE | CO163: FALSE | CP163: FALSE | CR163: 1 | CS163: 0 | CT163: 1 | CU163: 2
A164: 2006-12-29 | B164: 3.96 | C164: Verkauf | D164: 0 | E164: 0 | F164: 4.71 | G164: Kauf | H164: 0 | I164: 0 | J164: 60.24 | K164: Verkauf | L164: 0 | M164: 0 | N164: 1.3194 | O164: Verkauf | P164: 0 | Q164: 0 | S164: Kauf | T164: 456.77 | U164: Kauf | V164: 0 | W164: 0 | X164: 2415.29 | Y164: Kauf | Z164: 0 | AA164: 0 | AC164: Kauf | AD164: Verkauf | AE164: Kauf | AF164: Kauf | AH164: 2006-12-29 | AI164: 6596.92 | AJ164: 0.01442228588 | AK164: 1418 | AL164: 17225 | AM164: 307.259 | CE164: FALSE | CF164: FALSE | CG164: FALSE | CH164: FALSE | CI164: FALSE | CJ164: FALSE | CK164: FALSE | CL164: FALSE | CM164: FALSE | CN164: FALSE | CO164: FALSE | CP164: FALSE | CR164: 1 | CS164: 0 | CT164: 1 | CU164: 2
A165: 2007-01-05 | B165: 3.93 | C165: Verkauf | D165: 0 | E165: 0 | F165: 4.646 | G165: Kauf | H165: 0 | I165: 0 | J165: 55.23 | K165: Kauf | L165: 0 | M165: K | N165: 1.3001 | O165: Verkauf | P165: 0 | Q165: 0 | S165: Kauf | T165: 447.65 | U165: Kauf | V165: 0 | W165: 0 | X165: 2434.25 | Y165: Kauf | Z165: 0 | AA165: 0 | AC165: Kauf | AD165: Kauf | AE165: Kauf | AF165: Kauf | AH165: 2007-01-05 | AI165: 6593.09 | AJ165: -0.0005805739648 | AK165: 1409 | AL165: 17091 | AM165: 291.106 | CD165: 6593.09 | CE165: FALSE | CF165: FALSE | CG165: FALSE | CH165: FALSE | CI165: FALSE | CJ165: FALSE | CK165: FALSE | CL165: FALSE | CM165: FALSE | CN165: FALSE | CO165: FALSE | CP165: FALSE | CR165: 1 | CS165: 1 | CT165: 1 | CU165: 3
A166: 2007-01-12 | B166: 4.04 | C166: Verkauf | D166: 0 | E166: 0 | F166: 4.771 | G166: Kauf | H166: 0 | I166: 0 | J166: 52.29 | K166: Kauf | L166: 0 | M166: K | N166: 1.2917 | O166: Verkauf | P166: 0 | Q166: 0 | S166: Kauf | T166: 445.16 | U166: Kauf | V166: 0 | W166: 0 | X166: 2502.82 | Y166: Kauf | Z166: K | AA166: 0 | AC166: Kauf | AD166: Kauf | AE166: Kauf | AF166: Kauf | AH166: 2007-01-12 | AI166: 6705.17 | AJ166: 0.01699961626 | AK166: 1430 | AL166: 17057 | AM166: 290.621 | CE166: FALSE | CF166: FALSE | CG166: FALSE | CH166: FALSE | CI166: FALSE | CJ166: FALSE | CK166: FALSE | CL166: FALSE | CM166: FALSE | CN166: FALSE | CO166: FALSE | CP166: FALSE | CR166: 1 | CS166: 1 | CT166: 1 | CU166: 3
A167: 2007-01-19 | B167: 4.03 | C167: Verkauf | D167: 0 | E167: 0 | F167: 4.773 | G167: Kauf | H167: 0 | I167: 0 | J167: 51.46 | K167: Kauf | L167: 0 | M167: K | N167: 1.2965 | O167: Verkauf | P167: 0 | Q167: 0 | S167: Kauf | T167: 448.12 | U167: Kauf | V167: 0 | W167: 0 | X167: 2451.31 | Y167: Kauf | Z167: 0 | AA167: 0 | AC167: Kauf | AD167: Kauf | AE167: =IF(A167>0,(IF(AND(U167="Kauf",Y167="Kauf"),"Kauf",IF(AND(U167="Verkauf",Y167="Verkauf"),"Verkauf",AE166))),"") -> Kauf | AF167: Kauf | AH167: 2007-01-19 | AI167: 6747.17 | AJ167: 0.006263823289 | AK167: 1430 | AL167: 17310 | AM167: 290.48 | CE167: FALSE | CF167: FALSE | CG167: FALSE | CH167: FALSE | CI167: FALSE | CJ167: FALSE | CK167: FALSE | CL167: FALSE | CM167: FALSE | CN167: FALSE | CO167: FALSE | CP167: FALSE | CR167: 1 | CS167: 1 | CT167: 1 | CU167: 3
A168: 2007-01-26 | B168: 4.04 | C168: Verkauf | D168: 0 | E168: 0 | F168: 4.879 | G168: Kauf | H168: 0 | I168: 0 | J168: 54.12 | K168: Kauf | L168: 0 | M168: 0 | N168: 1.2918 | O168: Verkauf | P168: 0 | Q168: 0 | S168: =IF(O168>"",(IF(AND(MONTH(A168)>5,MONTH(A168)<10),"Verkauf","Kauf")),"") -> Kauf | T168: 451.7 | U168: Kauf | V168: 0 | W168: 0 | X168: 2435.49 | Y168: Kauf | Z168: 0 | AA168: 0 | AC168: Kauf | AD168: Kauf | AE168: Kauf | AF168: Kauf | AH168: 2007-01-26 | AI168: 6690.34 | AJ168: -0.008422790592 | AK168: 1422 | AL168: 17421 | AM168: 295.861 | CE168: FALSE | CF168: FALSE | CG168: FALSE | CH168: FALSE | CI168: FALSE | CJ168: FALSE | CK168: FALSE | CL168: FALSE | CM168: FALSE | CN168: FALSE | CO168: FALSE | CP168: FALSE | CR168: 1 | CS168: 1 | CT168: 1 | CU168: 3
A169: 2007-02-02 | B169: 4.1 | C169: Verkauf | D169: V | E169: 0 | F169: 4.827 | G169: Kauf | H169: 0 | I169: 0 | J169: 57.14 | K169: Kauf | L169: 0 | M169: 0 | N169: 1.2963 | O169: Verkauf | P169: 0 | Q169: 0 | S169: Kauf | T169: 461.46 | U169: Kauf | V169: K | W169: 0 | X169: 2475.88 | Y169: =IF(AA169="V","Verkauf",IF(Z169="K","Kauf",Y168)) -> Kauf | Z169: 0 | AA169: 0 | AC169: Kauf | AD169: Kauf | AE169: Kauf | AF169: Kauf | AH169: 2007-02-02 | AI169: 6885.76 | AJ169: 0.02920927785 | AK169: 1448 | AL169: 17547 | AM169: 301.325 | CE169: FALSE | CF169: FALSE | CG169: FALSE | CH169: FALSE | CI169: FALSE | CJ169: FALSE | CK169: FALSE | CL169: FALSE | CM169: FALSE | CN169: FALSE | CO169: FALSE | CP169: FALSE | CR169: 1 | CS169: 1 | CT169: 1 | CU169: 3
A170: 2007-02-09 | B170: 4.07 | C170: Verkauf | D170: 0 | E170: 0 | F170: 4.784 | G170: Kauf | H170: 0 | I170: 0 | J170: 58.56 | K170: Verkauf | L170: V | M170: 0 | N170: 1.3003 | O170: Verkauf | P170: 0 | Q170: 0 | S170: Kauf | T170: 473.54 | U170: Kauf | V170: K | W170: 0 | X170: 2459.82 | Y170: =IF(AA170="V","Verkauf",IF(Z170="K","Kauf",Y169)) -> Kauf | Z170: 0 | AA170: 0 | AC170: Kauf | AD170: Verkauf | AE170: Kauf | AF170: Kauf | AH170: 2007-02-09 | AI170: 6911.11 | AJ170: 0.003681510828 | AK170: 1438 | AL170: 17505 | AM170: 305.186 | CC170: 6911.11 | CE170: FALSE | CF170: FALSE | CG170: FALSE | CH170: FALSE | CI170: FALSE | CJ170: FALSE | CK170: FALSE | CL170: FALSE | CM170: FALSE | CN170: FALSE | CO170: FALSE | CP170: FALSE | CR170: 1 | CS170: 0 | CT170: 1 | CU170: 2
A171: 2007-02-16 | B171: 4.04 | C171: Verkauf | D171: 0 | E171: 0 | F171: 4.69 | G171: Kauf | H171: 0 | I171: 0 | J171: 56.15 | K171: Verkauf | L171: 0 | M171: 0 | N171: 1.3141 | O171: Verkauf | P171: 0 | Q171: 0 | S171: Kauf | T171: 474.93 | U171: Kauf | V171: K | W171: 0 | X171: 2496.31 | Y171: =IF(AA171="V","Verkauf",IF(Z171="K","Kauf",Y170)) -> Kauf | Z171: 0 | AA171: 0 | AC171: Kauf | AD171: Verkauf | AE171: Kauf | AF171: Kauf | AH171: 2007-02-16 | AI171: 6957.07 | AJ171: 0.006650161841 | AK171: 1455 | AL171: 17875 | AM171: 306.706 | CE171: FALSE | CF171: FALSE | CG171: FALSE | CH171: FALSE | CI171: FALSE | CJ171: FALSE | CK171: FALSE | CL171: FALSE | CM171: FALSE | CN171: FALSE | CO171: FALSE | CP171: FALSE | CR171: 1 | CS171: 0 | CT171: 1 | CU171: 2
A172: 2007-02-23 | B172: 4.07 | C172: Verkauf | D172: 0 | E172: 0 | F172: 4.678 | G172: Kauf | H172: 0 | I172: 0 | J172: 58.26 | K172: Verkauf | L172: 0 | M172: 0 | N172: 1.3169 | O172: Verkauf | P172: 0 | Q172: 0 | S172: Kauf | T172: 481.06 | U172: Kauf | V172: K | W172: 0 | X172: 2515.1 | Y172: =IF(AA172="V","Verkauf",IF(Z172="K","Kauf",Y171)) -> Kauf | Z172: K | AA172: 0 | AC172: Kauf | AD172: Verkauf | AE172: Kauf | AF172: Kauf | AH172: 2007-02-23 | AI172: 6992.58 | AJ172: 0.005104160228 | AK172: 1451 | AL172: 18188 | AM172: 314.626 | CE172: FALSE | CF172: FALSE | CG172: FALSE | CH172: FALSE | CI172: FALSE | CJ172: FALSE | CK172: FALSE | CL172: FALSE | CM172: FALSE | CN172: FALSE | CO172: FALSE | CP172: FALSE | CR172: 1 | CS172: 0 | CT172: 1 | CU172: 2
A173: 2007-03-02 | B173: 3.95 | C173: Verkauf | D173: =IF(B173>MAX(B135:B172),"V","0") -> 0 | E173: =IF(B173<MIN(B135:B172),"K","0") -> 0 | F173: 4.515 | G173: Kauf | H173: 0 | I173: 0 | J173: 62.52 | K173: Verkauf | L173: V | M173: 0 | N173: 1.319 | O173: Verkauf | P173: 0 | Q173: 0 | S173: Kauf | T173: 474.07 | U173: Kauf | V173: 0 | W173: 0 | X173: 2368 | Y173: =IF(X173>0,IF(AA173="V","Verkauf",IF(Z173="K","Kauf",Y172)),"") -> Kauf | Z173: 0 | AA173: 0 | AC173: Kauf | AD173: Verkauf | AE173: Kauf | AF173: Kauf | AH173: 2007-03-02 | AI173: 6603.32 | AJ173: -0.05566757906 | AK173: 1387 | AL173: 17217 | AM173: 310.106 | CE173: FALSE | CF173: FALSE | CG173: FALSE | CH173: FALSE | CI173: FALSE | CJ173: FALSE | CK173: FALSE | CL173: FALSE | CM173: FALSE | CN173: FALSE | CO173: FALSE | CP173: FALSE | CR173: 1 | CS173: 0 | CT173: 1 | CU173: 2
A174: 2007-03-09 | B174: 3.94 | C174: Verkauf | D174: 0 | E174: 0 | F174: 4.589 | G174: Kauf | H174: 0 | I174: 0 | J174: 62.34 | K174: Verkauf | L174: 0 | M174: 0 | N174: 1.3114 | O174: Verkauf | P174: 0 | Q174: 0 | S174: Kauf | T174: 476.23 | U174: Kauf | V174: 0 | W174: 0 | X174: 2387.55 | Y174: Kauf | Z174: 0 | AA174: 0 | AC174: Kauf | AD174: Verkauf | AE174: Kauf | AF174: Kauf | AH174: 2007-03-09 | AI174: 6716.52 | AJ174: 0.01714289176 | AK174: 1402 | AL174: 17164 | AM174: 308.06 | CE174: FALSE | CF174: FALSE | CG174: FALSE | CH174: FALSE | CI174: FALSE | CJ174: FALSE | CK174: FALSE | CL174: FALSE | CM174: FALSE | CN174: FALSE | CO174: FALSE | CP174: FALSE | CR174: 1 | CS174: 0 | CT174: 1 | CU174: 2
A175: 2007-03-16 | B175: 3.93 | C175: Verkauf | D175: 0 | E175: 0 | F175: 4.545 | G175: Kauf | H175: =IF(F175>MAX(F137:F174),"V","0") -> 0 | I175: =IF(F175<MIN(F137:F174),"K","0") -> 0 | J175: 61.32 | K175: Verkauf | L175: 0 | M175: 0 | N175: 1.3298 | O175: Verkauf | P175: V | Q175: 0 | S175: Kauf | T175: 478.56 | U175: Kauf | V175: 0 | W175: 0 | X175: 2372.66 | Y175: Kauf | Z175: 0 | AA175: 0 | AC175: Kauf | AD175: Verkauf | AE175: Kauf | AF175: Kauf | AH175: 2007-03-16 | AI175: 6579.87 | AJ175: -0.02034535742 | AK175: 1386 | AL175: 16744 | AM175: 304.443 | CE175: FALSE | CF175: FALSE | CG175: FALSE | CH175: FALSE | CI175: FALSE | CJ175: FALSE | CK175: FALSE | CL175: FALSE | CM175: FALSE | CN175: FALSE | CO175: FALSE | CP175: FALSE | CR175: 1 | CS175: 0 | CT175: 1 | CU175: 2
A176: 2007-03-23 | B176: 3.99 | C176: Verkauf | D176: 0 | E176: 0 | F176: 4.613 | G176: Kauf | H176: 0 | I176: 0 | J176: 63.56 | K176: Verkauf | L176: V | M176: 0 | N176: 1.3282 | O176: Verkauf | P176: 0 | Q176: 0 | S176: Kauf | T176: 499.56 | U176: Kauf | V176: K | W176: 0 | X176: 2448.93 | Y176: Kauf | Z176: 0 | AA176: 0 | AC176: Kauf | AD176: Verkauf | AE176: Kauf | AF176: Kauf | AH176: 2007-03-23 | AI176: 6899.06 | AJ176: 0.04851007695 | AK176: 1436 | AL176: 17480 | AM176: 310.939 | CE176: FALSE | CF176: FALSE | CG176: FALSE | CH176: FALSE | CI176: FALSE | CJ176: FALSE | CK176: FALSE | CL176: FALSE | CM176: FALSE | CN176: FALSE | CO176: FALSE | CP176: FALSE | CR176: 1 | CS176: 0 | CT176: 1 | CU176: 2
A177: 2007-03-30 | B177: 4.08 | C177: Verkauf | D177: 0 | E177: 0 | F177: 4.648 | G177: Kauf | H177: 0 | I177: 0 | J177: 68.1 | K177: Verkauf | L177: V | M177: 0 | N177: 1.3355 | O177: Verkauf | P177: V | Q177: 0 | S177: Kauf | T177: 500.18 | U177: Kauf | V177: K | W177: 0 | X177: 2421.64 | Y177: Kauf | Z177: 0 | AA177: 0 | AC177: Kauf | AD177: Verkauf | AE177: Kauf | AF177: Kauf | AH177: 2007-03-30 | AI177: 6917.03 | AJ177: 0.00260470267 | AK177: 1420 | AL177: 17287 | AM177: 316.883 | CE177: FALSE | CF177: FALSE | CG177: FALSE | CH177: FALSE | CI177: FALSE | CJ177: FALSE | CK177: FALSE | CL177: FALSE | CM177: FALSE | CN177: FALSE | CO177: FALSE | CP177: FALSE | CR177: 1 | CS177: 0 | CT177: 1 | CU177: 2
A178: 2007-04-06 | B178: 4.12 | C178: Verkauf | D178: V | E178: 0 | F178: 4.674 | G178: Kauf | H178: 0 | I178: 0 | J178: 68.76 | K178: Verkauf | L178: V | M178: 0 | N178: 1.3369 | O178: Verkauf | P178: V | Q178: 0 | S178: Kauf | T178: 510.34 | U178: Kauf | V178: K | W178: 0 | X178: 2471.34 | Y178: Kauf | Z178: 0 | AA178: 0 | AC178: Kauf | AD178: Verkauf | AE178: Kauf | AF178: Kauf | AH178: 2007-04-06 | AI178: 7099.91 | AJ178: 0.02643909308 | AK178: 1443 | AL178: 17484 | AM178: 316.883 | CE178: FALSE | CF178: FALSE | CG178: FALSE | CH178: FALSE | CI178: FALSE | CJ178: FALSE | CK178: FALSE | CL178: FALSE | CM178: FALSE | CN178: FALSE | CO178: FALSE | CP178: FALSE | CR178: 1 | CS178: 0 | CT178: 1 | CU178: 2
A179: 2007-04-13 | B179: 4.23 | C179: Verkauf | D179: V | E179: 0 | F179: 4.761 | G179: Kauf | H179: 0 | I179: 0 | J179: 69.45 | K179: Verkauf | L179: V | M179: 0 | N179: 1.3533 | O179: Verkauf | P179: V | Q179: 0 | S179: Kauf | T179: 510.22 | U179: Kauf | V179: 0 | W179: 0 | X179: 2491.94 | Y179: Kauf | Z179: 0 | AA179: 0 | AC179: Kauf | AD179: Verkauf | AE179: Kauf | AF179: Kauf | AH179: 2007-04-13 | AI179: 7212.07 | AJ179: 0.01579738335 | AK179: 1452 | AL179: 17363 | AM179: 317.928 | CE179: FALSE | CF179: FALSE | CG179: FALSE | CH179: FALSE | CI179: FALSE | CJ179: FALSE | CK179: FALSE | CL179: FALSE | CM179: FALSE | CN179: FALSE | CO179: FALSE | CP179: FALSE | CR179: 1 | CS179: 0 | CT179: 1 | CU179: 2
A180: 2007-04-20 | B180: 4.22 | C180: Verkauf | D180: 0 | E180: 0 | F180: 4.672 | G180: Kauf | H180: 0 | I180: 0 | J180: 65.81 | K180: Verkauf | L180: 0 | M180: 0 | N180: 1.359 | O180: Verkauf | P180: V | Q180: 0 | S180: Kauf | T180: 520.56 | U180: Kauf | V180: K | W180: 0 | X180: 2526.39 | Y180: Kauf | Z180: K | AA180: 0 | AC180: Kauf | AD180: Verkauf | AE180: Kauf | AF180: =IF(OR(AND(AC180="Kauf",AD180="Kauf"),AND(AC180="Kauf",AE180="Kauf"),AND(AD180="Kauf",AE180="Kauf")),"Kauf",IF(OR(AND(AC180="Verkauf",AD180="Verkauf"),AND(AC180="Verkauf",AE180="Verkauf"),AND(AD180="Verkauf",AE180="Verkauf")),"Verkauf","")) -> Kauf | AH180: 2007-04-20 | AI180: 7342.54 | AJ180: 0.01809050661 | AK180: 1484 | AL180: 17452 | AM180: 312.045 | CE180: FALSE | CF180: FALSE | CG180: FALSE | CH180: FALSE | CI180: FALSE | CJ180: FALSE | CK180: FALSE | CL180: FALSE | CM180: FALSE | CN180: FALSE | CO180: FALSE | CP180: FALSE | CR180: 1 | CS180: 0 | CT180: 1 | CU180: 2
A181: 2007-04-27 | B181: 4.24 | C181: Verkauf | D181: V | E181: 0 | F181: 4.698 | G181: Kauf | H181: 0 | I181: 0 | J181: 67.99 | K181: Verkauf | L181: 0 | M181: 0 | N181: 1.365 | O181: Verkauf | P181: V | Q181: 0 | S181: Kauf | T181: 524.38 | U181: Kauf | V181: K | W181: 0 | X181: 2557.21 | Y181: Kauf | Z181: K | AA181: 0 | AC181: Kauf | AD181: Verkauf | AE181: Kauf | AF181: Kauf | AH181: 2007-04-27 | AI181: 7378.12 | AJ181: 0.004845734582 | AK181: 1494 | AL181: 17400 | AM181: 314.203 | CE181: FALSE | CF181: FALSE | CG181: FALSE | CH181: FALSE | CI181: FALSE | CJ181: FALSE | CK181: FALSE | CL181: FALSE | CM181: FALSE | CN181: FALSE | CO181: FALSE | CP181: FALSE | CR181: 1 | CS181: 0 | CT181: 1 | CU181: 2
A182: 2007-05-04 | B182: 4.25 | C182: Verkauf | D182: V | E182: 0 | F182: 4.64 | G182: Kauf | H182: 0 | I182: 0 | J182: 66.97 | K182: Verkauf | L182: 0 | M182: 0 | N182: 1.3594 | O182: Verkauf | P182: 0 | Q182: 0 | S182: Kauf | T182: 526.24 | U182: Kauf | V182: K | W182: 0 | X182: 2572.15 | Y182: Kauf | Z182: K | AA182: 0 | AC182: Kauf | AD182: Verkauf | AE182: Kauf | AF182: Kauf | AH182: 2007-05-04 | AI182: 7516.76 | AJ182: 0.01879069465 | AK182: 1505 | AL182: 17394 | AM182: 311.244 | CE182: FALSE | CF182: FALSE | CG182: FALSE | CH182: FALSE | CI182: FALSE | CJ182: FALSE | CK182: FALSE | CL182: FALSE | CM182: FALSE | CN182: FALSE | CO182: FALSE | CP182: FALSE | CR182: 1 | CS182: 0 | CT182: 1 | CU182: 2
A183: 2007-05-11 | B183: 4.19 | C183: Verkauf | D183: 0 | E183: 0 | F183: 4.67 | G183: Kauf | H183: 0 | I183: 0 | J183: 65.83 | K183: Verkauf | L183: 0 | M183: 0 | N183: 1.3527 | O183: Verkauf | P183: 0 | Q183: 0 | S183: Kauf | T183: 526.54 | U183: Kauf | V183: K | W183: 0 | X183: 2562.22 | Y183: Kauf | Z183: 0 | AA183: 0 | AC183: Kauf | AD183: Verkauf | AE183: Kauf | AF183: Kauf | AH183: 2007-05-11 | AI183: 7479.34 | AJ183: -0.004978208696 | AK183: 1505 | AL183: 17553 | AM183: 311.128 | CE183: =IF(B183="",FALSE,IF($A183<MAX($A$8:$A$693)-(CE$148-1)*7,FALSE,IF(MAX(INDIRECT("Z"&ROW(B183)-((CE$148-1)-(MAX($A$8:$A$693)-$A183)/7) &"S2:Z"&ROW(B183)+(MAX($A$8:$A$693)-$A183)/7&"S2",FALSE))=B183,TRUE,FALSE))) -> FALSE | CF183: =IF(B183="",FALSE,IF($A183<MAX($A$8:$A$693)-(CF$148-1)*7,FALSE,IF(MIN(INDIRECT("Z"&ROW(B183)-((CF$148-1)-(MAX($A$8:$A$693)-$A183)/7) &"S2:Z"&ROW(B183)+(MAX($A$8:$A$693)-$A183)/7&"S2",FALSE))=B183,TRUE,FALSE))) -> FALSE | CG183: =IF(F183="",FALSE,IF($A183<MAX($A$8:$A$693)-(CG$148-1)*7,FALSE,IF(MAX(INDIRECT("Z"&ROW(F183)-((CG$148-1)-(MAX($A$8:$A$693)-$A183)/7) &"S6:Z"&ROW(F183)+(MAX($A$8:$A$693)-$A183)/7&"S6",FALSE))=F183,TRUE,FALSE))) -> FALSE | CH183: =IF(F183="",FALSE,IF($A183<MAX($A$8:$A$693)-(CH$148-1)*7,FALSE,IF(MIN(INDIRECT("Z"&ROW(F183)-((CH$148-1)-(MAX($A$8:$A$693)-$A183)/7) &"S6:Z"&ROW(F183)+(MAX($A$8:$A$693)-$A183)/7&"S6",FALSE))=F183,TRUE,FALSE))) -> FALSE | CI183: =IF(J183="",FALSE,IF($A183<MAX($A$8:$A$693)-(CI$148-1)*7,FALSE,IF(MAX(INDIRECT("Z"&ROW(J183)-((CI$148-1)-(MAX($A$8:$A$693)-$A183)/7) &"S10:Z"&ROW(J183)+(MAX($A$8:$A$693)-$A183)/7&"S10",FALSE))=J183,TRUE,FALSE))) -> FALSE | CJ183: =IF(J183="",FALSE,IF($A183<MAX($A$8:$A$693)-(CJ$148-1)*7,FALSE,IF(MIN(INDIRECT("Z"&ROW(J183)-((CJ$148-1)-(MAX($A$8:$A$693)-$A183)/7) &"S10:Z"&ROW(J183)+(MAX($A$8:$A$693)-$A183)/7&"S10",FALSE))=J183,TRUE,FALSE))) -> FALSE | CK183: =IF(N183="",FALSE,IF($A183<MAX($A$8:$A$693)-(CK$148-1)*7,FALSE,IF(MAX(INDIRECT("Z"&ROW(N183)-((CK$148-1)-(MAX($A$8:$A$693)-$A183)/7) &"S14:Z"&ROW(N183)+(MAX($A$8:$A$693)-$A183)/7&"S14",FALSE))=N183,TRUE,FALSE))) -> FALSE | CL183: =IF(N183="",FALSE,IF($A183<MAX($A$8:$A$693)-(CL$148-1)*7,FALSE,IF(MIN(INDIRECT("Z"&ROW(N183)-((CL$148-1)-(MAX($A$8:$A$693)-$A183)/7) &"S14:Z"&ROW(N183)+(MAX($A$8:$A$693)-$A183)/7&"S14",FALSE))=N183,TRUE,FALSE))) -> FALSE | CM183: =IF($A183<MAX($A$8:$A$693)-(CM$148-1)*7,FALSE,IF(MAX(INDIRECT("Z"&ROW(T183)-((CM$148-1)-(MAX($A$8:$A$693)-$A183)/7) &"S20:Z"&ROW(T183)+(MAX($A$8:$A$693)-$A183)/7&"S20",FALSE))=T183,TRUE,FALSE)) -> FALSE | CN183: =IF($A183<MAX($A$8:$A$693)-(CN$148-1)*7,FALSE,IF(MIN(INDIRECT("Z"&ROW(T183)-((CN$148-1)-(MAX($A$8:$A$693)-$A183)/7) &"S20:Z"&ROW(T183)+(MAX($A$8:$A$693)-$A183)/7&"S20",FALSE))=T183,TRUE,FALSE)) -> FALSE | CO183: =IF($A183<MAX($A$8:$A$693)-(CO$148-1)*7,FALSE,IF(MAX(INDIRECT("Z"&ROW(X183)-((CO$148-1)-(MAX($A$8:$A$693)-$A183)/7) &"S24:Z"&ROW(X183)+(MAX($A$8:$A$693)-$A183)/7&"S24",FALSE))=X183,TRUE,FALSE)) -> FALSE | CP183: =IF($A183<MAX($A$8:$A$693)-(CP$148-1)*7,FALSE,IF(MIN(INDIRECT("Z"&ROW(X183)-((CP$148-1)-(MAX($A$8:$A$693)-$A183)/7) &"S24:Z"&ROW(X183)+(MAX($A$8:$A$693)-$A183)/7&"S24",FALSE))=X183,TRUE,FALSE)) -> FALSE | CR183: 1 | CS183: 0 | CT183: 1 | CU183: 2
A184: 2007-05-18 | B184: 4.34 | C184: Verkauf | D184: V | E184: 0 | F184: 4.804 | G184: Kauf | H184: 0 | I184: 0 | J184: 70.02 | K184: Verkauf | L184: V | M184: 0 | N184: 1.3507 | O184: Verkauf | P184: 0 | Q184: 0 | S184: Kauf | T184: 533.38 | U184: Kauf | V184: K | W184: 0 | X184: 2558.45 | Y184: Kauf | Z184: 0 | AA184: 0 | AC184: Kauf | AD184: Verkauf | AE184: Kauf | AF184: Kauf | AH184: 2007-05-18 | AI184: 7607.54 | AJ184: 0.01714054983 | AK184: 1522 | AL184: 17399 | AM184: 313.172 | CE184: FALSE | CF184: FALSE | CG184: FALSE | CH184: FALSE | CI184: FALSE | CJ184: FALSE | CK184: FALSE | CL184: FALSE | CM184: FALSE | CN184: FALSE | CO184: FALSE | CP184: FALSE | CR184: 1 | CS184: 0 | CT184: 1 | CU184: 2
A185: 2007-05-25 | B185: 4.39 | C185: Verkauf | D185: V | E185: 0 | F185: 4.861 | G185: Kauf | H185: 0 | I185: 0 | J185: 70.95 | K185: Verkauf | L185: V | M185: 0 | N185: 1.344 | O185: Verkauf | P185: 0 | Q185: 0 | S185: Kauf | T185: 512.63 | U185: Kauf | V185: 0 | W185: 0 | X185: 2557.19 | Y185: Kauf | Z185: 0 | AA185: 0 | AC185: Kauf | AD185: Verkauf | AE185: Kauf | AF185: Kauf | AH185: 2007-05-25 | AI185: 7739.2 | AJ185: 0.01730651433 | AK185: 1515 | AL185: 17481 | AM185: 313.103 | CE185: FALSE | CF185: FALSE | CG185: FALSE | CH185: FALSE | CI185: FALSE | CJ185: FALSE | CK185: FALSE | CL185: FALSE | CM185: FALSE | CN185: FALSE | CO185: FALSE | CP185: FALSE | CR185: 1 | CS185: 0 | CT185: 1 | CU185: 2
A186: 2007-06-01 | B186: 4.43 | C186: Verkauf | D186: V | E186: 0 | F186: 4.956 | G186: Verkauf | H186: V | I186: 0 | J186: 68.07 | K186: Verkauf | L186: 0 | M186: 0 | N186: 1.3442 | O186: Verkauf | P186: 0 | Q186: 0 | S186: =IF(O186>"",(IF(AND(AND(MONTH(A186)>5,MONTH(A186)<10,DAY(A186)>8)),"Verkauf","Kauf")),"") -> Kauf | T186: 519.29 | U186: Kauf | V186: 0 | W186: 0 | X186: 2613.92 | Y186: Kauf | Z186: K | AA186: 0 | AC186: Verkauf | AD186: Verkauf | AE186: Kauf | AF186: Verkauf | AH186: 2007-06-01 | AI186: 7987.85 | AJ186: 0.03212864379 | AK186: 1536 | AL186: 17958 | AM186: 314.118 | BZ186: 7987.85 | CE186: FALSE | CF186: FALSE | CG186: FALSE | CH186: FALSE | CI186: FALSE | CJ186: FALSE | CK186: FALSE | CL186: FALSE | CM186: FALSE | CN186: FALSE | CO186: FALSE | CP186: FALSE | CR186: 0 | CS186: 0 | CT186: 1 | CU186: 1
A187: 2007-06-08 | B187: 4.59 | C187: Verkauf | D187: V | E187: 0 | F187: 4.972 | G187: Verkauf | H187: V | I187: 0 | J187: 69.39 | K187: Verkauf | L187: 0 | M187: 0 | N187: 1.3522 | O187: Verkauf | P187: 0 | Q187: 0 | S187: =IF(O187>"",(IF(AND(AND(MONTH(A187)>5,MONTH(A187)<10,DAY(A187)>8)),"Verkauf","Kauf")),"") -> Kauf | T187: 515.23 | U187: Kauf | V187: 0 | W187: 0 | X187: 2610.19 | Y187: Kauf | Z187: 0 | AA187: 0 | AC187: Verkauf | AD187: Verkauf | AE187: Kauf | AF187: Verkauf | AH187: 2007-06-08 | AI187: 7930.91 | AJ187: -0.007128326145 | AK187: 1507 | AL187: 17779 | AM187: 307.51 | CE187: FALSE | CF187: FALSE | CG187: FALSE | CH187: FALSE | CI187: FALSE | CJ187: FALSE | CK187: FALSE | CL187: FALSE | CM187: FALSE | CN187: FALSE | CO187: FALSE | CP187: FALSE | CR187: 0 | CS187: 0 | CT187: 1 | CU187: 1
A188: 2007-06-15 | B188: 4.68 | C188: Verkauf | D188: V | E188: 0 | F188: 5.171 | G188: Verkauf | H188: V | I188: 0 | J188: 70.67 | K188: Verkauf | L188: 0 | M188: 0 | N188: 1.3381 | O188: Verkauf | P188: 0 | Q188: 0 | S188: =IF(O188>"",(IF(AND(MONTH(A188)>5,MONTH(A188)<10),"Verkauf","Kauf")),"") -> Verkauf | T188: 508.08 | U188: Kauf | V188: 0 | W188: 0 | X188: 2626.71 | Y188: Kauf | Z188: K | AA188: 0 | AC188: Verkauf | AD188: Verkauf | AE188: Kauf | AF188: Verkauf | AH188: 2007-06-15 | AI188: 8030.64 | AJ188: 0.01257484954 | AK188: 1532 | AL188: 17971 | AM188: 319.295 | CE188: FALSE | CF188: FALSE | CG188: FALSE | CH188: FALSE | CI188: FALSE | CJ188: FALSE | CK188: FALSE | CL188: FALSE | CM188: FALSE | CN188: FALSE | CO188: FALSE | CP188: FALSE | CR188: 0 | CS188: 0 | CT188: 1 | CU188: 1
A189: 2007-06-22 | B189: 4.64 | C189: Verkauf | D189: 0 | E189: 0 | F189: 5.138 | G189: Verkauf | H189: 0 | I189: 0 | J189: 70.01 | K189: Verkauf | L189: 0 | M189: 0 | N189: 1.3468 | O189: Verkauf | P189: 0 | Q189: 0 | S189: Verkauf | T189: 485.37 | U189: Kauf | V189: 0 | W189: 0 | X189: 2588.96 | Y189: Kauf | Z189: 0 | AA189: 0 | AC189: Verkauf | AD189: Verkauf | AE189: Kauf | AF189: Verkauf | AH189: 2007-06-22 | AI189: 7949.63 | AJ189: -0.01008761444 | AK189: 1502 | AL189: 18188 | AM189: 314.748 | CE189: FALSE | CF189: FALSE | CG189: FALSE | CH189: FALSE | CI189: FALSE | CJ189: FALSE | CK189: FALSE | CL189: FALSE | CM189: FALSE | CN189: FALSE | CO189: FALSE | CP189: FALSE | CR189: 0 | CS189: 0 | CT189: 1 | CU189: 1
A190: 2007-06-29 | B190: 4.57 | C190: Verkauf | D190: 0 | E190: 0 | F190: 5.033 | G190: Verkauf | H190: 0 | I190: 0 | J190: 71.8 | K190: Verkauf | L190: V | M190: 0 | N190: 1.3546 | O190: Verkauf | P190: 0 | Q190: 0 | S190: Verkauf | T190: 498.17 | U190: Kauf | V190: 0 | W190: 0 | X190: 2603.23 | Y190: Kauf | Z190: 0 | AA190: 0 | AC190: Verkauf | AD190: Verkauf | AE190: Kauf | AF190: Verkauf | AH190: 2007-06-29 | AI190: 8007.32 | AJ190: 0.007256941518 | AK190: 1503 | AL190: 18138 | AM190: 315.744 | CE190: FALSE | CF190: FALSE | CG190: FALSE | CH190: FALSE | CI190: FALSE | CJ190: FALSE | CK190: FALSE | CL190: FALSE | CM190: FALSE | CN190: FALSE | CO190: FALSE | CP190: FALSE | CR190: 0 | CS190: 0 | CT190: 1 | CU190: 1
A191: 2007-07-06 | B191: 4.67 | C191: Verkauf | D191: 0 | E191: 0 | F191: 5.195 | G191: Verkauf | H191: V | I191: 0 | J191: 73.8 | K191: Verkauf | L191: V | M191: 0 | N191: 1.3627 | O191: Verkauf | P191: 0 | Q191: 0 | S191: Verkauf | T191: 505.16 | U191: Kauf | V191: 0 | W191: 0 | X191: 2666.51 | Y191: Kauf | Z191: K | AA191: 0 | AC191: Verkauf | AD191: Verkauf | AE191: Kauf | AF191: Verkauf | AH191: 2007-07-06 | AI191: 8048.32 | AJ191: 0.005120314912 | AK191: 1530 | AL191: 18140 | AM191: 320.863 | CE191: FALSE | CF191: FALSE | CG191: FALSE | CH191: FALSE | CI191: FALSE | CJ191: FALSE | CK191: FALSE | CL191: FALSE | CM191: FALSE | CN191: FALSE | CO191: FALSE | CP191: FALSE | CR191: 0 | CS191: 0 | CT191: 1 | CU191: 1
A192: 2007-07-13 | B192: 4.66 | C192: Verkauf | D192: 0 | E192: 0 | F192: 5.107 | G192: Verkauf | H192: 0 | I192: 0 | J192: 76.84 | K192: Verkauf | L192: V | M192: 0 | N192: 1.3788 | O192: Verkauf | P192: V | Q192: 0 | S192: Verkauf | T192: 515.5 | U192: Kauf | V192: 0 | W192: 0 | X192: 2707 | Y192: Kauf | Z192: K | AA192: 0 | AC192: Verkauf | AD192: Verkauf | AE192: =IF(B192>0,(IF(AND(U192="Kauf",Y192="Kauf"),"Kauf",IF(AND(U192="Verkauf",Y192="Verkauf"),"Verkauf",AE191))),"") -> Kauf | AF192: Verkauf | AH192: 2007-07-13 | AI192: 8092.77 | AJ192: 0.005522891734 | AK192: 1552 | AL192: 18238 | AM192: 325.093 | CE192: FALSE | CF192: FALSE | CG192: FALSE | CH192: FALSE | CI192: FALSE | CJ192: FALSE | CK192: FALSE | CL192: FALSE | CM192: FALSE | CN192: FALSE | CO192: FALSE | CP192: FALSE | CR192: 0 | CS192: 0 | CT192: 1 | CU192: 1
A193: 2007-07-20 | B193: 4.54 | C193: Verkauf | D193: 0 | E193: 0 | F193: 4.956 | G193: Verkauf | H193: 0 | I193: 0 | J193: 78.32 | K193: Verkauf | L193: V | M193: 0 | N193: 1.3824 | O193: Verkauf | P193: V | Q193: 0 | S193: Verkauf | T193: 511.85 | U193: Kauf | V193: 0 | W193: 0 | X193: 2687.6 | Y193: Kauf | Z193: 0 | AA193: 0 | AC193: Verkauf | AD193: Verkauf | AE193: Kauf | AF193: Verkauf | AH193: 2007-07-20 | AI193: 7874.85 | AJ193: -0.0269277392 | AK193: 1534 | AL193: 18157 | AM193: 324.444 | CE193: FALSE | CF193: FALSE | CG193: FALSE | CH193: FALSE | CI193: FALSE | CJ193: FALSE | CK193: FALSE | CL193: FALSE | CM193: FALSE | CN193: FALSE | CO193: FALSE | CP193: FALSE | CR193: 0 | CS193: 0 | CT193: 1 | CU193: 1
A194: 2007-07-27 | B194: 4.37 | C194: Verkauf | D194: 0 | E194: 0 | F194: 4.788 | G194: Verkauf | H194: 0 | I194: 0 | J194: 77.26 | K194: Verkauf | L194: 0 | M194: 0 | N194: 1.3638 | O194: Verkauf | P194: 0 | Q194: 0 | S194: =IF(A194>0,(IF(O194>"",(IF(AND(MONTH(A194)>5,MONTH(A194)<10),"Verkauf","Kauf")),"")),"") -> Verkauf | T194: 474.79 | U194: Verkauf | V194: 0 | W194: V | X194: 2562.24 | Y194: Kauf | Z194: 0 | AA194: 0 | AC194: Verkauf | AD194: Verkauf | AE194: Kauf | AF194: Verkauf | AH194: 2007-07-27 | AI194: 7451.68 | AJ194: -0.05373689658 | AK194: 1458 | AL194: 17283 | AM194: 319.607 | CE194: FALSE | CF194: FALSE | CG194: FALSE | CH194: FALSE | CI194: FALSE | CJ194: FALSE | CK194: FALSE | CL194: FALSE | CM194: FALSE | CN194: FALSE | CO194: FALSE | CP194: FALSE | CR194: 0 | CS194: 0 | CT194: 1 | CU194: 1
A195: 2007-08-03 | B195: 4.4 | C195: Verkauf | D195: 0 | E195: 0 | F195: 4.698 | G195: Verkauf | H195: 0 | I195: 0 | J195: 75.89 | K195: Verkauf | L195: 0 | M195: 0 | N195: 1.3768 | O195: Verkauf | P195: 0 | Q195: 0 | S195: =IF(A195>0,(IF(O195>"",(IF(AND(MONTH(A195)>5,MONTH(A195)<10),"Verkauf","Kauf")),"")),"") -> Verkauf | T195: 476.75 | U195: Verkauf | V195: 0 | W195: 0 | X195: 2511.25 | Y195: Kauf | Z195: 0 | AA195: 0 | AC195: Verkauf | AD195: Verkauf | AE195: Kauf | AF195: Verkauf | AH195: 2007-08-03 | AI195: 7435.67 | AJ195: -0.002148508793 | AK195: 1433 | AL195: 16979 | AM195: 318.173 | CE195: FALSE | CF195: FALSE | CG195: FALSE | CH195: FALSE | CI195: FALSE | CJ195: FALSE | CK195: FALSE | CL195: FALSE | CM195: FALSE | CN195: FALSE | CO195: FALSE | CP195: FALSE | CR195: 0 | CS195: 0 | CT195: 1 | CU195: 1
A196: 2007-08-10 | B196: 4.36 | C196: Verkauf | D196: 0 | E196: 0 | F196: 4.776 | G196: Verkauf | H196: 0 | I196: 0 | J196: 71.11 | K196: Kauf | L196: 0 | M196: K | N196: 1.3691 | O196: Verkauf | P196: 0 | Q196: 0 | S196: Verkauf | T196: 491.32 | U196: Verkauf | V196: 0 | W196: 0 | X196: 2544.89 | Y196: Kauf | Z196: 0 | AA196: 0 | AC196: Verkauf | AD196: Verkauf | AE196: Kauf | AF196: Verkauf | AH196: 2007-08-10 | AI196: 7343.26 | AJ196: -0.01242793185 | AK196: 1453 | AL196: 16764 | AM196: 310.908 | CE196: FALSE | CF196: FALSE | CG196: FALSE | CH196: FALSE | CI196: FALSE | CJ196: FALSE | CK196: FALSE | CL196: FALSE | CM196: FALSE | CN196: FALSE | CO196: FALSE | CP196: FALSE | CR196: 0 | CS196: 0 | CT196: 1 | CU196: 1
A197: 2007-08-17 | B197: 4.28 | C197: Verkauf | D197: 0 | E197: 0 | F197: 4.673 | G197: Verkauf | H197: 0 | I197: 0 | J197: 69.84 | K197: Kauf | L197: 0 | M197: K | N197: 1.3473 | O197: Verkauf | P197: 0 | Q197: 0 | S197: Verkauf | T197: 487.39 | U197: Verkauf | V197: 0 | W197: 0 | X197: 2505.03 | Y197: Verkauf | Z197: 0 | AA197: V | AC197: Verkauf | AD197: Verkauf | AE197: Verkauf | AF197: Verkauf | AH197: 2007-08-17 | AI197: 7378.29 | AJ197: 0.004770360848 | AK197: 1445 | AL197: 15273 | AM197: 306.148 | CE197: FALSE | CF197: FALSE | CG197: FALSE | CH197: FALSE | CI197: FALSE | CJ197: FALSE | CK197: FALSE | CL197: FALSE | CM197: FALSE | CN197: FALSE | CO197: FALSE | CP197: FALSE | CR197: 0 | CS197: 0 | CT197: 0 | CU197: 0
A198: 2007-08-24 | B198: 4.3 | C198: Verkauf | D198: 0 | E198: 0 | F198: 4.633 | G198: Verkauf | H198: 0 | I198: 0 | J198: 70.68 | K198: Kauf | L198: 0 | M198: 0 | N198: 1.368 | O198: Verkauf | P198: 0 | Q198: 0 | S198: Verkauf | T198: 498.8 | U198: Verkauf | V198: 0 | W198: 0 | X198: 2576.69 | Y198: Verkauf | Z198: 0 | AA198: 0 | AC198: Verkauf | AD198: Verkauf | AE198: Verkauf | AF198: Verkauf | AH198: 2007-08-24 | AI198: 7507.27 | AJ198: 0.01748101525 | AK198: 1479 | AL198: 16248 | AM198: 305.639 | CE198: FALSE | CF198: FALSE | CG198: FALSE | CH198: FALSE | CI198: FALSE | CJ198: FALSE | CK198: FALSE | CL198: FALSE | CM198: FALSE | CN198: FALSE | CO198: FALSE | CP198: FALSE | CR198: 0 | CS198: 0 | CT198: 0 | CU198: 0
A199: 2007-08-31 | B199: 4.25 | C199: Verkauf | D199: 0 | E199: 0 | F199: 4.537 | G199: Verkauf | H199: 0 | I199: 0 | J199: 72.4 | K199: Kauf | L199: 0 | M199: 0 | N199: 1.362 | O199: Verkauf | P199: 0 | Q199: 0 | S199: Verkauf | T199: 484.79 | U199: Verkauf | V199: 0 | W199: 0 | X199: 2596.36 | Y199: Verkauf | Z199: 0 | AA199: 0 | AC199: Verkauf | AD199: Verkauf | AE199: Verkauf | AF199: Verkauf | AH199: 2007-08-31 | AI199: 7638.17 | AJ199: 0.01743643162 | AK199: 1473 | AL199: 16569 | AM199: 308.76 | CE199: FALSE | CF199: FALSE | CG199: FALSE | CH199: FALSE | CI199: FALSE | CJ199: FALSE | CK199: FALSE | CL199: FALSE | CM199: FALSE | CN199: FALSE | CO199: FALSE | CP199: FALSE | CR199: 0 | CS199: 0 | CT199: 0 | CU199: 0
A200: 2007-09-07 | B200: 4.22 | C200: Verkauf | D200: 0 | E200: 0 | F200: 4.368 | G200: Kauf | H200: 0 | I200: K | J200: 74.58 | K200: Kauf | L200: 0 | M200: 0 | N200: 1.3767 | O200: Verkauf | P200: 0 | Q200: 0 | S200: Verkauf | T200: 485.23 | U200: Verkauf | V200: 0 | W200: 0 | X200: 2565.7 | Y200: Verkauf | Z200: 0 | AA200: 0 | AC200: Kauf | AD200: Verkauf | AE200: Verkauf | AF200: Verkauf | AH200: 2007-09-07 | AI200: 7436.63 | AJ200: -0.02638590134 | AK200: 1453 | AL200: 16122 | AM200: 312.324 | BY200: =IF(AND(AF200="Kauf",OR(AF199="",AF199="Verkauf")),AI200,"") ->  | BZ200: =IF(AND(AF200="Verkauf",OR(AF199="",AF199="Kauf")),AI200,"") ->  | CA200: =IF(AND(AC200="Verkauf",AC199<>"Verkauf",BZ200=""),AI200,"") ->  | CB200: =IF(AND(AC200="Kauf",AC199<>"Kauf",BY200=""),AI200,"") -> 7436.63 | CC200: =IF(AND(AD200="Verkauf",AD199<>"Verkauf",BZ200=""),AI200,"") ->  | CD200: =IF(AND(AD200="Kauf",AD199<>"Kauf",BY200=""),AI200,"") ->  | CE200: FALSE | CF200: FALSE | CG200: FALSE | CH200: FALSE | CI200: FALSE | CJ200: FALSE | CK200: FALSE | CL200: FALSE | CM200: FALSE | CN200: FALSE | CO200: FALSE | CP200: FALSE | CR200: =IF($A200 = "","",IF(AC200 ="verkauf","0","1")) -> 1 | CS200: =IF($A200 = "","",IF(AD200 ="verkauf","0","1")) -> 0 | CT200: =IF($A200 = "","",IF(AE200 ="verkauf","0","1")) -> 0 | CU200: =SUM(CR200+CS200+CT200) -> 1
A201: 2007-09-14 | B201: 4.18 | C201: =IF(B201>0,IF(E201="K","Kauf",IF(D201="V","Verkauf",C200)),"") -> Verkauf | D201: 0 | E201: 0 | F201: 4.493 | G201: =IF(F201>0,IF(I201="K","Kauf",IF(H201="V","Verkauf",G200)),"") -> Kauf | H201: 0 | I201: 0 | J201: 76.78 | K201: =IF(J201>0,IF(M201="K","Kauf",IF(L201="V","Verkauf",K200)),"") -> Verkauf | L201: V | M201: 0 | N201: 1.3872 | O201: Verkauf | P201: V | Q201: 0 | S201: Verkauf | T201: 497.55 | U201: =IF(T201>0,IF(W201="V","Verkauf",IF(V201="K","Kauf",U200)),"") -> Verkauf | V201: 0 | W201: 0 | X201: 2587.91 | Y201: Verkauf | Z201: 0 | AA201: 0 | AC201: Kauf | AD201: Verkauf | AE201: Verkauf | AF201: Verkauf | AH201: 2007-09-14 | AI201: 7521.53 | AJ201: =IF(AI201>0,(AI201-AI200)/AI200,"") -> 0.01141646149 | AK201: 1483 | AL201: 16127 | AM201: 320.919 | CE201: FALSE | CF201: FALSE | CG201: FALSE | CH201: FALSE | CI201: FALSE | CJ201: FALSE | CK201: FALSE | CL201: FALSE | CM201: FALSE | CN201: FALSE | CO201: FALSE | CP201: FALSE | CR201: 1 | CS201: 0 | CT201: 0 | CU201: 1
... 228 more rows

Sheet DOW JONES UTILITIES INDEX
A1: comdirect
A2: comdirect
A3: Login
A4: Musterdepot | Kontakt | Ãœber uns
A5: Persönlicher Bereich
A6: Informer
A7: Produkte
A8: Services
A9: Forum
A11: Meine Startseite
A12: |
A13: Märkte
A14: |
A15: Aktien
A16: |
A17: Fonds
A18: |
A19: Optionsscheine
A20: |
A21: Zertifikate
A22: |
A23: Anleihen
A24: |
A25: Tools
A26: |
A27: News | O27: =O1 -> 0
A28: |
A29: Audio
A30: Dow Jones Utility Average Index (Price) (USD) Hilfe und InfosSeite druckenSeite aktualisieren
A31: 04.02.11 22:03 Uhr
A32: 411.01
A33: -0,63% [-2,61]
A34: Enthaltene Werte:
A35: 14
A36: Tages-Vol.:
A37: --
A38: Typ: Index
A39: Börse: DOW JONES
A40: Übersicht Details Enthaltene Werte Chart News
A41: 5 Jahre
A42: 6 Monate
A43: Intraday
A44: 10 Tage
A45: Kursdaten
A46: Aktuell | B46: 1901-02-14T00:14:24
A47: Zeit | B47: 04.02.1122:03
A48: Diff. Vortag | B48: -0.0063
A49: Tages-Vol. | B49: --
A50: Schluss Vortag | B50: 413.62
A51: Eröffnung | B51: 413.63
A52: Hoch | B52: 413.8
A53: Tief | B53: 408.57
A54: Stammdaten
A55: Land | B55: WO
A56: Landeswährung | B56: USD
A57: Enthaltene Werte | B57: 14
A58: Symbol | B58: --
A59: WKN | B59: 969422
A60: ISIN | B60: XC0009694222
A61: Zugehörige Werte
A62: Beiträge im Forum 0
A63: Fonds / Zertifikate
A64: Optionsscheine
A65: News
A66: Kein Eintrag.
A67: © 1997-2010 comdirect bank AG
A68: Bitte beachten Sie die Nutzungsbedingungen
A69: Implemented and powered by Interactive Data Managed Solutions
A71: Mit markierte Kurse werden in Realtime angezeigt.
A72: Mit markierte Kurse werden nur für Kunden in Realtime angezeigt. Detailinformationen zur Realtime-Anzeige.
A73: Alle anderen Kursdaten der deutschen / internationalen Börsen sind 15 bzw. 20 Min. verzögert.
A74: Impressum | Datenschutz | Sicherheit | Nutzungsbedingungen | AGB | Sitemap | Formulare | Presse | Investor Relations
C99: im code
C100: b100
A101: =A32 -> 411.01 | B101: =A101 -> 411.01
A104: comdirect

Sheet Umlaufrendite
A1: Börse | B1: Währung | C1: Datum | D1: Uhrzeit | E1: Akt. | F1: Veränderung zum Vortag | H1: Volumen | J1: 52 Wochen
E2: Kurs | F2: abs. | G2: in % | H2: letztes | I2: gesamt | J2: Tief | K2: Hoch
A3: außerbörslich Deutschland | B3: EUR | C3: 2011-02-04 | D3: 13:00:00 | E3: 2.9 | F3: -0.03 | G3: -0.0102 | H3: n.a. | I3: 00:00:00 | J3: 1900-01-02T21:36:00 | K3: 1900-01-02T21:36:00
A9: via onvista
A18: =E3 -> 2.9 | B18: =A18*1 -> 2.9
A19: =E3 -> 2.9 | B19: =A19*1 -> 2.9

Sheet USA
A1: Index Wert: | B1: 3.65
A2: Kurszeit: | B2: 2011-02-04T20:59:00
A3: Veränd.: | B3: + 0,11 (3,13%)
D214: im Code
C215: =B27 -> 0 | D215: c238
C216: 0 | D216: c239
C217: 0 | D217: c240
C218: 0 | D218: c241
C219: 0 | D219: c242
C220: 0 | D220: c243
C221: 0 | D221: c244
C222: 0 | D222: c245
C223: 0 | D223: c246
C230: 0
C231: 0
C232: 0 | D232: c255
C233: 0 | D233: c256
C234: 0 | D234: c257
C235: 0 | D235: c258

Sheet TNX.X.OPI
A1: Unless indicated otherwise: intraday data is at least 15 minutes delayed; mutual fund NAVs are updated at the close of every market day; all prices are in the local currency; Time is ET.
AU3: =#REF!/10 -> 
A4: via bloomberg
A8: 10-Year
C25: =RIGHT(E$9,4) ->  | D25: =C25 ->  | E25: b25

Sheet Rohöl - BRENT CRUDE OIL (SPOT)
A1: Kurs | G1: Hoch/Tief
A2: 88,73 USD | E2: Vortag | F2: Eröff. | G2: Tag | I2: 52 Wochen
B3: -2.06 | C3: -0.0227 | D3: Forward Kurve | E3: 90.79 | F3: 90.88 | G3: 91.62 | H3: 88.62 | I3: 93.44 | J3: 67.25
A16: =LEFT(A2,6) -> 88,73 | B16: =A16*1 -> 88.73 | C16: B16
A21: onvista

Sheet Euro_USD
A1: Dollarkurs (EUR / USD) | D1: Tief/Hoch
A2: 1.3586 | D2: Tag
B3: 0.0005 | C3: 0.0004 | D3: 1.358 | E3: 1.3589
A21: onvista
A24: =A2 -> 1.3586 | B24: =A24 -> 1.3586 | D24: b24
J37: =J2 -> 0

Sheet NASDAQ COMPOSITE INDEX
A1: Index | B1: Land | C1: Kurs | G1: Performance
C2: Vortag | D2: Akt. | E2: Datum | F2: Zeit | G2: Abs. | H2: in %
A3: Dow Jones Industrial Av... | B3: USA | C3: 12062.26 | D3: 12092.15 | E3: 04.02. | F3: 22:02:42 | G3: 29.89 | H3: 0.0025
A4: S&P 500 Index | B4: USA | C4: 1307.1 | D4: 1310.87 | E4: 04.02. | F4: 0.9236111111 | G4: 3.77 | H4: 0.0029
A5: NASDAQ 100 Index | B5: USA | C5: 2323.07 | D5: 2338.2 | E5: 04.02. | F5: 0.9696180556 | G5: 15.13 | H5: 0.0065
A6: NASDAQ Composite Index | B6: USA | C6: 2753.88 | D6: 2769.3 | E6: 04.02. | F6: 0.9696180556 | G6: 15.42 | H6: 0.0056
A7: S&P/TSX Composite I... | B7: Kanada | C7: 13841.35 | D7: 13791.85 | E7: 04.02. | F7: 0.9277777778 | G7: -49.5 | H7: -0.0036
A23: =D6 -> 2769.3 | B23: =A23 -> 2769.3
A26: onvista

Sheet DAX PERFORMANCE - INDEX
A1: Wert | B1: akt. Kurs | C1: +/- | D1: in % | E1: Top/Flop
A2: +15 min. DAX | B2: 7.216,21 | C2: 22.53 | D2: 0.0031 | E2: 18 | F2: 0 | G2: 12
A3: +15 min. MDAX | B3: 10.302,35 | C3: 1900-02-01T16:48:00 | D3: 0.0032 | E3: 1900-02-01 | F3: 00:00:00 | G3: 1900-01-18
A4: +15 min. TecDAX | B4: 882,37 | C4: 6.3 | D4: 0.0072 | E4: 19 | F4: 1 | G4: 10
A5: Realtime CGAX | B5: 7225 | C5: Citi-Indikation DAX
A6: +15 min. EUROSTOXX 50 | B6: 3.003,19 | C6: 7.7 | D6: 0.0026 | E6: 31 | F6: 0 | G6: 17
A7: +15 min. SMI | B7: 6.584,40 | C7: 39.49 | D7: 0.006 | E7: 16 | F7: 0 | G7: 4
A8: +15 min. ATX | B8: 2.943,71 | C8: 12.46 | D8: 0.0043 | E8: 16 | F8: 0 | G8: 4
A9: +15 min. DOW JONES | B9: 12.092,15 | C9: 29.89 | D9: 0.0025 | E9: 20 | F9: 0 | G9: 10
A10: +15 min. S&P 500 | B10: 1.310,87 | C10: 3.77 | D10: 0.0029 | E10: 315 | F10: 5 | G10: 180
A11: +15 min. NASDAQ 100 | B11: 2.338,20 | C11: 15.13 | D11: 0.0065 | E11: 71 | F11: 0 | G11: 29
A12: Schlusskurs NIKKEI 225 | B12: 10543.52 | C12: 112.16 | D12: 0.0108 | E12: 194 | F12: 6 | G12: 19
A13: +15 min. Bund Future | B13: 122,62 | C13: Rendite-Tipps | E13: Anzeige
A14: Realtime Dollarkurs (EUR/USD) | B14: 1.3586 | C14: Tagesgeld | E14: 0.04
A15: Schlusskurs Ölpreis (WTI) | B15: 88.73 | C15: Solar Frankreich | E15: 0.086
A16: Realtime Goldpreis (USD) | B16: 1348.2 | C16: Kurzläuferfonds | E16: 0.12
A24: =B$2 -> 7.216,21 | B24: =A24*1 -> 7216.21
A25: 7.216,21 | B25: 7216.21
A26: 7.216,21 | B26: 7216.21
A27: 7.216,21 | B27: 7216.21
A28: 7.216,21 | B28: 7216.21
A29: 7.216,21 | B29: 7216.21
A30: 7.216,21 | B30: 7216.21
A31: 7.216,21 | B31: 7216.21
B32: 0

Sheet SP500
A1: Index | B1: Land | C1: Kurs | G1: Performance
C2: Vortag | D2: Akt. | E2: Datum | F2: Zeit | G2: Abs. | H2: in %
A3: Dow Jones Industrial Av... | B3: USA | C3: 12062.26 | D3: 12092.15 | E3: 04.02. | F3: 22:02:42 | G3: 29.89 | H3: 0.0025
A4: S&P 500 Index | B4: USA | C4: 1307.1 | D4: 1310.87 | E4: 04.02. | F4: 22:10:00 | G4: 3.77 | H4: 0.0029
A5: NASDAQ 100 Index | B5: USA | C5: 2323.07 | D5: 2338.2 | E5: 04.02. | F5: 23:16:15 | G5: 15.13 | H5: 0.0065
A6: NASDAQ Composite Index | B6: USA | C6: 2753.88 | D6: 2769.3 | E6: 04.02. | F6: 23:16:15 | G6: 15.42 | H6: 0.0056
A7: S&P/TSX Composite I... | B7: Kanada | C7: 13841.35 | D7: 13791.85 | E7: 04.02. | F7: 22:16:00 | G7: -49.5 | H7: -0.0036
A22: onvista | B22: D4

Sheet N225
A1: Index | B1: Land | C1: Kurs | G1: Performance
C2: Vortag | D2: Akt. | E2: Datum | F2: Zeit | G2: Abs. | H2: in %
A3: Nikkei 225 Stock Averag... | B3: Japan | C3: 10431.36 | D3: 10543.52 | E3: 04.02. | F3: 0.2986111111 | G3: 112.16 | H3: 0.0108
A4: Hang Seng Index | B4: China | C4: 23482.95 | D4: 1965-06-15T23:02:24 | E4: 02.02. | F4: 09:05:00 | G4: 1901-03-01T00:14:24 | H4: 0.0181
A5: KOSPI Index | B5: Südkorea | C5: 2069.73 | D5: 2072.03 | E5: 01.02. | F5: 0.2986111111 | G5: 2.3 | H5: 0.0011
A6: Shanghai B-Share Index | B6: China | C6: 306.44 | D6: 306.63 | E6: 01.02. | F6: 0.3472222222 | G6: 0.19 | H6: 0.0006
A7: Tokyo Stock Price Index... | B7: Japan | C7: 927.57 | D7: 1902-07-23T08:38:24 | E7: 04.02. | F7: 0.2951388889 | G7: 1900-01-07T18:57:36 | H7: 0.0084
A33: =A$2 -> 0 | D33: 29 abwärts
A34: =A$2 -> 0 | B34: =A34*1 -> 0
A35: 0 | B35: 0
A36: 0 | B36: 0
A37: 0 | B37: 0
A38: 0 | B38: 0
A39: 0 | B39: 0
A40: 0 | B40: 0
A41: 0 | B41: 0

Sheet crb
A1: Aktueller Kurs (ICE Futures U.S. - RT, 04.02.2011, 23:35:29) | F1: Hoch/Tief
A2: 338.92 | D2: Vortag | E2: Eröff. | F2: Tag | H2: 52-Wochen
B3: -0.0061 | C3: -2.08 | D3: 341 | E3: 340.65 | F3: 341.65 | G3: 337.75 | H3: 345.19 | I3: 247.25
A5: 1 Monat | B5: 3 Monate | C5: 6 Monate | D5: 1 Jahr | E5: 3 Jahre | F5: 5 Jahre | G5: 10 Jahre
A21: via onvista
